Organisation Code,Organisation Label,Effective Date,Organisational Unit,Service Division Label,Category Internal Name,Purpose,Detailed Expenditure Code,Payment Date,Transaction Number,Irrecoverable VAT Amount,Amount,Capital Or Revenue,Benificiary Name,Procurement Card
Http://opendatacommunities.org/id/metropolitan-district-council/leeds,Leeds City Council,31/03/2018,Resources and Housing,Leeds Building Services,Supplies and Services,Operational Materials,205,08/03/2019,1803-00001,0.00,22.88 ,R,A Andrews & Sons (Marbles & Tiles),No
Http://opendatacommunities.org/id/metropolitan-district-council/leeds,Leeds City Council,31/03/2018,Resources and Housing,Leeds Building Services,Supplies and Services,Operational Materials,205,08/03/2019,1803-00002,0.00,16.55 ,R,A Andrews & Sons (Marbles & Tiles),No
Http://opendatacommunities.org/id/metropolitan-district-council/leeds,Leeds City Council,31/03/2018,Resources and Housing,Leeds Building Services,Supplies and Services,Operational Materials,205,08/03/2019,1803-00003,0.00,72.73 ,R,A Andrews & Sons (Marbles & Tiles),No
Http://opendatacommunities.org/id/metropolitan-district-council/leeds,Leeds City Council,31/03/2018,Resources and Housing,Leeds Building Services,Supplies and Services,Operational Materials,205,27/03/2019,1803-00004,0.00,68.50 ,R,A Andrews & Sons (Marbles & Tiles),No
Http://opendatacommunities.org/id/metropolitan-district-council/leeds,Leeds City Council,31/03/2018,Resources and Housing,Leeds Building Services,Supplies and Services,Operational Materials,205,27/03/2019,1803-00005,0.00,51.62 ,R,A Andrews & Sons (Marbles & Tiles),No
Http://opendatacommunities.org/id/metropolitan-district-council/leeds,Leeds City Council,31/03/2018,Resources and Housing,Leeds Building Services,Supplies and Services,Operational Materials,205,27/03/2019,1803-00006,0.00,20.15 ,R,A Andrews & Sons (Marbles & Tiles),No
Http://opendatacommunities.org/id/metropolitan-district-council/leeds,Leeds City Council,31/03/2018,Resources and Housing,Leeds Building Services,Supplies and Services,Operational Materials,205,27/03/2019,1803-00007,0.00,34.67 ,R,A Andrews & Sons (Marbles & Tiles),No
Http://opendatacommunities.org/id/metropolitan-district-council/leeds,Leeds City Council,31/03/2018,City Development,Libraries  Arts & Heritage,Supplies and Services,Other Hired And Contracted Services,265,13/03/2019,1803-00008,0.00,114.55 ,R,A C Entertainment Technologies Ltd,No
Http://opendatacommunities.org/id/metropolitan-district-council/leeds,Leeds City Council,31/03/2018,Children and Families,Social Care,Third Party Payments,Services Rendered By Other Organisations,511,15/03/2019,1803-00009,0.00,124.66 ,R,REDACTED PERSONAL DATA,No
Http://opendatacommunities.org/id/metropolitan-district-council/leeds,Leeds City Council,31/03/2018,Children and Families,Social Care,Third Party Payments,Services Rendered By Other Organisations,511,15/03/2019,1803-00010,0.00,701.25 ,R,REDACTED PERSONAL DATA,No
Http://opendatacommunities.org/id/metropolitan-district-council/leeds,Leeds City Council,31/03/2018,Resources and Housing,HRA Housing Leeds,Capital,Construction,3,11/03/2019,1803-00011,0.00,190848.46 ,C,A Connolly Limited,No
Http://opendatacommunities.org/id/metropolitan-district-council/leeds,Leeds City Council,31/03/2018,Communities and Environment,Car Parking Services,Income,Penalties  Fines & Car Parking Charges,934,21/03/2019,1803-00012,0.00,21.53 ,R,REDACTED PERSONAL DATA,No
Http://opendatacommunities.org/id/metropolitan-district-council/leeds,Leeds City Council,31/03/2018,Children and Families,Social Care,Third Party Payments,Services Rendered By Voluntary Sector,505,15/03/2019,1803-00013,0.00,682.11 ,R,REDACTED PERSONAL DATA,No
Http://opendatacommunities.org/id/metropolitan-district-council/leeds,Leeds City Council,31/03/2018,Children and Families,Social Care,Third Party Payments,Services Rendered By Other Organisations,511,15/03/2019,1803-00014,0.00,5134.00 ,R,REDACTED PERSONAL DATA,No
Http://opendatacommunities.org/id/metropolitan-district-council/leeds,Leeds City Council,31/03/2018,Children and Families,Social Care,Third Party Payments,Services Rendered By Voluntary Sector,505,20/03/2019,1803-00015,0.00,2131.80 ,R,REDACTED PERSONAL DATA,No
Http://opendatacommunities.org/id/metropolitan-district-council/leeds,Leeds City Council,31/03/2018,City Development,Highways,Capital,Construction,3,19/03/2019,1803-00016,0.00,192037.67 ,C,A E Yates Ltd,No
Http://opendatacommunities.org/id/metropolitan-district-council/leeds,Leeds City Council,31/03/2018,Children and Families,Social Care,Third Party Payments,Services Rendered By Other Organisations,511,15/03/2019,1803-00017,0.00,1527.16 ,R,REDACTED PERSONAL DATA,No
Http://opendatacommunities.org/id/metropolitan-district-council/leeds,Leeds City Council,31/03/2018,Children and Families,Social Care,Third Party Payments,Services Rendered By Other Organisations,511,15/03/2019,1803-00018,0.00,233.75 ,R,REDACTED PERSONAL DATA,No
Http://opendatacommunities.org/id/metropolitan-district-council/leeds,Leeds City Council,31/03/2018,Children and Families,Social Care,Third Party Payments,Services Rendered By Other Organisations,511,15/03/2019,1803-00019,0.00,46.75 ,R,REDACTED PERSONAL DATA,No
Http://opendatacommunities.org/id/metropolitan-district-council/leeds,Leeds City Council,31/03/2018,Children and Families,Social Care,Third Party Payments,Services Rendered By Other Organisations,511,15/03/2019,1803-00020,0.00,249.33 ,R,REDACTED PERSONAL DATA,No
Http://opendatacommunities.org/id/metropolitan-district-council/leeds,Leeds City Council,31/03/2018,Resources and Housing,HRA Housing Leeds,Capital,Other Costs,7,21/03/2019,1803-00021,0.00,124.17 ,C,REDACTED PERSONAL DATA,No
Http://opendatacommunities.org/id/metropolitan-district-council/leeds,Leeds City Council,31/03/2018,Children and Families,Social Care,Third Party Payments,Services Rendered By Other Organisations,511,15/03/2019,1803-00022,0.00,467.50 ,R,REDACTED PERSONAL DATA,No
Http://opendatacommunities.org/id/metropolitan-district-council/leeds,Leeds City Council,31/03/2018,City Development,Libraries  Arts & Heritage,Supplies and Services,Other Hired And Contracted Services,265,14/03/2019,1803-00023,0.00,50.00 ,R,REDACTED COMMERCIAL CONFIDENTIALITY,No
Http://opendatacommunities.org/id/metropolitan-district-council/leeds,Leeds City Council,31/03/2018,Resources and Housing,Leeds Building Services,Supplies and Services,Operational Materials,205,01/03/2019,1803-00024,0.00,167.53 ,R,A J H  Pump Supply & Repair Ltd,No
Http://opendatacommunities.org/id/metropolitan-district-council/leeds,Leeds City Council,31/03/2018,Resources and Housing,Leeds Building Services,Supplies and Services,Operational Materials,205,01/03/2019,1803-00025,0.00,167.53 ,R,A J H  Pump Supply & Repair Ltd,No
Http://opendatacommunities.org/id/metropolitan-district-council/leeds,Leeds City Council,31/03/2018,Resources and Housing,Leeds Building Services,Supplies and Services,Operational Materials,205,04/03/2019,1803-00026,0.00,43.88 ,R,A J H  Pump Supply & Repair Ltd,No
Http://opendatacommunities.org/id/metropolitan-district-council/leeds,Leeds City Council,31/03/2018,Resources and Housing,Leeds Building Services,Supplies and Services,Operational Materials,205,04/03/2019,1803-00027,0.00,45.44 ,R,A J H  Pump Supply & Repair Ltd,No
Http://opendatacommunities.org/id/metropolitan-district-council/leeds,Leeds City Council,31/03/2018,Resources and Housing,Leeds Building Services,Supplies and Services,Operational Materials,205,04/03/2019,1803-00028,0.00,301.50 ,R,A J H  Pump Supply & Repair Ltd,No
Http://opendatacommunities.org/id/metropolitan-district-council/leeds,Leeds City Council,31/03/2018,Resources and Housing,Leeds Building Services,Supplies and Services,Operational Materials,205,04/03/2019,1803-00029,0.00,962.00 ,R,A J H  Pump Supply & Repair Ltd,No
Http://opendatacommunities.org/id/metropolitan-district-council/leeds,Leeds City Council,31/03/2018,Resources and Housing,Leeds Building Services,Supplies and Services,Operational Materials,205,04/03/2019,1803-00030,0.00,75.00 ,R,A J H  Pump Supply & Repair Ltd,No
Http://opendatacommunities.org/id/metropolitan-district-council/leeds,Leeds City Council,31/03/2018,Resources and Housing,Leeds Building Services,Supplies and Services,Operational Materials,205,04/03/2019,1803-00031,0.00,193.36 ,R,A J H  Pump Supply & Repair Ltd,No
Http://opendatacommunities.org/id/metropolitan-district-council/leeds,Leeds City Council,31/03/2018,Resources and Housing,Leeds Building Services,Supplies and Services,Operational Materials,205,04/03/2019,1803-00032,0.00,250.00 ,R,A J H  Pump Supply & Repair Ltd,No
Http://opendatacommunities.org/id/metropolitan-district-council/leeds,Leeds City Council,31/03/2018,Resources and Housing,Leeds Building Services,Supplies and Services,Operational Materials,205,04/03/2019,1803-00033,0.00,176.49 ,R,A J H  Pump Supply & Repair Ltd,No
Http://opendatacommunities.org/id/metropolitan-district-council/leeds,Leeds City Council,31/03/2018,Resources and Housing,Leeds Building Services,Supplies and Services,Operational Materials,205,04/03/2019,1803-00034,0.00,95.88 ,R,A J H  Pump Supply & Repair Ltd,No
Http://opendatacommunities.org/id/metropolitan-district-council/leeds,Leeds City Council,31/03/2018,Resources and Housing,Leeds Building Services,Supplies and Services,Operational Materials,205,04/03/2019,1803-00035,0.00,46.99 ,R,A J H  Pump Supply & Repair Ltd,No
Http://opendatacommunities.org/id/metropolitan-district-council/leeds,Leeds City Council,31/03/2018,Resources and Housing,Leeds Building Services,Supplies and Services,Operational Materials,205,04/03/2019,1803-00036,0.00,55.45 ,R,A J H  Pump Supply & Repair Ltd,No
Http://opendatacommunities.org/id/metropolitan-district-council/leeds,Leeds City Council,31/03/2018,Resources and Housing,Leeds Building Services,Supplies and Services,Operational Materials,205,04/03/2019,1803-00037,0.00,81.80 ,R,A J H  Pump Supply & Repair Ltd,No
Http://opendatacommunities.org/id/metropolitan-district-council/leeds,Leeds City Council,31/03/2018,Resources and Housing,Leeds Building Services,Supplies and Services,Operational Materials,205,04/03/2019,1803-00038,0.00,20.89 ,R,A J H  Pump Supply & Repair Ltd,No
Http://opendatacommunities.org/id/metropolitan-district-council/leeds,Leeds City Council,31/03/2018,Resources and Housing,Leeds Building Services,Supplies and Services,Operational Materials,205,04/03/2019,1803-00039,0.00,27.49 ,R,A J H  Pump Supply & Repair Ltd,No
Http://opendatacommunities.org/id/metropolitan-district-council/leeds,Leeds City Council,31/03/2018,Resources and Housing,Leeds Building Services,Supplies and Services,Operational Materials,205,04/03/2019,1803-00040,0.00,105.60 ,R,A J H  Pump Supply & Repair Ltd,No
Http://opendatacommunities.org/id/metropolitan-district-council/leeds,Leeds City Council,31/03/2018,Resources and Housing,Leeds Building Services,Supplies and Services,Operational Materials,205,04/03/2019,1803-00041,0.00,158.94 ,R,A J H  Pump Supply & Repair Ltd,No
Http://opendatacommunities.org/id/metropolitan-district-council/leeds,Leeds City Council,31/03/2018,Resources and Housing,Leeds Building Services,Supplies and Services,Operational Materials,205,04/03/2019,1803-00042,0.00,38.30 ,R,A J H  Pump Supply & Repair Ltd,No
Http://opendatacommunities.org/id/metropolitan-district-council/leeds,Leeds City Council,31/03/2018,Resources and Housing,Leeds Building Services,Supplies and Services,Operational Materials,205,04/03/2019,1803-00043,0.00,155.00 ,R,A J H  Pump Supply & Repair Ltd,No
Http://opendatacommunities.org/id/metropolitan-district-council/leeds,Leeds City Council,31/03/2018,Resources and Housing,Leeds Building Services,Supplies and Services,Operational Materials,205,04/03/2019,1803-00044,0.00,31.90 ,R,A J H  Pump Supply & Repair Ltd,No
Http://opendatacommunities.org/id/metropolitan-district-council/leeds,Leeds City Council,31/03/2018,Resources and Housing,Leeds Building Services,Supplies and Services,Operational Materials,205,04/03/2019,1803-00045,0.00,408.00 ,R,A J H  Pump Supply & Repair Ltd,No
Http://opendatacommunities.org/id/metropolitan-district-council/leeds,Leeds City Council,31/03/2018,Resources and Housing,Leeds Building Services,Supplies and Services,Operational Materials,205,04/03/2019,1803-00046,0.00,226.98 ,R,A J H  Pump Supply & Repair Ltd,No
Http://opendatacommunities.org/id/metropolitan-district-council/leeds,Leeds City Council,31/03/2018,Resources and Housing,Leeds Building Services,Supplies and Services,Operational Materials,205,04/03/2019,1803-00047,0.00,43.25 ,R,A J H  Pump Supply & Repair Ltd,No
Http://opendatacommunities.org/id/metropolitan-district-council/leeds,Leeds City Council,31/03/2018,Resources and Housing,Leeds Building Services,Supplies and Services,Operational Materials,205,04/03/2019,1803-00048,0.00,1240.00 ,R,A J H  Pump Supply & Repair Ltd,No
Http://opendatacommunities.org/id/metropolitan-district-council/leeds,Leeds City Council,31/03/2018,Resources and Housing,Leeds Building Services,Supplies and Services,Operational Materials,205,04/03/2019,1803-00049,0.00,22.00 ,R,A J H  Pump Supply & Repair Ltd,No
Http://opendatacommunities.org/id/metropolitan-district-council/leeds,Leeds City Council,31/03/2018,Resources and Housing,Leeds Building Services,Supplies and Services,Operational Materials,205,05/03/2019,1803-00050,0.00,152.00 ,R,A J H  Pump Supply & Repair Ltd,No
Http://opendatacommunities.org/id/metropolitan-district-council/leeds,Leeds City Council,31/03/2018,Resources and Housing,Leeds Building Services,Supplies and Services,Operational Materials,205,08/03/2019,1803-00051,0.00,93.17 ,R,A J H  Pump Supply & Repair Ltd,No
Http://opendatacommunities.org/id/metropolitan-district-council/leeds,Leeds City Council,31/03/2018,Resources and Housing,Leeds Building Services,Supplies and Services,Operational Materials,205,08/03/2019,1803-00052,0.00,26.00 ,R,A J H  Pump Supply & Repair Ltd,No
Http://opendatacommunities.org/id/metropolitan-district-council/leeds,Leeds City Council,31/03/2018,Resources and Housing,Leeds Building Services,Supplies and Services,Operational Materials,205,08/03/2019,1803-00053,0.00,38.50 ,R,A J H  Pump Supply & Repair Ltd,No
Http://opendatacommunities.org/id/metropolitan-district-council/leeds,Leeds City Council,31/03/2018,Resources and Housing,Leeds Building Services,Supplies and Services,Operational Materials,205,08/03/2019,1803-00054,0.00,105.89 ,R,A J H  Pump Supply & Repair Ltd,No
Http://opendatacommunities.org/id/metropolitan-district-council/leeds,Leeds City Council,31/03/2018,Resources and Housing,Leeds Building Services,Supplies and Services,Operational Materials,205,08/03/2019,1803-00055,0.00,134.57 ,R,A J H  Pump Supply & Repair Ltd,No
Http://opendatacommunities.org/id/metropolitan-district-council/leeds,Leeds City Council,31/03/2018,Resources and Housing,Leeds Building Services,Supplies and Services,Operational Materials,205,12/03/2019,1803-00056,0.00,389.85 ,R,A J H  Pump Supply & Repair Ltd,No
Http://opendatacommunities.org/id/metropolitan-district-council/leeds,Leeds City Council,31/03/2018,Resources and Housing,Leeds Building Services,Supplies and Services,Operational Materials,205,12/03/2019,1803-00057,0.00,492.00 ,R,A J H  Pump Supply & Repair Ltd,No
Http://opendatacommunities.org/id/metropolitan-district-council/leeds,Leeds City Council,31/03/2018,Resources and Housing,Leeds Building Services,Supplies and Services,Operational Materials,205,12/03/2019,1803-00058,0.00,452.00 ,R,A J H  Pump Supply & Repair Ltd,No
Http://opendatacommunities.org/id/metropolitan-district-council/leeds,Leeds City Council,31/03/2018,Resources and Housing,Leeds Building Services,Supplies and Services,Operational Materials,205,12/03/2019,1803-00059,0.00,36.25 ,R,A J H  Pump Supply & Repair Ltd,No
Http://opendatacommunities.org/id/metropolitan-district-council/leeds,Leeds City Council,31/03/2018,Resources and Housing,Leeds Building Services,Supplies and Services,Operational Materials,205,13/03/2019,1803-00060,0.00,37.45 ,R,A J H  Pump Supply & Repair Ltd,No
Http://opendatacommunities.org/id/metropolitan-district-council/leeds,Leeds City Council,31/03/2018,Resources and Housing,Leeds Building Services,Supplies and Services,Operational Materials,205,13/03/2019,1803-00061,0.00,153.95 ,R,A J H  Pump Supply & Repair Ltd,No
Http://opendatacommunities.org/id/metropolitan-district-council/leeds,Leeds City Council,31/03/2018,Resources and Housing,Leeds Building Services,Supplies and Services,Operational Materials,205,13/03/2019,1803-00062,0.00,128.40 ,R,A J H  Pump Supply & Repair Ltd,No
Http://opendatacommunities.org/id/metropolitan-district-council/leeds,Leeds City Council,31/03/2018,Resources and Housing,Leeds Building Services,Supplies and Services,Operational Materials,205,13/03/2019,1803-00063,0.00,310.02 ,R,A J H  Pump Supply & Repair Ltd,No
Http://opendatacommunities.org/id/metropolitan-district-council/leeds,Leeds City Council,31/03/2018,Resources and Housing,Leeds Building Services,Supplies and Services,Operational Materials,205,13/03/2019,1803-00064,0.00,1080.00 ,R,A J H  Pump Supply & Repair Ltd,No
Http://opendatacommunities.org/id/metropolitan-district-council/leeds,Leeds City Council,31/03/2018,Resources and Housing,Leeds Building Services,Supplies and Services,Operational Materials,205,13/03/2019,1803-00065,0.00,240.00 ,R,A J H  Pump Supply & Repair Ltd,No
Http://opendatacommunities.org/id/metropolitan-district-council/leeds,Leeds City Council,31/03/2018,Resources and Housing,Leeds Building Services,Supplies and Services,Operational Materials,205,13/03/2019,1803-00066,0.00,10.45 ,R,A J H  Pump Supply & Repair Ltd,No
Http://opendatacommunities.org/id/metropolitan-district-council/leeds,Leeds City Council,31/03/2018,Resources and Housing,Leeds Building Services,Supplies and Services,Operational Materials,205,13/03/2019,1803-00067,0.00,56.19 ,R,A J H  Pump Supply & Repair Ltd,No
Http://opendatacommunities.org/id/metropolitan-district-council/leeds,Leeds City Council,31/03/2018,Resources and Housing,Leeds Building Services,Supplies and Services,Operational Materials,205,13/03/2019,1803-00068,0.00,530.00 ,R,A J H  Pump Supply & Repair Ltd,No
Http://opendatacommunities.org/id/metropolitan-district-council/leeds,Leeds City Council,31/03/2018,Resources and Housing,Leeds Building Services,Supplies and Services,Operational Materials,205,13/03/2019,1803-00069,0.00,42.75 ,R,A J H  Pump Supply & Repair Ltd,No
Http://opendatacommunities.org/id/metropolitan-district-council/leeds,Leeds City Council,31/03/2018,Resources and Housing,Leeds Building Services,Supplies and Services,Operational Materials,205,13/03/2019,1803-00070,0.00,116.88 ,R,A J H  Pump Supply & Repair Ltd,No
Http://opendatacommunities.org/id/metropolitan-district-council/leeds,Leeds City Council,31/03/2018,Resources and Housing,Leeds Building Services,Supplies and Services,Operational Materials,205,13/03/2019,1803-00071,0.00,53.10 ,R,A J H  Pump Supply & Repair Ltd,No
Http://opendatacommunities.org/id/metropolitan-district-council/leeds,Leeds City Council,31/03/2018,Resources and Housing,Leeds Building Services,Supplies and Services,Operational Materials,205,13/03/2019,1803-00072,0.00,18.05 ,R,A J H  Pump Supply & Repair Ltd,No
Http://opendatacommunities.org/id/metropolitan-district-council/leeds,Leeds City Council,31/03/2018,Resources and Housing,Leeds Building Services,Supplies and Services,Operational Materials,205,13/03/2019,1803-00073,0.00,44.89 ,R,A J H  Pump Supply & Repair Ltd,No
Http://opendatacommunities.org/id/metropolitan-district-council/leeds,Leeds City Council,31/03/2018,Resources and Housing,Leeds Building Services,Supplies and Services,Operational Materials,205,13/03/2019,1803-00074,0.00,620.00 ,R,A J H  Pump Supply & Repair Ltd,No
Http://opendatacommunities.org/id/metropolitan-district-council/leeds,Leeds City Council,31/03/2018,Resources and Housing,Leeds Building Services,Supplies and Services,Operational Materials,205,13/03/2019,1803-00075,0.00,765.00 ,R,A J H  Pump Supply & Repair Ltd,No
Http://opendatacommunities.org/id/metropolitan-district-council/leeds,Leeds City Council,31/03/2018,Resources and Housing,Leeds Building Services,Supplies and Services,Operational Materials,205,13/03/2019,1803-00076,0.00,95.57 ,R,A J H  Pump Supply & Repair Ltd,No
Http://opendatacommunities.org/id/metropolitan-district-council/leeds,Leeds City Council,31/03/2018,Resources and Housing,Leeds Building Services,Supplies and Services,Operational Materials,205,13/03/2019,1803-00077,0.00,158.78 ,R,A J H  Pump Supply & Repair Ltd,No
Http://opendatacommunities.org/id/metropolitan-district-council/leeds,Leeds City Council,31/03/2018,Resources and Housing,Leeds Building Services,Supplies and Services,Operational Materials,205,13/03/2019,1803-00078,0.00,694.00 ,R,A J H  Pump Supply & Repair Ltd,No
Http://opendatacommunities.org/id/metropolitan-district-council/leeds,Leeds City Council,31/03/2018,Resources and Housing,Leeds Building Services,Supplies and Services,Operational Materials,205,13/03/2019,1803-00079,0.00,15.20 ,R,A J H  Pump Supply & Repair Ltd,No
Http://opendatacommunities.org/id/metropolitan-district-council/leeds,Leeds City Council,31/03/2018,Resources and Housing,Leeds Building Services,Supplies and Services,Operational Materials,205,13/03/2019,1803-00080,0.00,29.82 ,R,A J H  Pump Supply & Repair Ltd,No
Http://opendatacommunities.org/id/metropolitan-district-council/leeds,Leeds City Council,31/03/2018,Resources and Housing,Leeds Building Services,Supplies and Services,Operational Materials,205,13/03/2019,1803-00081,0.00,54.15 ,R,A J H  Pump Supply & Repair Ltd,No
Http://opendatacommunities.org/id/metropolitan-district-council/leeds,Leeds City Council,31/03/2018,Resources and Housing,Leeds Building Services,Supplies and Services,Operational Materials,205,13/03/2019,1803-00082,0.00,148.00 ,R,A J H  Pump Supply & Repair Ltd,No
Http://opendatacommunities.org/id/metropolitan-district-council/leeds,Leeds City Council,31/03/2018,Resources and Housing,Leeds Building Services,Supplies and Services,Operational Materials,205,13/03/2019,1803-00083,0.00,35.85 ,R,A J H  Pump Supply & Repair Ltd,No
Http://opendatacommunities.org/id/metropolitan-district-council/leeds,Leeds City Council,31/03/2018,Resources and Housing,Leeds Building Services,Supplies and Services,Operational Materials,205,13/03/2019,1803-00084,0.00,74.96 ,R,A J H  Pump Supply & Repair Ltd,No
Http://opendatacommunities.org/id/metropolitan-district-council/leeds,Leeds City Council,31/03/2018,Resources and Housing,Leeds Building Services,Supplies and Services,Operational Materials,205,13/03/2019,1803-00085,0.00,684.35 ,R,A J H  Pump Supply & Repair Ltd,No
Http://opendatacommunities.org/id/metropolitan-district-council/leeds,Leeds City Council,31/03/2018,Resources and Housing,Leeds Building Services,Supplies and Services,Other Hired And Contracted Services,265,13/03/2019,1803-00086,0.00,750.00 ,R,A J H  Pump Supply & Repair Ltd,No
Http://opendatacommunities.org/id/metropolitan-district-council/leeds,Leeds City Council,31/03/2018,Resources and Housing,Leeds Building Services,Supplies and Services,Operational Materials,205,19/03/2019,1803-00087,0.00,304.83 ,R,A J H  Pump Supply & Repair Ltd,No
Http://opendatacommunities.org/id/metropolitan-district-council/leeds,Leeds City Council,31/03/2018,Resources and Housing,Leeds Building Services,Supplies and Services,Operational Materials,205,19/03/2019,1803-00088,0.00,115.00 ,R,A J H  Pump Supply & Repair Ltd,No
Http://opendatacommunities.org/id/metropolitan-district-council/leeds,Leeds City Council,31/03/2018,Resources and Housing,Leeds Building Services,Supplies and Services,Operational Materials,205,19/03/2019,1803-00089,0.00,68.00 ,R,A J H  Pump Supply & Repair Ltd,No
Http://opendatacommunities.org/id/metropolitan-district-council/leeds,Leeds City Council,31/03/2018,Resources and Housing,Leeds Building Services,Supplies and Services,Operational Materials,205,19/03/2019,1803-00090,0.00,300.00 ,R,A J H  Pump Supply & Repair Ltd,No
Http://opendatacommunities.org/id/metropolitan-district-council/leeds,Leeds City Council,31/03/2018,Resources and Housing,Leeds Building Services,Supplies and Services,Operational Materials,205,19/03/2019,1803-00091,0.00,16.52 ,R,A J H  Pump Supply & Repair Ltd,No
Http://opendatacommunities.org/id/metropolitan-district-council/leeds,Leeds City Council,31/03/2018,Resources and Housing,Leeds Building Services,Supplies and Services,Operational Materials,205,19/03/2019,1803-00092,0.00,55.28 ,R,A J H  Pump Supply & Repair Ltd,No
Http://opendatacommunities.org/id/metropolitan-district-council/leeds,Leeds City Council,31/03/2018,Resources and Housing,Leeds Building Services,Supplies and Services,Operational Materials,205,19/03/2019,1803-00093,0.00,-167.53 ,R,A J H  Pump Supply & Repair Ltd,No
Http://opendatacommunities.org/id/metropolitan-district-council/leeds,Leeds City Council,31/03/2018,Resources and Housing,Leeds Building Services,Supplies and Services,Operational Materials,205,19/03/2019,1803-00094,0.00,19.50 ,R,A J H  Pump Supply & Repair Ltd,No
Http://opendatacommunities.org/id/metropolitan-district-council/leeds,Leeds City Council,31/03/2018,Resources and Housing,Leeds Building Services,Supplies and Services,Operational Materials,205,19/03/2019,1803-00095,0.00,21.40 ,R,A J H  Pump Supply & Repair Ltd,No
Http://opendatacommunities.org/id/metropolitan-district-council/leeds,Leeds City Council,31/03/2018,Resources and Housing,Leeds Building Services,Supplies and Services,Operational Materials,205,19/03/2019,1803-00096,0.00,381.70 ,R,A J H  Pump Supply & Repair Ltd,No
Http://opendatacommunities.org/id/metropolitan-district-council/leeds,Leeds City Council,31/03/2018,Resources and Housing,Leeds Building Services,Supplies and Services,Operational Materials,205,19/03/2019,1803-00097,0.00,57.85 ,R,A J H  Pump Supply & Repair Ltd,No
Http://opendatacommunities.org/id/metropolitan-district-council/leeds,Leeds City Council,31/03/2018,Resources and Housing,Leeds Building Services,Supplies and Services,Operational Materials,205,19/03/2019,1803-00098,0.00,313.04 ,R,A J H  Pump Supply & Repair Ltd,No
Http://opendatacommunities.org/id/metropolitan-district-council/leeds,Leeds City Council,31/03/2018,Resources and Housing,Leeds Building Services,Supplies and Services,Operational Materials,205,20/03/2019,1803-00099,0.00,60.00 ,R,A J H  Pump Supply & Repair Ltd,No
Http://opendatacommunities.org/id/metropolitan-district-council/leeds,Leeds City Council,31/03/2018,Resources and Housing,Leeds Building Services,Supplies and Services,Operational Materials,205,22/03/2019,1803-00100,0.00,14.40 ,R,A J H  Pump Supply & Repair Ltd,No
Http://opendatacommunities.org/id/metropolitan-district-council/leeds,Leeds City Council,31/03/2018,Resources and Housing,Leeds Building Services,Supplies and Services,Operational Materials,205,22/03/2019,1803-00101,0.00,46.99 ,R,A J H  Pump Supply & Repair Ltd,No
Http://opendatacommunities.org/id/metropolitan-district-council/leeds,Leeds City Council,31/03/2018,Resources and Housing,Leeds Building Services,Supplies and Services,Operational Materials,205,22/03/2019,1803-00102,0.00,76.00 ,R,A J H  Pump Supply & Repair Ltd,No
Http://opendatacommunities.org/id/metropolitan-district-council/leeds,Leeds City Council,31/03/2018,Resources and Housing,Leeds Building Services,Supplies and Services,Operational Materials,205,22/03/2019,1803-00103,0.00,73.37 ,R,A J H  Pump Supply & Repair Ltd,No
Http://opendatacommunities.org/id/metropolitan-district-council/leeds,Leeds City Council,31/03/2018,Resources and Housing,Leeds Building Services,Supplies and Services,Operational Materials,205,22/03/2019,1803-00104,0.00,492.00 ,R,A J H  Pump Supply & Repair Ltd,No
Http://opendatacommunities.org/id/metropolitan-district-council/leeds,Leeds City Council,31/03/2018,Resources and Housing,Leeds Building Services,Supplies and Services,Operational Materials,205,22/03/2019,1803-00105,0.00,84.25 ,R,A J H  Pump Supply & Repair Ltd,No
Http://opendatacommunities.org/id/metropolitan-district-council/leeds,Leeds City Council,31/03/2018,Resources and Housing,Leeds Building Services,Supplies and Services,Operational Materials,205,25/03/2019,1803-00106,0.00,149.00 ,R,A J H  Pump Supply & Repair Ltd,No
Http://opendatacommunities.org/id/metropolitan-district-council/leeds,Leeds City Council,31/03/2018,Resources and Housing,Leeds Building Services,Supplies and Services,Operational Materials,205,25/03/2019,1803-00107,0.00,196.00 ,R,A J H  Pump Supply & Repair Ltd,No
Http://opendatacommunities.org/id/metropolitan-district-council/leeds,Leeds City Council,31/03/2018,Resources and Housing,Leeds Building Services,Supplies and Services,Operational Materials,205,25/03/2019,1803-00108,0.00,140.00 ,R,A J H  Pump Supply & Repair Ltd,No
Http://opendatacommunities.org/id/metropolitan-district-council/leeds,Leeds City Council,31/03/2018,Resources and Housing,Leeds Building Services,Supplies and Services,Operational Materials,205,25/03/2019,1803-00109,0.00,69.51 ,R,A J H  Pump Supply & Repair Ltd,No
Http://opendatacommunities.org/id/metropolitan-district-council/leeds,Leeds City Council,31/03/2018,Resources and Housing,Leeds Building Services,Supplies and Services,Operational Materials,205,25/03/2019,1803-00110,0.00,29.50 ,R,A J H  Pump Supply & Repair Ltd,No
Http://opendatacommunities.org/id/metropolitan-district-council/leeds,Leeds City Council,31/03/2018,Resources and Housing,Leeds Building Services,Supplies and Services,Operational Materials,205,25/03/2019,1803-00111,0.00,129.66 ,R,A J H  Pump Supply & Repair Ltd,No
Http://opendatacommunities.org/id/metropolitan-district-council/leeds,Leeds City Council,31/03/2018,Resources and Housing,Leeds Building Services,Supplies and Services,Operational Materials,205,25/03/2019,1803-00112,0.00,198.00 ,R,A J H  Pump Supply & Repair Ltd,No
Http://opendatacommunities.org/id/metropolitan-district-council/leeds,Leeds City Council,31/03/2018,Resources and Housing,Leeds Building Services,Supplies and Services,Operational Materials,205,25/03/2019,1803-00113,0.00,69.08 ,R,A J H  Pump Supply & Repair Ltd,No
Http://opendatacommunities.org/id/metropolitan-district-council/leeds,Leeds City Council,31/03/2018,Resources and Housing,Leeds Building Services,Supplies and Services,Operational Materials,205,26/03/2019,1803-00114,0.00,128.36 ,R,A J H  Pump Supply & Repair Ltd,No
Http://opendatacommunities.org/id/metropolitan-district-council/leeds,Leeds City Council,31/03/2018,Resources and Housing,Leeds Building Services,Supplies and Services,Operational Materials,205,26/03/2019,1803-00115,0.00,197.56 ,R,A J H  Pump Supply & Repair Ltd,No
Http://opendatacommunities.org/id/metropolitan-district-council/leeds,Leeds City Council,31/03/2018,Resources and Housing,Leeds Building Services,Supplies and Services,Operational Materials,205,26/03/2019,1803-00116,0.00,198.45 ,R,A J H  Pump Supply & Repair Ltd,No
Http://opendatacommunities.org/id/metropolitan-district-council/leeds,Leeds City Council,31/03/2018,Resources and Housing,Leeds Building Services,Supplies and Services,Other Hired And Contracted Services,265,28/03/2019,1803-00117,0.00,180.00 ,R,A J H  Pump Supply & Repair Ltd,No
Http://opendatacommunities.org/id/metropolitan-district-council/leeds,Leeds City Council,31/03/2018,Resources and Housing,Leeds Building Services,Supplies and Services,Operational Furniture And Equipment,203,29/03/2019,1803-00118,0.00,145.00 ,R,A J H  Pump Supply & Repair Ltd,No
Http://opendatacommunities.org/id/metropolitan-district-council/leeds,Leeds City Council,31/03/2018,Resources and Housing,Leeds Building Services,Supplies and Services,Operational Materials,205,29/03/2019,1803-00119,0.00,202.88 ,R,A J H  Pump Supply & Repair Ltd,No
Http://opendatacommunities.org/id/metropolitan-district-council/leeds,Leeds City Council,31/03/2018,Resources and Housing,Leeds Building Services,Supplies and Services,Operational Materials,205,29/03/2019,1803-00120,0.00,46.99 ,R,A J H  Pump Supply & Repair Ltd,No
Http://opendatacommunities.org/id/metropolitan-district-council/leeds,Leeds City Council,31/03/2018,Resources and Housing,Leeds Building Services,Supplies and Services,Operational Materials,205,29/03/2019,1803-00121,0.00,14.95 ,R,A J H  Pump Supply & Repair Ltd,No
Http://opendatacommunities.org/id/metropolitan-district-council/leeds,Leeds City Council,31/03/2018,Resources and Housing,Leeds Building Services,Supplies and Services,Operational Materials,205,29/03/2019,1803-00122,0.00,780.00 ,R,A J H  Pump Supply & Repair Ltd,No
Http://opendatacommunities.org/id/metropolitan-district-council/leeds,Leeds City Council,31/03/2018,Resources and Housing,Leeds Building Services,Supplies and Services,Operational Materials,205,29/03/2019,1803-00123,0.00,49.01 ,R,A J H  Pump Supply & Repair Ltd,No
Http://opendatacommunities.org/id/metropolitan-district-council/leeds,Leeds City Council,31/03/2018,Resources and Housing,Leeds Building Services,Supplies and Services,Operational Materials,205,29/03/2019,1803-00124,0.00,155.04 ,R,A J H  Pump Supply & Repair Ltd,No
Http://opendatacommunities.org/id/metropolitan-district-council/leeds,Leeds City Council,31/03/2018,Resources and Housing,Leeds Building Services,Supplies and Services,Operational Materials,205,29/03/2019,1803-00125,0.00,222.39 ,R,A J H  Pump Supply & Repair Ltd,No
Http://opendatacommunities.org/id/metropolitan-district-council/leeds,Leeds City Council,31/03/2018,Resources and Housing,Leeds Building Services,Supplies and Services,Operational Materials,205,29/03/2019,1803-00126,0.00,219.42 ,R,A J H  Pump Supply & Repair Ltd,No
Http://opendatacommunities.org/id/metropolitan-district-council/leeds,Leeds City Council,31/03/2018,Resources and Housing,Leeds Building Services,Supplies and Services,Operational Materials,205,29/03/2019,1803-00127,0.00,945.00 ,R,A J H  Pump Supply & Repair Ltd,No
Http://opendatacommunities.org/id/metropolitan-district-council/leeds,Leeds City Council,31/03/2018,Resources and Housing,Leeds Building Services,Supplies and Services,Operational Materials,205,29/03/2019,1803-00128,0.00,445.00 ,R,A J H  Pump Supply & Repair Ltd,No
Http://opendatacommunities.org/id/metropolitan-district-council/leeds,Leeds City Council,31/03/2018,Resources and Housing,Leeds Building Services,Supplies and Services,Operational Materials,205,29/03/2019,1803-00129,0.00,123.67 ,R,A J H  Pump Supply & Repair Ltd,No
Http://opendatacommunities.org/id/metropolitan-district-council/leeds,Leeds City Council,31/03/2018,Resources and Housing,Leeds Building Services,Supplies and Services,Operational Materials,205,29/03/2019,1803-00130,0.00,420.00 ,R,A J H  Pump Supply & Repair Ltd,No
Http://opendatacommunities.org/id/metropolitan-district-council/leeds,Leeds City Council,31/03/2018,Resources and Housing,Leeds Building Services,Supplies and Services,Operational Materials,205,29/03/2019,1803-00131,0.00,416.00 ,R,A J H  Pump Supply & Repair Ltd,No
Http://opendatacommunities.org/id/metropolitan-district-council/leeds,Leeds City Council,31/03/2018,Resources and Housing,Leeds Building Services,Supplies and Services,Operational Materials,205,29/03/2019,1803-00132,0.00,12.50 ,R,A J H  Pump Supply & Repair Ltd,No
Http://opendatacommunities.org/id/metropolitan-district-council/leeds,Leeds City Council,31/03/2018,Resources and Housing,Leeds Building Services,Supplies and Services,Operational Materials,205,29/03/2019,1803-00133,0.00,66.94 ,R,A J H  Pump Supply & Repair Ltd,No
Http://opendatacommunities.org/id/metropolitan-district-council/leeds,Leeds City Council,31/03/2018,Resources and Housing,Leeds Building Services,Supplies and Services,Operational Materials,205,29/03/2019,1803-00134,0.00,64.45 ,R,A J H  Pump Supply & Repair Ltd,No
Http://opendatacommunities.org/id/metropolitan-district-council/leeds,Leeds City Council,31/03/2018,Resources and Housing,Leeds Building Services,Supplies and Services,Operational Materials,205,29/03/2019,1803-00135,0.00,268.00 ,R,A J H  Pump Supply & Repair Ltd,No
Http://opendatacommunities.org/id/metropolitan-district-council/leeds,Leeds City Council,31/03/2018,Resources and Housing,Leeds Building Services,Supplies and Services,Operational Materials,205,29/03/2019,1803-00136,0.00,15.75 ,R,A J H  Pump Supply & Repair Ltd,No
Http://opendatacommunities.org/id/metropolitan-district-council/leeds,Leeds City Council,31/03/2018,Resources and Housing,Leeds Building Services,Supplies and Services,Operational Materials,205,29/03/2019,1803-00137,0.00,816.41 ,R,A J H  Pump Supply & Repair Ltd,No
Http://opendatacommunities.org/id/metropolitan-district-council/leeds,Leeds City Council,31/03/2018,Resources and Housing,Leeds Building Services,Supplies and Services,Operational Materials,205,29/03/2019,1803-00138,0.00,340.00 ,R,A J H  Pump Supply & Repair Ltd,No
Http://opendatacommunities.org/id/metropolitan-district-council/leeds,Leeds City Council,31/03/2018,Resources and Housing,Leeds Building Services,Supplies and Services,Operational Materials,205,29/03/2019,1803-00139,0.00,165.00 ,R,A J H  Pump Supply & Repair Ltd,No
Http://opendatacommunities.org/id/metropolitan-district-council/leeds,Leeds City Council,31/03/2018,Resources and Housing,Leeds Building Services,Supplies and Services,Operational Materials,205,29/03/2019,1803-00140,0.00,29.89 ,R,A J H  Pump Supply & Repair Ltd,No
Http://opendatacommunities.org/id/metropolitan-district-council/leeds,Leeds City Council,31/03/2018,Resources and Housing,Leeds Building Services,Supplies and Services,Operational Materials,205,29/03/2019,1803-00141,0.00,321.67 ,R,A J H  Pump Supply & Repair Ltd,No
Http://opendatacommunities.org/id/metropolitan-district-council/leeds,Leeds City Council,31/03/2018,Resources and Housing,Leeds Building Services,Supplies and Services,Operational Materials,205,29/03/2019,1803-00142,0.00,232.95 ,R,A J H  Pump Supply & Repair Ltd,No
Http://opendatacommunities.org/id/metropolitan-district-council/leeds,Leeds City Council,31/03/2018,Resources and Housing,Leeds Building Services,Supplies and Services,Operational Materials,205,29/03/2019,1803-00143,0.00,112.50 ,R,A J H  Pump Supply & Repair Ltd,No
Http://opendatacommunities.org/id/metropolitan-district-council/leeds,Leeds City Council,31/03/2018,Resources and Housing,Leeds Building Services,Supplies and Services,Operational Materials,205,29/03/2019,1803-00144,0.00,49.50 ,R,A J H  Pump Supply & Repair Ltd,No
Http://opendatacommunities.org/id/metropolitan-district-council/leeds,Leeds City Council,31/03/2018,City Development,Libraries  Arts & Heritage,Supplies and Services,Art Galleries Total Stores,3,15/03/2019,1803-00145,0.00,1059.80 ,R,A J Promotions,No
Http://opendatacommunities.org/id/metropolitan-district-council/leeds,Leeds City Council,31/03/2018,Communities and Environment,Parks and Countryside,Supplies and Services,Resaleable Materials,204,28/03/2019,1803-00146,0.00,283.25 ,R,A J Promotions,No
Http://opendatacommunities.org/id/metropolitan-district-council/leeds,Leeds City Council,31/03/2018,Children and Families,Social Care,Third Party Payments,Services Rendered By Other Organisations,511,15/03/2019,1803-00147,0.00,1844.50 ,R,REDACTED PERSONAL DATA,No
Http://opendatacommunities.org/id/metropolitan-district-council/leeds,Leeds City Council,31/03/2018,Children and Families,Social Care,Third Party Payments,Services Rendered By Other Organisations,511,20/03/2019,1803-00148,0.00,280.50 ,R,REDACTED PERSONAL DATA,No
Http://opendatacommunities.org/id/metropolitan-district-council/leeds,Leeds City Council,31/03/2018,Children and Families,Social Care,Supplies and Services,Other Hired And Contracted Services,265,13/03/2019,1803-00149,0.00,60.00 ,R,A L J Goonesekera,No
Http://opendatacommunities.org/id/metropolitan-district-council/leeds,Leeds City Council,31/03/2018,Resources and Housing,HRA Housing Leeds,Capital,Other Costs,7,21/03/2019,1803-00150,0.00,200.00 ,C,REDACTED PERSONAL DATA,No
Http://opendatacommunities.org/id/metropolitan-district-council/leeds,Leeds City Council,31/03/2018,Children and Families,Social Care,Third Party Payments,Services Rendered By Voluntary Sector,505,01/03/2019,1803-00151,0.00,-210.00 ,R,A Little Something Extra Ltd,No
Http://opendatacommunities.org/id/metropolitan-district-council/leeds,Leeds City Council,31/03/2018,Children and Families,Social Care,Third Party Payments,Services Rendered By Voluntary Sector,505,01/03/2019,1803-00152,0.00,-70.00 ,R,A Little Something Extra Ltd,No
Http://opendatacommunities.org/id/metropolitan-district-council/leeds,Leeds City Council,31/03/2018,Children and Families,Social Care,Third Party Payments,Services Rendered By Voluntary Sector,505,01/03/2019,1803-00153,0.00,595.00 ,R,A Little Something Extra Ltd,No
Http://opendatacommunities.org/id/metropolitan-district-council/leeds,Leeds City Council,31/03/2018,Communities and Environment,Communities,Supplies and Services,Other Hired And Contracted Services,265,01/03/2019,1803-00154,0.00,140.00 ,R,A Little Something Extra Ltd,No
Http://opendatacommunities.org/id/metropolitan-district-council/leeds,Leeds City Council,31/03/2018,Children and Families,Social Care,Third Party Payments,Services Rendered By Voluntary Sector,505,08/03/2019,1803-00155,0.00,700.00 ,R,A Little Something Extra Ltd,No
Http://opendatacommunities.org/id/metropolitan-district-council/leeds,Leeds City Council,31/03/2018,Children and Families,Social Care,Third Party Payments,Services Rendered By Voluntary Sector,505,08/03/2019,1803-00156,0.00,735.00 ,R,A Little Something Extra Ltd,No
Http://opendatacommunities.org/id/metropolitan-district-council/leeds,Leeds City Council,31/03/2018,Children and Families,Social Care,Third Party Payments,Services Rendered By Voluntary Sector,505,08/03/2019,1803-00157,0.00,822.50 ,R,A Little Something Extra Ltd,No
Http://opendatacommunities.org/id/metropolitan-district-council/leeds,Leeds City Council,31/03/2018,Children and Families,Social Care,Third Party Payments,Services Rendered By Voluntary Sector,505,08/03/2019,1803-00158,0.00,1225.00 ,R,A Little Something Extra Ltd,No
Http://opendatacommunities.org/id/metropolitan-district-council/leeds,Leeds City Council,31/03/2018,Children and Families,Social Care,Third Party Payments,Services Rendered By Voluntary Sector,505,08/03/2019,1803-00159,0.00,612.50 ,R,A Little Something Extra Ltd,No
Http://opendatacommunities.org/id/metropolitan-district-council/leeds,Leeds City Council,31/03/2018,Children and Families,Social Care,Third Party Payments,Services Rendered By Voluntary Sector,505,08/03/2019,1803-00160,0.00,1268.75 ,R,A Little Something Extra Ltd,No
Http://opendatacommunities.org/id/metropolitan-district-council/leeds,Leeds City Council,31/03/2018,Children and Families,Social Care,Supplies and Services,Other Hired And Contracted Services,265,18/03/2019,1803-00161,0.00,227.50 ,R,A Little Something Extra Ltd,No
Http://opendatacommunities.org/id/metropolitan-district-council/leeds,Leeds City Council,31/03/2018,Children and Families,Social Care,Supplies and Services,Other Hired And Contracted Services,265,18/03/2019,1803-00162,0.00,157.50 ,R,A Little Something Extra Ltd,No
Http://opendatacommunities.org/id/metropolitan-district-council/leeds,Leeds City Council,31/03/2018,Children and Families,Social Care,Third Party Payments,Services Rendered By Voluntary Sector,505,18/03/2019,1803-00163,0.00,620.00 ,R,A Little Something Extra Ltd,No
Http://opendatacommunities.org/id/metropolitan-district-council/leeds,Leeds City Council,31/03/2018,Children and Families,Social Care,Third Party Payments,Services Rendered By Other Organisations,511,18/03/2019,1803-00164,0.00,992.00 ,R,A Little Something Extra Ltd,No
Http://opendatacommunities.org/id/metropolitan-district-council/leeds,Leeds City Council,31/03/2018,Children and Families,Social Care,Third Party Payments,Services Rendered By Other Organisations,511,18/03/2019,1803-00165,0.00,620.00 ,R,A Little Something Extra Ltd,No
Http://opendatacommunities.org/id/metropolitan-district-council/leeds,Leeds City Council,31/03/2018,Children and Families,Social Care,Third Party Payments,Services Rendered By Other Organisations,511,18/03/2019,1803-00166,0.00,558.00 ,R,A Little Something Extra Ltd,No
Http://opendatacommunities.org/id/metropolitan-district-council/leeds,Leeds City Council,31/03/2018,Children and Families,Social Care,Third Party Payments,Placement Support,550,26/03/2019,1803-00167,0.00,65.00 ,R,REDACTED PERSONAL DATA,No
Http://opendatacommunities.org/id/metropolitan-district-council/leeds,Leeds City Council,31/03/2018,Communities and Environment,Customer Access,Supplies and Services,Other Hired And Contracted Services,265,07/03/2019,1803-00168,0.00,733.50 ,R,A Mohammed,No
Http://opendatacommunities.org/id/metropolitan-district-council/leeds,Leeds City Council,31/03/2018,Children and Families,Social Care,Third Party Payments,Services Rendered By Other Organisations,511,15/03/2019,1803-00169,0.00,935.00 ,R,A Myland,No
Http://opendatacommunities.org/id/metropolitan-district-council/leeds,Leeds City Council,31/03/2018,Children and Families,Social Care,Third Party Payments,Services Rendered By Other Organisations,511,15/03/2019,1803-00170,0.00,87.45 ,R,A Myland,No
Http://opendatacommunities.org/id/metropolitan-district-council/leeds,Leeds City Council,31/03/2018,Children and Families,Social Care,Third Party Payments,Services Rendered By Other Organisations,511,20/03/2019,1803-00171,0.00,1963.50 ,R,A Myland,No
Http://opendatacommunities.org/id/metropolitan-district-council/leeds,Leeds City Council,31/03/2018,Communities and Environment,Customer Access,Supplies and Services,Other Hired And Contracted Services,265,07/03/2019,1803-00172,0.00,121.50 ,R,A Namaki,No
Http://opendatacommunities.org/id/metropolitan-district-council/leeds,Leeds City Council,31/03/2018,Children and Families,Social Care  ,Transfer Payments,Leaving Care Grants,635,20/02/2019,1803-00173,0.00,350.00 ,R,A S Carpet And Furnishing,Yes
Http://opendatacommunities.org/id/metropolitan-district-council/leeds,Leeds City Council,31/03/2018,Children and Families,Social Care,Third Party Payments,Services Rendered By Other Organisations,511,15/03/2019,1803-00174,0.00,1601.19 ,R,REDACTED PERSONAL DATA,No
Http://opendatacommunities.org/id/metropolitan-district-council/leeds,Leeds City Council,31/03/2018,Resources and Housing,Shared Services,Supplies and Services,Other Hired And Contracted Services,265,01/03/2019,1803-00175,0.00,81.25 ,R,A Star Couriers Ltd,No
Http://opendatacommunities.org/id/metropolitan-district-council/leeds,Leeds City Council,31/03/2018,Resources and Housing,Shared Services,Supplies and Services,Other Hired And Contracted Services,265,08/03/2019,1803-00176,0.00,35.00 ,R,A Star Couriers Ltd,No
Http://opendatacommunities.org/id/metropolitan-district-council/leeds,Leeds City Council,31/03/2018,Resources and Housing,Shared Services,Supplies and Services,Other Hired And Contracted Services,265,22/03/2019,1803-00177,0.00,176.25 ,R,A Star Couriers Ltd,No
Http://opendatacommunities.org/id/metropolitan-district-council/leeds,Leeds City Council,31/03/2018,Resources and Housing,Shared Services,Supplies and Services,Other Hired And Contracted Services,265,22/03/2019,1803-00178,0.00,46.25 ,R,A Star Couriers Ltd,No
Http://opendatacommunities.org/id/metropolitan-district-council/leeds,Leeds City Council,31/03/2018,Communities and Environment,Communities,Supplies and Services,Other Hired And Contracted Services,265,27/03/2019,1803-00179,0.00,100.00 ,R,REDACTED PERSONAL DATA,No
Http://opendatacommunities.org/id/metropolitan-district-council/leeds,Leeds City Council,31/03/2018,City Development,Markets & City Centre Management,Supplies and Services,Publication And Promotion,267,29/03/2019,1803-00180,0.00,250.00 ,R,A T Graphics Limited,No
Http://opendatacommunities.org/id/metropolitan-district-council/leeds,Leeds City Council,31/03/2018,Communities and Environment,Waste Management,Employees,Training & Development,70,22/03/2019,1803-00181,0.00,108.00 ,R,A T Nerac Ltd,No
Http://opendatacommunities.org/id/metropolitan-district-council/leeds,Leeds City Council,31/03/2018,Children and Families,Social Care,Third Party Payments,Placement Support,550,04/03/2019,1803-00182,0.00,720.00 ,R,A Taxis,No
Http://opendatacommunities.org/id/metropolitan-district-council/leeds,Leeds City Council,31/03/2018,Children and Families,Social Care,Third Party Payments,Services Rendered By Other Organisations,511,15/03/2019,1803-00183,0.00,233.75 ,R,REDACTED PERSONAL DATA,No
Http://opendatacommunities.org/id/metropolitan-district-council/leeds,Leeds City Council,31/03/2018,Children and Families,Social Care,Third Party Payments,Services Rendered By Other Organisations,511,20/03/2019,1803-00184,0.00,280.50 ,R,REDACTED PERSONAL DATA,No
Http://opendatacommunities.org/id/metropolitan-district-council/leeds,Leeds City Council,31/03/2018,Children and Families,Social Care,Third Party Payments,Services Rendered By Other Organisations,511,15/03/2019,1803-00185,0.00,467.50 ,R,REDACTED PERSONAL DATA,No
Http://opendatacommunities.org/id/metropolitan-district-council/leeds,Leeds City Council,31/03/2018,Communities and Environment,Waste Management,Employees,Occupational Health,85,26/03/2019,1803-00186,0.00,85.00 ,R,REDACTED PERSONAL DATA,No
Http://opendatacommunities.org/id/metropolitan-district-council/leeds,Leeds City Council,31/03/2018,Children and Families,Social Care,Third Party Payments,General External Residential Placements,507,06/03/2019,1803-00187,0.00,16639.84 ,R,A Wilderness Way Ltd,No
Http://opendatacommunities.org/id/metropolitan-district-council/leeds,Leeds City Council,31/03/2018,Children and Families,Social Care,Third Party Payments,General External Residential Placements,507,06/03/2019,1803-00188,0.00,19334.91 ,R,A Wilderness Way Ltd,No
Http://opendatacommunities.org/id/metropolitan-district-council/leeds,Leeds City Council,31/03/2018,Children and Families,Social Care,Third Party Payments,General External Residential Placements,507,13/03/2019,1803-00189,0.00,89.10 ,R,A Wilderness Way Ltd,No
Http://opendatacommunities.org/id/metropolitan-district-council/leeds,Leeds City Council,31/03/2018,Children and Families,Social Care,Third Party Payments,General External Residential Placements,507,13/03/2019,1803-00190,0.00,737.50 ,R,A Wilderness Way Ltd,No
Http://opendatacommunities.org/id/metropolitan-district-council/leeds,Leeds City Council,31/03/2018,Communities and Environment,Waste Management,Capital,Furniture And Equipment,5,06/03/2019,1803-00191,0.00,3645.00 ,C,A&C Weber Uk Ltd,No
Http://opendatacommunities.org/id/metropolitan-district-council/leeds,Leeds City Council,31/03/2018,Communities and Environment,Waste Management,Capital,Furniture And Equipment,5,08/03/2019,1803-00192,0.00,1017.60 ,C,A&C Weber Uk Ltd,No
Http://opendatacommunities.org/id/metropolitan-district-council/leeds,Leeds City Council,31/03/2018,Communities and Environment,Waste Management,Capital,Furniture And Equipment,5,12/03/2019,1803-00193,0.00,5467.50 ,C,A&C Weber Uk Ltd,No
Http://opendatacommunities.org/id/metropolitan-district-council/leeds,Leeds City Council,31/03/2018,Communities and Environment,Waste Management,Capital,Furniture And Equipment,5,19/03/2019,1803-00194,0.00,6628.50 ,C,A&C Weber Uk Ltd,No
Http://opendatacommunities.org/id/metropolitan-district-council/leeds,Leeds City Council,31/03/2018,Resources and Housing,Strategic Housing Partnerships,Capital,Construction,3,11/03/2019,1803-00195,0.00,9950.00 ,C,A.D.J. Developments,No
Http://opendatacommunities.org/id/metropolitan-district-council/leeds,Leeds City Council,31/03/2018,Resources and Housing,Leeds Building Services,Supplies and Services,Operational Materials,205,21/03/2019,1803-00196,0.00,108.00 ,R,A1 Stair Lift Services,No
Http://opendatacommunities.org/id/metropolitan-district-council/leeds,Leeds City Council,31/03/2018,Resources and Housing,Leeds Building Services,Supplies and Services,Other Hired And Contracted Services,265,28/03/2019,1803-00197,0.00,1700.00 ,R,A1 Stair Lift Services,No
Http://opendatacommunities.org/id/metropolitan-district-council/leeds,Leeds City Council,31/03/2018,Resources and Housing,Leeds Building Services,Supplies and Services,Other Hired And Contracted Services,265,28/03/2019,1803-00198,0.00,1500.00 ,R,A1 Stair Lift Services,No
Http://opendatacommunities.org/id/metropolitan-district-council/leeds,Leeds City Council,31/03/2018,Resources and Housing,Leeds Building Services,Supplies and Services,Other Hired And Contracted Services,265,28/03/2019,1803-00199,0.00,565.00 ,R,A1 Stair Lift Services,No
Http://opendatacommunities.org/id/metropolitan-district-council/leeds,Leeds City Council,31/03/2018,Resources and Housing,Leeds Building Services,Supplies and Services,Operational Materials,205,05/03/2019,1803-00200,0.00,100.00 ,R,Aalco Leeds,No
Http://opendatacommunities.org/id/metropolitan-district-council/leeds,Leeds City Council As Accountable Body,31/03/2018,Social Services Pooled Budgets,Leeds Community Equip Store Pooled Budgt,Supplies and Services,Other Equipment,203,01/03/2019,1803-00201,0.00,664.00 ,R,Aat (Gb) Ltd,No
Http://opendatacommunities.org/id/metropolitan-district-council/leeds,Leeds City Council As Accountable Body,31/03/2018,Social Services Pooled Budgets,Leeds Community Equip Store Pooled Budgt,Supplies and Services,Other Equipment,203,20/03/2019,1803-00202,0.00,1099.00 ,R,Aat (Gb) Ltd,No
Http://opendatacommunities.org/id/metropolitan-district-council/leeds,Leeds City Council As Accountable Body,31/03/2018,Social Services Pooled Budgets,Leeds Community Equip Store Pooled Budgt,Supplies and Services,Other Equipment,203,22/03/2019,1803-00203,0.00,5519.00 ,R,Aat (Gb) Ltd,No
Http://opendatacommunities.org/id/metropolitan-district-council/leeds,Leeds City Council,31/03/2018,Adults and Health,Social Services Support Services,Transport,Public Transport Expenses,310,22/03/2019,1803-00204,0.00,190.00 ,R,Ab Cars,No
Http://opendatacommunities.org/id/metropolitan-district-council/leeds,Leeds City Council,31/03/2018,Children and Families,Social Care,Support Services,Legal Disbursements,411,05/03/2019,1803-00205,0.00,21.50 ,R,Abacus Express Limited,No
Http://opendatacommunities.org/id/metropolitan-district-council/leeds,Leeds City Council,31/03/2018,Children and Families,Social Care,Support Services,Legal Disbursements,411,08/03/2019,1803-00206,0.00,31.02 ,R,Abacus Express Limited,No
Http://opendatacommunities.org/id/metropolitan-district-council/leeds,Leeds City Council,31/03/2018,Children and Families,Social Care,Support Services,Legal Disbursements,411,08/03/2019,1803-00207,0.00,31.02 ,R,Abacus Express Limited,No
Http://opendatacommunities.org/id/metropolitan-district-council/leeds,Leeds City Council,31/03/2018,Children and Families,Social Care,Support Services,Legal Disbursements,411,08/03/2019,1803-00208,0.00,31.02 ,R,Abacus Express Limited,No
Http://opendatacommunities.org/id/metropolitan-district-council/leeds,Leeds City Council,31/03/2018,City Development,Planning & Sustainable Development,Supplies and Services,Other Hired And Contracted Services,265,13/03/2019,1803-00209,0.00,15.59 ,R,Abacus Express Limited,No
Http://opendatacommunities.org/id/metropolitan-district-council/leeds,Leeds City Council,31/03/2018,Children and Families,Social Care,Support Services,Legal Disbursements,411,22/03/2019,1803-00210,0.00,31.02 ,R,Abacus Express Limited,No
Http://opendatacommunities.org/id/metropolitan-district-council/leeds,Leeds City Council,31/03/2018,Children and Families,Social Care,Support Services,Legal Disbursements,411,22/03/2019,1803-00211,0.00,31.02 ,R,Abacus Express Limited,No
Http://opendatacommunities.org/id/metropolitan-district-council/leeds,Leeds City Council,31/03/2018,Adults and Health,Services For Adults Under 65 Mental/Dis,Third Party Payments,Nursing Home,570,06/03/2019,1803-00212,0.00,1852.00 ,R,Abbey Grange Nursing Home,No
Http://opendatacommunities.org/id/metropolitan-district-council/leeds,Leeds City Council,31/03/2018,City Development,Libraries  Arts & Heritage  ,Supplies and Services,Operational Materials,205,14/02/2019,1803-00213,0.00,81.09 ,R,Abbey House Museum,Yes
Http://opendatacommunities.org/id/metropolitan-district-council/leeds,Leeds City Council,31/03/2018,Children and Families,Learning,Supplies and Services,Other Hired And Contracted Services,265,04/03/2019,1803-00214,0.00,1894.88 ,R,Abbey Multi Academy Trust,No
Http://opendatacommunities.org/id/metropolitan-district-council/leeds,Leeds City Council,31/03/2018,Children and Families,Social Care,Premises,Hire of meeting rooms,143,07/03/2019,1803-00215,0.00,50.00 ,R,Abbey Multi Academy Trust,No
Http://opendatacommunities.org/id/metropolitan-district-council/leeds,Leeds City Council,31/03/2018,Children and Families,Social Care,Supplies and Services,Food & Drink,231,07/03/2019,1803-00216,0.00,216.00 ,R,Abbey Multi Academy Trust,No
Http://opendatacommunities.org/id/metropolitan-district-council/leeds,Leeds City Council,31/03/2018,Children and Families,Learning,Supplies and Services,Other Hired And Contracted Services,265,08/03/2019,1803-00217,0.00,136.40 ,R,Abbey Multi Academy Trust,No
Http://opendatacommunities.org/id/metropolitan-district-council/leeds,Leeds City Council,31/03/2018,Children and Families,Learning,Supplies and Services,Other Hired And Contracted Services,265,08/03/2019,1803-00218,0.00,170.00 ,R,Abbey Multi Academy Trust,No
Http://opendatacommunities.org/id/metropolitan-district-council/leeds,Leeds City Council,31/03/2018,Communities and Environment,Parks and Countryside,Supplies and Services,Other Hired And Contracted Services,265,01/03/2019,1803-00219,0.00,1070.00 ,R,Abbotts Memorials,No
Http://opendatacommunities.org/id/metropolitan-district-council/leeds,Leeds City Council,31/03/2018,Children and Families,Social Care,Third Party Payments,Services Rendered By Other Organisations,511,15/03/2019,1803-00220,0.00,14658.25 ,R,Abc Daycare And Ozone Out Of School,No
Http://opendatacommunities.org/id/metropolitan-district-council/leeds,Leeds City Council,31/03/2018,Children and Families,Social Care,Third Party Payments,Services Rendered By Other Organisations,511,15/03/2019,1803-00221,0.00,174.90 ,R,Abc Daycare And Ozone Out Of School,No
Http://opendatacommunities.org/id/metropolitan-district-council/leeds,Leeds City Council,31/03/2018,Children and Families,Social Care,Third Party Payments,Services Rendered By Other Organisations,511,20/03/2019,1803-00222,0.00,2524.50 ,R,Abc Daycare And Ozone Out Of School,No
Http://opendatacommunities.org/id/metropolitan-district-council/leeds,Leeds City Council,31/03/2018,Children and Families,Social Care,Third Party Payments,Services Rendered By Other Organisations,511,15/03/2019,1803-00223,0.00,6247.50 ,R,Abc Nursery At Lufc,No
Http://opendatacommunities.org/id/metropolitan-district-council/leeds,Leeds City Council,31/03/2018,Children and Families,Social Care,Third Party Payments,Services Rendered By Other Organisations,511,15/03/2019,1803-00224,0.00,233.20 ,R,Abc Nursery At Lufc,No
Http://opendatacommunities.org/id/metropolitan-district-council/leeds,Leeds City Council,31/03/2018,Children and Families,Social Care,Third Party Payments,Services Rendered By Other Organisations,511,20/03/2019,1803-00225,0.00,5924.50 ,R,Abc Nursery At Lufc,No
Http://opendatacommunities.org/id/metropolitan-district-council/leeds,Leeds City Council,31/03/2018,Children and Families,Social Care,Third Party Payments,Services Rendered By Other Organisations,511,15/03/2019,1803-00226,0.00,262.35 ,R,Abc@D'S Childcare Services,No
Http://opendatacommunities.org/id/metropolitan-district-council/leeds,Leeds City Council,31/03/2018,Children and Families,Social Care,Third Party Payments,Services Rendered By Other Organisations,511,15/03/2019,1803-00227,0.00,615.00 ,R,Abc@D'S Childcare Services,No
Http://opendatacommunities.org/id/metropolitan-district-council/leeds,Leeds City Council,31/03/2018,Children and Families,Social Care,Third Party Payments,Services Rendered By Other Organisations,511,15/03/2019,1803-00228,0.00,8415.00 ,R,Abc@D'S Childcare Services,No
Http://opendatacommunities.org/id/metropolitan-district-council/leeds,Leeds City Council,31/03/2018,Children and Families,Social Care,Third Party Payments,Services Rendered By Other Organisations,511,20/03/2019,1803-00229,0.00,3085.50 ,R,Abc@D'S Childcare Services,No
Http://opendatacommunities.org/id/metropolitan-district-council/leeds,Leeds City Council,31/03/2018,Resources and Housing,Strategic Housing Partnerships,Capital,Construction,3,08/03/2019,1803-00230,0.00,6040.00 ,C,REDACTED PERSONAL DATA,No
Http://opendatacommunities.org/id/metropolitan-district-council/leeds,Leeds City Council,31/03/2018,Communities and Environment,Customer Access,Supplies and Services,Other Hired And Contracted Services,265,07/03/2019,1803-00231,0.00,54.00 ,R,Abdul Wadood Kazizadha,No
Http://opendatacommunities.org/id/metropolitan-district-council/leeds,Leeds City Council,31/03/2018,Communities and Environment,Customer Access,Supplies and Services,Other Hired And Contracted Services,265,07/03/2019,1803-00232,0.00,171.00 ,R,Abdulahad Denha,No
Http://opendatacommunities.org/id/metropolitan-district-council/leeds,Leeds City Council,31/03/2018,Adults and Health,Services For Older People - 65 And Over,Third Party Payments,Nursing Home,570,06/03/2019,1803-00233,0.00,27733.04 ,R,Aberford Hall,No
Http://opendatacommunities.org/id/metropolitan-district-council/leeds,Leeds City Council,31/03/2018,Adults and Health,Services For Older People - 65 And Over,Third Party Payments,Residential,580,06/03/2019,1803-00234,0.00,11857.24 ,R,Aberford Hall,No
Http://opendatacommunities.org/id/metropolitan-district-council/leeds,Leeds City Council,31/03/2018,Resources and Housing,Leeds Building Services,Supplies and Services,Operational Materials,205,05/03/2019,1803-00235,0.00,5469.45 ,R,Abi Garage Doors Ltd,No
Http://opendatacommunities.org/id/metropolitan-district-council/leeds,Leeds City Council,31/03/2018,Resources and Housing,Leeds Building Services,Supplies and Services,Operational Materials,205,06/03/2019,1803-00236,0.00,1041.80 ,R,Abi Garage Doors Ltd,No
Http://opendatacommunities.org/id/metropolitan-district-council/leeds,Leeds City Council,31/03/2018,Resources and Housing,Leeds Building Services,Supplies and Services,Operational Materials,205,15/03/2019,1803-00237,0.00,260.45 ,R,Abi Garage Doors Ltd,No
Http://opendatacommunities.org/id/metropolitan-district-council/leeds,Leeds City Council,31/03/2018,Resources and Housing,Leeds Building Services,Supplies and Services,Operational Materials,205,18/03/2019,1803-00238,0.00,49.60 ,R,Abi Garage Doors Ltd,No
Http://opendatacommunities.org/id/metropolitan-district-council/leeds,Leeds City Council,31/03/2018,Resources and Housing,Leeds Building Services,Supplies and Services,Operational Materials,205,29/03/2019,1803-00239,0.00,2083.60 ,R,Abi Garage Doors Ltd,No
Http://opendatacommunities.org/id/metropolitan-district-council/leeds,Leeds City Council,31/03/2018,Children and Families,Social Care  ,Transfer Payments,Leaving Care Allowances,634,05/02/2019,1803-00240,0.00,11.16 ,R,Abu Bakar,Yes
Http://opendatacommunities.org/id/metropolitan-district-council/leeds,Leeds City Council,31/03/2018,Communities and Environment,Parks And Countryside  ,Supplies and Services,Operational Materials,205,12/02/2019,1803-00241,0.00,220.00 ,R,Abwak.Org Purchase,Yes
Http://opendatacommunities.org/id/metropolitan-district-council/leeds,Leeds City Council,31/03/2018,Communities and Environment,Parks And Countryside  ,Supplies and Services,Operational Materials,205,12/02/2019,1803-00242,0.00,250.00 ,R,Abwak.Org Purchase,Yes
Http://opendatacommunities.org/id/metropolitan-district-council/leeds,Leeds City Council,31/03/2018,Children and Families,Social Care,Employees,Agency Staff,8,01/03/2019,1803-00243,0.00,587.75 ,R,Academic Appointments Ltd,No
Http://opendatacommunities.org/id/metropolitan-district-council/leeds,Leeds City Council,31/03/2018,Children and Families,Social Care,Employees,Agency Staff,8,01/03/2019,1803-00244,0.00,2575.00 ,R,Academic Appointments Ltd,No
Http://opendatacommunities.org/id/metropolitan-district-council/leeds,Leeds City Council,31/03/2018,Children and Families,Learning,Employees,Agency Staff,8,07/03/2019,1803-00245,0.00,206.80 ,R,Academic Appointments Ltd,No
Http://opendatacommunities.org/id/metropolitan-district-council/leeds,Leeds City Council,31/03/2018,Children and Families,Social Care,Employees,Agency Staff,8,07/03/2019,1803-00246,0.00,587.75 ,R,Academic Appointments Ltd,No
Http://opendatacommunities.org/id/metropolitan-district-council/leeds,Leeds City Council,31/03/2018,Children and Families,Social Care,Employees,Agency Staff,8,07/03/2019,1803-00247,0.00,2940.72 ,R,Academic Appointments Ltd,No
Http://opendatacommunities.org/id/metropolitan-district-council/leeds,Leeds City Council,31/03/2018,Children and Families,Learning,Employees,Agency Staff,8,14/03/2019,1803-00248,0.00,85.00 ,R,Academic Appointments Ltd,No
Http://opendatacommunities.org/id/metropolitan-district-council/leeds,Leeds City Council,31/03/2018,Children and Families,Social Care,Third Party Payments, Direct Work,549,14/03/2019,1803-00249,0.00,85.98 ,R,Academic Appointments Ltd,No
Http://opendatacommunities.org/id/metropolitan-district-council/leeds,Leeds City Council,31/03/2018,Children and Families,Social Care,Employees,Agency Staff,8,15/03/2019,1803-00250,0.00,2480.00 ,R,Academic Appointments Ltd,No
Http://opendatacommunities.org/id/metropolitan-district-council/leeds,Leeds City Council,31/03/2018,Children and Families,Social Care,Employees,Agency Staff,8,15/03/2019,1803-00251,0.00,1714.75 ,R,Academic Appointments Ltd,No
Http://opendatacommunities.org/id/metropolitan-district-council/leeds,Leeds City Council,31/03/2018,Children and Families,Social Care,Employees,Agency Staff,8,22/03/2019,1803-00252,0.00,2810.60 ,R,Academic Appointments Ltd,No
Http://opendatacommunities.org/id/metropolitan-district-council/leeds,Leeds City Council,31/03/2018,Children and Families,Social Care,Employees,Agency Staff,8,22/03/2019,1803-00253,0.00,1665.50 ,R,Academic Appointments Ltd,No
Http://opendatacommunities.org/id/metropolitan-district-council/leeds,Leeds City Council,31/03/2018,Children and Families,Learning,Employees,Agency Staff,8,27/03/2019,1803-00254,0.00,1304.24 ,R,Academic Appointments Ltd,No
Http://opendatacommunities.org/id/metropolitan-district-council/leeds,Leeds City Council,31/03/2018,Children and Families,Social Care,Employees,Agency Staff,8,29/03/2019,1803-00255,0.00,3327.75 ,R,Academic Appointments Ltd,No
Http://opendatacommunities.org/id/metropolitan-district-council/leeds,Leeds City Council,31/03/2018,Children and Families,Social Care,Employees,Agency Staff,8,29/03/2019,1803-00256,0.00,2011.60 ,R,Academic Appointments Ltd,No
Http://opendatacommunities.org/id/metropolitan-district-council/leeds,Leeds City Council,31/03/2018,Children and Families,Social Care,Third Party Payments,Services Rendered By Other Organisations,511,18/03/2019,1803-00257,0.00,6426.00 ,R,Academies Enterprise Trust (Aet),No
Http://opendatacommunities.org/id/metropolitan-district-council/leeds,Leeds City Council,31/03/2018,Communities and Environment,Community Safety,Transport,Hire Of Movable Plant & Machinery,315,27/03/2019,1803-00258,0.00,1184.00 ,R,Access Hire Nationwide Ltd,No
Http://opendatacommunities.org/id/metropolitan-district-council/leeds,Leeds City Council,31/03/2018,Communities and Environment,Cleaner Neighbourhood Teams,Supplies and Services,Operational Furniture And Equipment,203,01/03/2019,1803-00259,0.00,241.24 ,R,Access Locksmiths (Leeds) Limited,No
Http://opendatacommunities.org/id/metropolitan-district-council/leeds,Leeds City Council,31/03/2018,Resources and Housing,HRA Housing Leeds,Capital,Construction,3,01/03/2019,1803-00260,0.00,251.24 ,C,Access Locksmiths (Leeds) Limited,No
Http://opendatacommunities.org/id/metropolitan-district-council/leeds,Leeds City Council,31/03/2018,Resources and Housing,Leeds Building Services,Premises,Maintenance Of Buildings,101,01/03/2019,1803-00261,0.00,5.00 ,R,Access Locksmiths (Leeds) Limited,No
Http://opendatacommunities.org/id/metropolitan-district-council/leeds,Leeds City Council,31/03/2018,Strategic Landlord,Housing Management,Premises,Fixtures & Fittings,131,01/03/2019,1803-00262,0.00,273.60 ,R,Access Locksmiths (Leeds) Limited,No
Http://opendatacommunities.org/id/metropolitan-district-council/leeds,Leeds City Council,31/03/2018,Strategic Landlord,Housing Management,Supplies and Services,Resaleable Materials,204,01/03/2019,1803-00263,0.00,26.00 ,R,Access Locksmiths (Leeds) Limited,No
Http://opendatacommunities.org/id/metropolitan-district-council/leeds,Leeds City Council,31/03/2018,Strategic Landlord,Housing Management,Supplies and Services,Office Consumables,210,01/03/2019,1803-00264,0.00,13.82 ,R,Access Locksmiths (Leeds) Limited,No
Http://opendatacommunities.org/id/metropolitan-district-council/leeds,Leeds City Council,31/03/2018,Resources and Housing,Leeds Building Services,Supplies and Services,Operational Materials,205,12/03/2019,1803-00265,0.00,18.34 ,R,Access Locksmiths (Leeds) Limited,No
Http://opendatacommunities.org/id/metropolitan-district-council/leeds,Leeds City Council,31/03/2018,Resources and Housing,Leeds Building Services,Supplies and Services,Operational Materials,205,12/03/2019,1803-00266,0.00,144.73 ,R,Access Locksmiths (Leeds) Limited,No
Http://opendatacommunities.org/id/metropolitan-district-council/leeds,Leeds City Council,31/03/2018,Resources and Housing,Leeds Building Services,Supplies and Services,Operational Materials,205,12/03/2019,1803-00267,0.00,11.70 ,R,Access Locksmiths (Leeds) Limited,No
Http://opendatacommunities.org/id/metropolitan-district-council/leeds,Leeds City Council,31/03/2018,Resources and Housing,Leeds Building Services,Supplies and Services,Operational Materials,205,12/03/2019,1803-00268,0.00,116.88 ,R,Access Locksmiths (Leeds) Limited,No
Http://opendatacommunities.org/id/metropolitan-district-council/leeds,Leeds City Council,31/03/2018,Resources and Housing,Leeds Building Services,Supplies and Services,Operational Materials,205,12/03/2019,1803-00269,0.00,12.60 ,R,Access Locksmiths (Leeds) Limited,No
Http://opendatacommunities.org/id/metropolitan-district-council/leeds,Leeds City Council,31/03/2018,Resources and Housing,Leeds Building Services,Supplies and Services,Operational Materials,205,12/03/2019,1803-00270,0.00,13.96 ,R,Access Locksmiths (Leeds) Limited,No
Http://opendatacommunities.org/id/metropolitan-district-council/leeds,Leeds City Council,31/03/2018,Resources and Housing,Leeds Building Services,Supplies and Services,Operational Materials,205,12/03/2019,1803-00271,0.00,149.67 ,R,Access Locksmiths (Leeds) Limited,No
Http://opendatacommunities.org/id/metropolitan-district-council/leeds,Leeds City Council,31/03/2018,Resources and Housing,Leeds Building Services,Supplies and Services,Operational Materials,205,12/03/2019,1803-00272,0.00,10.14 ,R,Access Locksmiths (Leeds) Limited,No
Http://opendatacommunities.org/id/metropolitan-district-council/leeds,Leeds City Council,31/03/2018,Resources and Housing,Leeds Building Services,Supplies and Services,Operational Materials,205,12/03/2019,1803-00273,0.00,16.83 ,R,Access Locksmiths (Leeds) Limited,No
Http://opendatacommunities.org/id/metropolitan-district-council/leeds,Leeds City Council,31/03/2018,Resources and Housing,Leeds Building Services,Supplies and Services,Operational Materials,205,12/03/2019,1803-00274,0.00,41.13 ,R,Access Locksmiths (Leeds) Limited,No
Http://opendatacommunities.org/id/metropolitan-district-council/leeds,Leeds City Council,31/03/2018,Resources and Housing,Leeds Building Services,Supplies and Services,Operational Materials,205,12/03/2019,1803-00275,0.00,24.58 ,R,Access Locksmiths (Leeds) Limited,No
Http://opendatacommunities.org/id/metropolitan-district-council/leeds,Leeds City Council,31/03/2018,Resources and Housing,Leeds Building Services,Supplies and Services,Operational Materials,205,12/03/2019,1803-00276,0.00,12.38 ,R,Access Locksmiths (Leeds) Limited,No
Http://opendatacommunities.org/id/metropolitan-district-council/leeds,Leeds City Council,31/03/2018,Resources and Housing,Leeds Building Services,Supplies and Services,Operational Materials,205,12/03/2019,1803-00277,0.00,4.68 ,R,Access Locksmiths (Leeds) Limited,No
Http://opendatacommunities.org/id/metropolitan-district-council/leeds,Leeds City Council,31/03/2018,Resources and Housing,Leeds Building Services,Supplies and Services,Operational Materials,205,12/03/2019,1803-00278,0.00,31.35 ,R,Access Locksmiths (Leeds) Limited,No
Http://opendatacommunities.org/id/metropolitan-district-council/leeds,Leeds City Council,31/03/2018,Resources and Housing,Leeds Building Services,Supplies and Services,Operational Materials,205,13/03/2019,1803-00279,0.00,21.06 ,R,Access Locksmiths (Leeds) Limited,No
Http://opendatacommunities.org/id/metropolitan-district-council/leeds,Leeds City Council,31/03/2018,Resources and Housing,Leeds Building Services,Supplies and Services,Operational Materials,205,13/03/2019,1803-00280,0.00,142.78 ,R,Access Locksmiths (Leeds) Limited,No
Http://opendatacommunities.org/id/metropolitan-district-council/leeds,Leeds City Council,31/03/2018,Communities and Environment,Cleaner Neighbourhood Teams,Supplies and Services,Operational Furniture And Equipment,203,15/03/2019,1803-00281,0.00,13.74 ,R,Access Locksmiths (Leeds) Limited,No
Http://opendatacommunities.org/id/metropolitan-district-council/leeds,Leeds City Council,31/03/2018,Communities and Environment,Cleaner Neighbourhood Teams,Supplies and Services,Other Hired And Contracted Services,265,15/03/2019,1803-00282,0.00,94.04 ,R,Access Locksmiths (Leeds) Limited,No
Http://opendatacommunities.org/id/metropolitan-district-council/leeds,Leeds City Council,31/03/2018,Strategic Landlord,Housing Management,Premises,General Maintenance,104,15/03/2019,1803-00283,0.00,114.00 ,R,Access Locksmiths (Leeds) Limited,No
Http://opendatacommunities.org/id/metropolitan-district-council/leeds,Leeds City Council,31/03/2018,Strategic Landlord,Housing Management,Premises,General Maintenance,104,15/03/2019,1803-00284,0.00,46.80 ,R,Access Locksmiths (Leeds) Limited,No
Http://opendatacommunities.org/id/metropolitan-district-council/leeds,Leeds City Council,31/03/2018,Strategic Landlord,Housing Management,Supplies and Services,Resaleable Materials,204,15/03/2019,1803-00285,0.00,1532.16 ,R,Access Locksmiths (Leeds) Limited,No
Http://opendatacommunities.org/id/metropolitan-district-council/leeds,Leeds City Council,31/03/2018,Strategic Landlord,Housing Management,Supplies and Services,Resaleable Materials,204,15/03/2019,1803-00286,0.00,35.00 ,R,Access Locksmiths (Leeds) Limited,No
Http://opendatacommunities.org/id/metropolitan-district-council/leeds,Leeds City Council,31/03/2018,Strategic Landlord,Property and Contracts,Premises,General Maintenance,104,20/03/2019,1803-00287,0.00,37.50 ,R,Access Locksmiths (Leeds) Limited,No
Http://opendatacommunities.org/id/metropolitan-district-council/leeds,Leeds City Council,31/03/2018,Strategic Landlord,Property and Contracts,Premises,General Maintenance,104,20/03/2019,1803-00288,0.00,200.40 ,R,Access Locksmiths (Leeds) Limited,No
Http://opendatacommunities.org/id/metropolitan-district-council/leeds,Leeds City Council,31/03/2018,Strategic Landlord,Housing Management,Supplies and Services,Resaleable Materials,204,26/03/2019,1803-00289,0.00,5.20 ,R,Access Locksmiths (Leeds) Limited,No
Http://opendatacommunities.org/id/metropolitan-district-council/leeds,Leeds City Council,31/03/2018,Strategic Landlord,Housing Management,Supplies and Services,Resaleable Materials,204,26/03/2019,1803-00290,0.00,28.14 ,R,Access Locksmiths (Leeds) Limited,No
Http://opendatacommunities.org/id/metropolitan-district-council/leeds,Leeds City Council,31/03/2018,Resources and Housing,HRA Housing Leeds,Capital,Other Costs,7,29/03/2019,1803-00291,0.00,86.88 ,C,Access Locksmiths (Leeds) Limited,No
Http://opendatacommunities.org/id/metropolitan-district-council/leeds,Leeds City Council,31/03/2018,Resources and Housing,Leeds Building Services,Supplies and Services,Operational Materials,205,29/03/2019,1803-00292,0.00,35.73 ,R,Access Locksmiths (Leeds) Limited,No
Http://opendatacommunities.org/id/metropolitan-district-council/leeds,Leeds City Council,31/03/2018,Resources and Housing,Leeds Building Services,Supplies and Services,Operational Materials,205,29/03/2019,1803-00293,0.00,12.50 ,R,Access Locksmiths (Leeds) Limited,No
Http://opendatacommunities.org/id/metropolitan-district-council/leeds,Leeds City Council,31/03/2018,Resources and Housing,Leeds Building Services,Supplies and Services,Operational Materials,205,29/03/2019,1803-00294,0.00,13.25 ,R,Access Locksmiths (Leeds) Limited,No
Http://opendatacommunities.org/id/metropolitan-district-council/leeds,Leeds City Council,31/03/2018,Resources and Housing,Leeds Building Services,Supplies and Services,Operational Materials,205,29/03/2019,1803-00295,0.00,47.33 ,R,Access Locksmiths (Leeds) Limited,No
Http://opendatacommunities.org/id/metropolitan-district-council/leeds,Leeds City Council,31/03/2018,Resources and Housing,Leeds Building Services,Supplies and Services,Operational Materials,205,29/03/2019,1803-00296,0.00,11.04 ,R,Access Locksmiths (Leeds) Limited,No
Http://opendatacommunities.org/id/metropolitan-district-council/leeds,Leeds City Council,31/03/2018,Resources and Housing,Leeds Building Services,Supplies and Services,Operational Materials,205,29/03/2019,1803-00297,0.00,54.75 ,R,Access Locksmiths (Leeds) Limited,No
Http://opendatacommunities.org/id/metropolitan-district-council/leeds,Leeds City Council,31/03/2018,Resources and Housing,Leeds Building Services,Supplies and Services,Operational Materials,205,29/03/2019,1803-00298,0.00,39.51 ,R,Access Locksmiths (Leeds) Limited,No
Http://opendatacommunities.org/id/metropolitan-district-council/leeds,Leeds City Council,31/03/2018,Resources and Housing,Leeds Building Services,Supplies and Services,Operational Materials,205,29/03/2019,1803-00299,0.00,134.58 ,R,Access Locksmiths (Leeds) Limited,No
Http://opendatacommunities.org/id/metropolitan-district-council/leeds,Leeds City Council,31/03/2018,Strategic Landlord,Housing Management,Supplies and Services,Resaleable Materials,204,29/03/2019,1803-00300,0.00,165.30 ,R,Access Locksmiths (Leeds) Limited,No
Http://opendatacommunities.org/id/metropolitan-district-council/leeds,Leeds City Council,31/03/2018,Resources and Housing,Leeds Building Services,Supplies and Services,Operational Materials,205,01/03/2019,1803-00301,0.00,170.00 ,R,Access Opening Systems,No
Http://opendatacommunities.org/id/metropolitan-district-council/leeds,Leeds City Council,31/03/2018,Resources and Housing,Leeds Building Services,Supplies and Services,Operational Materials,205,04/03/2019,1803-00302,0.00,220.00 ,R,Access Opening Systems,No
Http://opendatacommunities.org/id/metropolitan-district-council/leeds,Leeds City Council,31/03/2018,Resources and Housing,Leeds Building Services,Supplies and Services,Operational Materials,205,08/03/2019,1803-00303,0.00,97.50 ,R,Access Opening Systems,No
Http://opendatacommunities.org/id/metropolitan-district-council/leeds,Leeds City Council,31/03/2018,Resources and Housing,Leeds Building Services,Supplies and Services,Operational Materials,205,08/03/2019,1803-00304,0.00,112.50 ,R,Access Opening Systems,No
Http://opendatacommunities.org/id/metropolitan-district-council/leeds,Leeds City Council,31/03/2018,Resources and Housing,Leeds Building Services,Supplies and Services,Operational Materials,205,14/03/2019,1803-00305,0.00,147.00 ,R,Access Opening Systems,No
Http://opendatacommunities.org/id/metropolitan-district-council/leeds,Leeds City Council,31/03/2018,Resources and Housing,Leeds Building Services,Supplies and Services,Operational Materials,205,14/03/2019,1803-00306,0.00,97.50 ,R,Access Opening Systems,No
Http://opendatacommunities.org/id/metropolitan-district-council/leeds,Leeds City Council,31/03/2018,Resources and Housing,Leeds Building Services,Supplies and Services,Operational Materials,205,15/03/2019,1803-00307,0.00,25.00 ,R,Access Opening Systems,No
Http://opendatacommunities.org/id/metropolitan-district-council/leeds,Leeds City Council,31/03/2018,Resources and Housing,Leeds Building Services,Supplies and Services,Operational Materials,205,15/03/2019,1803-00308,0.00,772.00 ,R,Access Opening Systems,No
Http://opendatacommunities.org/id/metropolitan-district-council/leeds,Leeds City Council,31/03/2018,Resources and Housing,Leeds Building Services,Supplies and Services,Other Hired And Contracted Services,265,15/03/2019,1803-00309,0.00,230.00 ,R,Access Opening Systems,No
Http://opendatacommunities.org/id/metropolitan-district-council/leeds,Leeds City Council,31/03/2018,Resources and Housing,Leeds Building Services,Supplies and Services,Operational Materials,205,28/03/2019,1803-00310,0.00,25.00 ,R,Access Opening Systems,No
Http://opendatacommunities.org/id/metropolitan-district-council/leeds,Leeds City Council,31/03/2018,Resources and Housing,Leeds Building Services,Supplies and Services,Operational Materials,205,28/03/2019,1803-00311,0.00,772.00 ,R,Access Opening Systems,No
Http://opendatacommunities.org/id/metropolitan-district-council/leeds,Leeds City Council,31/03/2018,Resources and Housing,Leeds Building Services,Supplies and Services,Other Hired And Contracted Services,265,28/03/2019,1803-00312,0.00,230.00 ,R,Access Opening Systems,No
Http://opendatacommunities.org/id/metropolitan-district-council/leeds,Leeds City Council,31/03/2018,Children and Families,Social Care  ,Supplies and Services,Operational Furniture And Equipment,203,04/02/2019,1803-00313,0.00,1950.00 ,R,Ace Container Services,Yes
Http://opendatacommunities.org/id/metropolitan-district-council/leeds,Leeds City Council,31/03/2018,Children and Families,Social Care  ,Supplies and Services,Operational Furniture And Equipment,203,04/02/2019,1803-00314,0.00,100.00 ,R,Ace Container Services,Yes
Http://opendatacommunities.org/id/metropolitan-district-council/leeds,Leeds City Council,31/03/2018,Children and Families,Social Care  ,Supplies and Services,Operational Furniture And Equipment,203,05/02/2019,1803-00315,0.00,410.00 ,R,Ace Container Services,Yes
Http://opendatacommunities.org/id/metropolitan-district-council/leeds,Leeds City Council,31/03/2018,City Development,Libraries  Arts & Heritage,Supplies and Services,Other Hired And Contracted Services,265,01/03/2019,1803-00316,0.00,42.00 ,R,Ace Container Services Limited,No
Http://opendatacommunities.org/id/metropolitan-district-council/leeds,Leeds City Council,31/03/2018,City Development,Recreation,Supplies and Services,Other Hired And Contracted Services,265,01/03/2019,1803-00317,0.00,84.00 ,R,Ace Container Services Limited,No
Http://opendatacommunities.org/id/metropolitan-district-council/leeds,Leeds City Council,31/03/2018,City Development,Recreation,Transport,External Hire -Occasional,304,01/03/2019,1803-00318,0.00,116.20 ,R,Ace Container Services Limited,No
Http://opendatacommunities.org/id/metropolitan-district-council/leeds,Leeds City Council,31/03/2018,City Development,Recreation,Supplies and Services,Other Hired And Contracted Services,265,29/03/2019,1803-00319,0.00,93.00 ,R,Ace Container Services Limited,No
Http://opendatacommunities.org/id/metropolitan-district-council/leeds,Leeds City Council,31/03/2018,City Development,Recreation,Transport,External Hire -Occasional,304,29/03/2019,1803-00320,0.00,128.65 ,R,Ace Container Services Limited,No
Http://opendatacommunities.org/id/metropolitan-district-council/leeds,Leeds City Council,31/03/2018,Children and Families,Social Care,Third Party Payments,Independent Fostering Agencies,509,29/03/2019,1803-00321,0.00,1768.00 ,R,Acorn House (Fostering Services) Ltd,No
Http://opendatacommunities.org/id/metropolitan-district-council/leeds,Leeds City Council,31/03/2018,Adults and Health,Services For Older People - 65 And Over,Third Party Payments,Nursing Care Dementia,574,06/03/2019,1803-00322,0.00,1625.64 ,R,Acorn Nursing Home,No
Http://opendatacommunities.org/id/metropolitan-district-council/leeds,Leeds City Council,31/03/2018,Adults and Health,Services For Older People - 65 And Over,Third Party Payments,Residential Care Dementia,571,11/03/2019,1803-00323,0.00,9460.38 ,R,Acorn Nursing Home,No
Http://opendatacommunities.org/id/metropolitan-district-council/leeds,Leeds City Council,31/03/2018,Children and Families,Social Care,Third Party Payments,Services Rendered By Other Organisations,511,15/03/2019,1803-00324,0.00,9396.75 ,R,Acorns Nursery,No
Http://opendatacommunities.org/id/metropolitan-district-council/leeds,Leeds City Council,31/03/2018,Children and Families,Social Care,Third Party Payments,Services Rendered By Voluntary Sector,505,29/03/2019,1803-00325,0.00,1736.84 ,R,Acorns Nursery,No
Http://opendatacommunities.org/id/metropolitan-district-council/leeds,Leeds City Council,31/03/2018,City Development,Libraries  Arts & Heritage,Supplies and Services,Other Hired And Contracted Services,265,15/03/2019,1803-00326,0.00,3600.00 ,R,Acoustiguide Ltd,No
Http://opendatacommunities.org/id/metropolitan-district-council/leeds,Leeds City Council,31/03/2018,Adults and Health,Services For Older People - 65 And Over,Third Party Payments,Nursing Home,570,06/03/2019,1803-00327,0.00,33386.61 ,R,Acre Green,No
Http://opendatacommunities.org/id/metropolitan-district-council/leeds,Leeds City Council,31/03/2018,Adults and Health,Services For Older People - 65 And Over,Third Party Payments,Residential Care Dementia,571,06/03/2019,1803-00328,0.00,8681.91 ,R,Acre Green,No
Http://opendatacommunities.org/id/metropolitan-district-council/leeds,Leeds City Council,31/03/2018,Adults and Health,Services For Older People - 65 And Over,Third Party Payments,Residential,580,06/03/2019,1803-00329,0.00,3631.60 ,R,Acre Green,No
Http://opendatacommunities.org/id/metropolitan-district-council/leeds,Leeds City Council,31/03/2018,Adults and Health,Services For Older People Under 65 P/Dis,Third Party Payments,Nursing Home,570,06/03/2019,1803-00330,0.00,2200.00 ,R,Acre Green,No
Http://opendatacommunities.org/id/metropolitan-district-council/leeds,Leeds City Council,31/03/2018,Adults and Health,Services For Older People Under 65 P/Dis,Third Party Payments,Residential,580,06/03/2019,1803-00331,0.00,1898.80 ,R,Acre Green,No
Http://opendatacommunities.org/id/metropolitan-district-council/leeds,Leeds City Council,31/03/2018,Children and Families,Social Care,Third Party Payments,Services Rendered By Other Organisations,511,15/03/2019,1803-00332,0.00,16150.00 ,R,Acre Wood Day Nursery,No
Http://opendatacommunities.org/id/metropolitan-district-council/leeds,Leeds City Council,31/03/2018,Children and Families,Social Care,Third Party Payments,Services Rendered By Other Organisations,511,20/03/2019,1803-00333,0.00,3646.50 ,R,Acre Wood Day Nursery,No
Http://opendatacommunities.org/id/metropolitan-district-council/leeds,Leeds City Council,31/03/2018,Resources and Housing,Technology  ,Supplies and Services,Computer Software & Equipment,214,14/02/2019,1803-00334,0.00,174.13 ,R,Acs Business Supplies Lt,Yes
Http://opendatacommunities.org/id/metropolitan-district-council/leeds,Leeds City Council,31/03/2018,Resources and Housing,Leeds Building Services,Supplies and Services,Operational Materials,205,04/03/2019,1803-00335,0.00,99.00 ,R,Actavo (Leeds H & S),No
Http://opendatacommunities.org/id/metropolitan-district-council/leeds,Leeds City Council,31/03/2018,Resources and Housing,Leeds Building Services,Supplies and Services,Operational Furniture And Equipment,203,13/03/2019,1803-00336,0.00,519.20 ,R,Actavo (Leeds H & S),No
Http://opendatacommunities.org/id/metropolitan-district-council/leeds,Leeds City Council,31/03/2018,Resources and Housing,Leeds Building Services,Supplies and Services,Operational Materials,205,29/03/2019,1803-00337,0.00,73.80 ,R,Actavo (Leeds H & S),No
Http://opendatacommunities.org/id/metropolitan-district-council/leeds,Leeds City Council As Accountable Body,31/03/2018,Social Services Pooled Budgets,Leeds Community Equip Store Pooled Budgt,Supplies and Services,Other Equipment,203,27/03/2019,1803-00338,0.00,95.00 ,R,Action Assist Ltd,No
Http://opendatacommunities.org/id/metropolitan-district-council/leeds,Leeds City Council,31/03/2018,Children and Families,Social Care,Third Party Payments,Independent Fostering Agencies,509,29/03/2019,1803-00339,0.00,4314.24 ,R,Action For Children,No
Http://opendatacommunities.org/id/metropolitan-district-council/leeds,Leeds City Council,31/03/2018,Children and Families,Social Care,Third Party Payments,Independent Fostering Agencies,509,29/03/2019,1803-00340,0.00,4314.24 ,R,Action For Children,No
Http://opendatacommunities.org/id/metropolitan-district-council/leeds,Leeds City Council,31/03/2018,Children and Families,Social Care,Third Party Payments,Independent Fostering Agencies,509,29/03/2019,1803-00341,0.00,4314.24 ,R,Action For Children,No
Http://opendatacommunities.org/id/metropolitan-district-council/leeds,Leeds City Council,31/03/2018,Children and Families,Social Care,Third Party Payments,Independent Fostering Agencies,509,29/03/2019,1803-00342,0.00,4314.24 ,R,Action For Children,No
Http://opendatacommunities.org/id/metropolitan-district-council/leeds,Leeds City Council,31/03/2018,Children and Families,Social Care,Third Party Payments,Independent Fostering Agencies,509,01/03/2019,1803-00343,0.00,4776.48 ,R,Action For Children Services Ltd,No
Http://opendatacommunities.org/id/metropolitan-district-council/leeds,Leeds City Council,31/03/2018,Children and Families,Social Care,Third Party Payments,Independent Fostering Agencies,509,29/03/2019,1803-00344,0.00,4776.48 ,R,Action For Children Services Ltd,No
Http://opendatacommunities.org/id/metropolitan-district-council/leeds,Leeds City Council,31/03/2018,Adults and Health,Services For Older People - 65 And Over,Third Party Payments,Payments To Voluntary Organisations,561,07/03/2019,1803-00345,0.00,10695.64 ,R,Action For Gipton Elderly,No
Http://opendatacommunities.org/id/metropolitan-district-council/leeds,Leeds City Council,31/03/2018,Adults and Health,Services For Older People Under 65 P/Dis,Third Party Payments,Payments To Voluntary Organisations,561,13/03/2019,1803-00346,0.00,5000.00 ,R,Action For Gipton Elderly,No
Http://opendatacommunities.org/id/metropolitan-district-council/leeds,Leeds City Council,31/03/2018,City Development,Planning & Sustainable Development  ,Supplies and Services,Computer Software & Equipment,214,22/02/2019,1803-00347,0.00,529.99 ,R,Action On Hearing Loss,Yes
Http://opendatacommunities.org/id/metropolitan-district-council/leeds,Leeds City Council,31/03/2018,Children and Families,Social Care,Third Party Payments,Services Rendered By Other Organisations,511,15/03/2019,1803-00348,0.00,10082.41 ,R,Active Kids Yeadon Llp,No
Http://opendatacommunities.org/id/metropolitan-district-council/leeds,Leeds City Council,31/03/2018,Children and Families,Social Care,Third Party Payments,Services Rendered By Other Organisations,511,20/03/2019,1803-00349,0.00,280.50 ,R,Active Kids Yeadon Llp,No
Http://opendatacommunities.org/id/metropolitan-district-council/leeds,Leeds City Council,31/03/2018,Children and Families,Social Care,Third Party Payments,Services Rendered By Voluntary Sector,505,29/03/2019,1803-00350,0.00,2084.21 ,R,Active Kids Yeadon Llp,No
Http://opendatacommunities.org/id/metropolitan-district-council/leeds,Leeds City Council,31/03/2018,Children and Families,Social Care,Third Party Payments,Services Rendered By Voluntary Sector,505,29/03/2019,1803-00351,0.00,710.55 ,R,Active Kids Yeadon Llp,No
Http://opendatacommunities.org/id/metropolitan-district-council/leeds,Leeds City Council,31/03/2018,Communities and Environment,Cleaner Neighbourhood Teams,Premises,Removal Of Workplace Waste,126,01/03/2019,1803-00352,0.00,45.00 ,R,Acumen Waste Services Ltd,No
Http://opendatacommunities.org/id/metropolitan-district-council/leeds,Leeds City Council,31/03/2018,Communities and Environment,Cleaner Neighbourhood Teams,Premises,Removal Of Workplace Waste,126,01/03/2019,1803-00353,0.00,110.00 ,R,Acumen Waste Services Ltd,No
Http://opendatacommunities.org/id/metropolitan-district-council/leeds,Leeds City Council,31/03/2018,Communities and Environment,Cleaner Neighbourhood Teams,Premises,Removal Of Workplace Waste,126,01/03/2019,1803-00354,0.00,110.00 ,R,Acumen Waste Services Ltd,No
Http://opendatacommunities.org/id/metropolitan-district-council/leeds,Leeds City Council,31/03/2018,Communities and Environment,Cleaner Neighbourhood Teams,Premises,Removal Of Workplace Waste,126,01/03/2019,1803-00355,0.00,45.00 ,R,Acumen Waste Services Ltd,No
Http://opendatacommunities.org/id/metropolitan-district-council/leeds,Leeds City Council,31/03/2018,Communities and Environment,Cleaner Neighbourhood Teams,Premises,Removal Of Workplace Waste,126,01/03/2019,1803-00356,0.00,110.00 ,R,Acumen Waste Services Ltd,No
Http://opendatacommunities.org/id/metropolitan-district-council/leeds,Leeds City Council,31/03/2018,Communities and Environment,Waste Management,Supplies and Services,Recycling & Reuse Charges,234,06/03/2019,1803-00357,0.00,4744.27 ,R,Acumen Waste Services Ltd,No
Http://opendatacommunities.org/id/metropolitan-district-council/leeds,Leeds City Council,31/03/2018,Communities and Environment,Cleaner Neighbourhood Teams,Premises,Removal Of Workplace Waste,126,08/03/2019,1803-00358,0.00,110.00 ,R,Acumen Waste Services Ltd,No
Http://opendatacommunities.org/id/metropolitan-district-council/leeds,Leeds City Council,31/03/2018,Communities and Environment,Cleaner Neighbourhood Teams,Premises,Removal Of Workplace Waste,126,08/03/2019,1803-00359,0.00,110.00 ,R,Acumen Waste Services Ltd,No
Http://opendatacommunities.org/id/metropolitan-district-council/leeds,Leeds City Council,31/03/2018,Communities and Environment,Cleaner Neighbourhood Teams,Premises,Removal Of Workplace Waste,126,08/03/2019,1803-00360,0.00,110.00 ,R,Acumen Waste Services Ltd,No
Http://opendatacommunities.org/id/metropolitan-district-council/leeds,Leeds City Council,31/03/2018,Communities and Environment,Cleaner Neighbourhood Teams,Premises,Removal Of Workplace Waste,126,08/03/2019,1803-00361,0.00,110.00 ,R,Acumen Waste Services Ltd,No
Http://opendatacommunities.org/id/metropolitan-district-council/leeds,Leeds City Council,31/03/2018,Communities and Environment,Cleaner Neighbourhood Teams,Premises,Removal Of Workplace Waste,126,08/03/2019,1803-00362,0.00,110.00 ,R,Acumen Waste Services Ltd,No
Http://opendatacommunities.org/id/metropolitan-district-council/leeds,Leeds City Council,31/03/2018,Communities and Environment,Cleaner Neighbourhood Teams,Premises,Removal Of Workplace Waste,126,08/03/2019,1803-00363,0.00,110.00 ,R,Acumen Waste Services Ltd,No
Http://opendatacommunities.org/id/metropolitan-district-council/leeds,Leeds City Council,31/03/2018,Communities and Environment,Cleaner Neighbourhood Teams,Premises,Removal Of Workplace Waste,126,08/03/2019,1803-00364,0.00,110.00 ,R,Acumen Waste Services Ltd,No
Http://opendatacommunities.org/id/metropolitan-district-council/leeds,Leeds City Council,31/03/2018,Communities and Environment,Cleaner Neighbourhood Teams,Premises,Removal Of Workplace Waste,126,08/03/2019,1803-00365,0.00,110.00 ,R,Acumen Waste Services Ltd,No
Http://opendatacommunities.org/id/metropolitan-district-council/leeds,Leeds City Council,31/03/2018,Communities and Environment,Cleaner Neighbourhood Teams,Premises,Removal Of Workplace Waste,126,13/03/2019,1803-00366,0.00,110.00 ,R,Acumen Waste Services Ltd,No
Http://opendatacommunities.org/id/metropolitan-district-council/leeds,Leeds City Council,31/03/2018,Communities and Environment,Cleaner Neighbourhood Teams,Premises,Removal Of Workplace Waste,126,13/03/2019,1803-00367,0.00,110.00 ,R,Acumen Waste Services Ltd,No
Http://opendatacommunities.org/id/metropolitan-district-council/leeds,Leeds City Council,31/03/2018,Communities and Environment,Cleaner Neighbourhood Teams,Premises,Removal Of Workplace Waste,126,15/03/2019,1803-00368,0.00,110.00 ,R,Acumen Waste Services Ltd,No
Http://opendatacommunities.org/id/metropolitan-district-council/leeds,Leeds City Council,31/03/2018,Communities and Environment,Cleaner Neighbourhood Teams,Premises,Removal Of Workplace Waste,126,15/03/2019,1803-00369,0.00,110.00 ,R,Acumen Waste Services Ltd,No
Http://opendatacommunities.org/id/metropolitan-district-council/leeds,Leeds City Council,31/03/2018,Communities and Environment,Waste Management,Supplies and Services,Recycling & Reuse Charges,234,15/03/2019,1803-00370,0.00,4689.33 ,R,Acumen Waste Services Ltd,No
Http://opendatacommunities.org/id/metropolitan-district-council/leeds,Leeds City Council,31/03/2018,Communities and Environment,Cleaner Neighbourhood Teams,Premises,Removal Of Workplace Waste,126,20/03/2019,1803-00371,0.00,110.00 ,R,Acumen Waste Services Ltd,No
Http://opendatacommunities.org/id/metropolitan-district-council/leeds,Leeds City Council,31/03/2018,Communities and Environment,Cleaner Neighbourhood Teams,Premises,Removal Of Workplace Waste,126,20/03/2019,1803-00372,0.00,110.00 ,R,Acumen Waste Services Ltd,No
Http://opendatacommunities.org/id/metropolitan-district-council/leeds,Leeds City Council,31/03/2018,Communities and Environment,Cleaner Neighbourhood Teams,Premises,Removal Of Workplace Waste,126,20/03/2019,1803-00373,0.00,110.00 ,R,Acumen Waste Services Ltd,No
Http://opendatacommunities.org/id/metropolitan-district-council/leeds,Leeds City Council,31/03/2018,Communities and Environment,Cleaner Neighbourhood Teams,Premises,Removal Of Workplace Waste,126,20/03/2019,1803-00374,0.00,110.00 ,R,Acumen Waste Services Ltd,No
Http://opendatacommunities.org/id/metropolitan-district-council/leeds,Leeds City Council,31/03/2018,Communities and Environment,Cleaner Neighbourhood Teams,Premises,Removal Of Workplace Waste,126,20/03/2019,1803-00375,0.00,110.00 ,R,Acumen Waste Services Ltd,No
Http://opendatacommunities.org/id/metropolitan-district-council/leeds,Leeds City Council,31/03/2018,Communities and Environment,Cleaner Neighbourhood Teams,Premises,Removal Of Workplace Waste,126,20/03/2019,1803-00376,0.00,110.00 ,R,Acumen Waste Services Ltd,No
Http://opendatacommunities.org/id/metropolitan-district-council/leeds,Leeds City Council,31/03/2018,Communities and Environment,Cleaner Neighbourhood Teams,Premises,Removal Of Workplace Waste,126,20/03/2019,1803-00377,0.00,110.00 ,R,Acumen Waste Services Ltd,No
Http://opendatacommunities.org/id/metropolitan-district-council/leeds,Leeds City Council,31/03/2018,Communities and Environment,Waste Management,Supplies and Services,Recycling & Reuse Charges,234,21/03/2019,1803-00378,0.00,4744.27 ,R,Acumen Waste Services Ltd,No
Http://opendatacommunities.org/id/metropolitan-district-council/leeds,Leeds City Council,31/03/2018,Communities and Environment,Cleaner Neighbourhood Teams,Premises,Removal Of Workplace Waste,126,22/03/2019,1803-00379,0.00,110.00 ,R,Acumen Waste Services Ltd,No
Http://opendatacommunities.org/id/metropolitan-district-council/leeds,Leeds City Council,31/03/2018,Communities and Environment,Cleaner Neighbourhood Teams,Premises,Removal Of Workplace Waste,126,22/03/2019,1803-00380,0.00,250.00 ,R,Acumen Waste Services Ltd,No
Http://opendatacommunities.org/id/metropolitan-district-council/leeds,Leeds City Council,31/03/2018,Communities and Environment,Cleaner Neighbourhood Teams,Premises,Removal Of Workplace Waste,126,26/03/2019,1803-00381,0.00,110.00 ,R,Acumen Waste Services Ltd,No
Http://opendatacommunities.org/id/metropolitan-district-council/leeds,Leeds City Council,31/03/2018,Communities and Environment,Cleaner Neighbourhood Teams,Premises,Removal Of Workplace Waste,126,26/03/2019,1803-00382,0.00,110.00 ,R,Acumen Waste Services Ltd,No
Http://opendatacommunities.org/id/metropolitan-district-council/leeds,Leeds City Council,31/03/2018,Communities and Environment,Cleaner Neighbourhood Teams,Premises,Removal Of Workplace Waste,126,26/03/2019,1803-00383,0.00,110.00 ,R,Acumen Waste Services Ltd,No
Http://opendatacommunities.org/id/metropolitan-district-council/leeds,Leeds City Council,31/03/2018,Communities and Environment,Cleaner Neighbourhood Teams,Premises,Removal Of Workplace Waste,126,26/03/2019,1803-00384,0.00,110.00 ,R,Acumen Waste Services Ltd,No
Http://opendatacommunities.org/id/metropolitan-district-council/leeds,Leeds City Council,31/03/2018,Communities and Environment,Waste Management,Supplies and Services,Recycling & Reuse Charges,234,26/03/2019,1803-00385,0.00,4695.36 ,R,Acumen Waste Services Ltd,No
Http://opendatacommunities.org/id/metropolitan-district-council/leeds,Leeds City Council,31/03/2018,Communities and Environment,Cleaner Neighbourhood Teams,Premises,Removal Of Workplace Waste,126,28/03/2019,1803-00386,0.00,60.00 ,R,Acumen Waste Services Ltd,No
Http://opendatacommunities.org/id/metropolitan-district-council/leeds,Leeds City Council,31/03/2018,Communities and Environment,Cleaner Neighbourhood Teams,Premises,Removal Of Workplace Waste,126,28/03/2019,1803-00387,0.00,110.00 ,R,Acumen Waste Services Ltd,No
Http://opendatacommunities.org/id/metropolitan-district-council/leeds,Leeds City Council,31/03/2018,Communities and Environment,Cleaner Neighbourhood Teams,Premises,Removal Of Workplace Waste,126,28/03/2019,1803-00388,0.00,110.00 ,R,Acumen Waste Services Ltd,No
Http://opendatacommunities.org/id/metropolitan-district-council/leeds,Leeds City Council,31/03/2018,Communities and Environment,Cleaner Neighbourhood Teams,Premises,Removal Of Workplace Waste,126,28/03/2019,1803-00389,0.00,110.00 ,R,Acumen Waste Services Ltd,No
Http://opendatacommunities.org/id/metropolitan-district-council/leeds,Leeds City Council,31/03/2018,Resources and Housing,Shared Services,Supplies and Services,Other Hired And Contracted Services,265,01/03/2019,1803-00390,0.00,1057.50 ,R,Ad3 Envelope Printers Limited,No
Http://opendatacommunities.org/id/metropolitan-district-council/leeds,Leeds City Council,31/03/2018,Resources and Housing,Shared Services,Supplies and Services,Other Hired And Contracted Services,265,01/03/2019,1803-00391,0.00,597.75 ,R,Ad3 Envelope Printers Limited,No
Http://opendatacommunities.org/id/metropolitan-district-council/leeds,Leeds City Council,31/03/2018,Resources and Housing,Shared Services,Supplies and Services,Other Hired And Contracted Services,265,06/03/2019,1803-00392,0.00,96.44 ,R,Ad3 Envelope Printers Limited,No
Http://opendatacommunities.org/id/metropolitan-district-council/leeds,Leeds City Council,31/03/2018,Resources and Housing,Shared Services,Supplies and Services,Other Hired And Contracted Services,265,06/03/2019,1803-00393,0.00,206.19 ,R,Ad3 Envelope Printers Limited,No
Http://opendatacommunities.org/id/metropolitan-district-council/leeds,Leeds City Council,31/03/2018,Resources and Housing,Shared Services,Supplies and Services,Operational Materials,205,29/03/2019,1803-00394,0.00,1131.75 ,R,Ad3 Envelope Printers Limited,No
Http://opendatacommunities.org/id/metropolitan-district-council/leeds,Leeds City Council As Accountable Body,31/03/2018,Social Services Pooled Budgets,Jcs For People With Learning Disabilitie,Transfer Payments,Direct Payments,626,12/03/2019,1803-00395,0.00,3144.71 ,R,REDACTED PERSONAL DATA,No
Http://opendatacommunities.org/id/metropolitan-district-council/leeds,Leeds City Council,31/03/2018,Resources and Housing,Human Resources,Support Services,Legal Disbursements,411,08/03/2019,1803-00396,0.00,450.00 ,R,Adam Willoughby,No
Http://opendatacommunities.org/id/metropolitan-district-council/leeds,Leeds City Council,31/03/2018,Adults and Health,Services For Older People - 65 And Over,Third Party Payments,Nursing Home,570,06/03/2019,1803-00397,0.00,3897.12 ,R,Adbolton Hall,No
Http://opendatacommunities.org/id/metropolitan-district-council/leeds,Leeds City Council,31/03/2018,Resources and Housing,Sustainable Energy & Climate Change,Capital,Other Costs,7,13/03/2019,1803-00398,0.00,5496.00 ,C,Addleshaw Goddard Llp,No
Http://opendatacommunities.org/id/metropolitan-district-council/leeds,Leeds City Council,31/03/2018,City Development,Asset Management,Capital,Land,1,07/03/2019,1803-00399,0.00,10056641.29 ,C,Addleshaw Goddard Llp Client Ac,No
Http://opendatacommunities.org/id/metropolitan-district-council/leeds,Leeds City Council,31/03/2018,City Development,Asset Management,Capital,Land,1,29/03/2019,1803-00400,0.00,2164.58 ,C,Addleshaw Goddard Llp Client Ac,No
Http://opendatacommunities.org/id/metropolitan-district-council/leeds,Leeds City Council,31/03/2018,Resources and Housing,Technology  ,Employees,Agency Staff,8,26/02/2019,1803-00401,0.00,52899.93 ,R,Adecco Alfred Marks,Yes
Http://opendatacommunities.org/id/metropolitan-district-council/leeds,Leeds City Council,31/03/2018,Resources and Housing,Technology  ,Employees,Agency Staff,8,26/02/2019,1803-00402,0.00,33074.76 ,R,Adecco Alfred Marks,Yes
Http://opendatacommunities.org/id/metropolitan-district-council/leeds,Leeds City Council,31/03/2018,Children and Families,Social Care,Third Party Payments,Services Rendered By Voluntary Sector,505,15/03/2019,1803-00403,0.00,5469.75 ,R,Adel Pre School,No
Http://opendatacommunities.org/id/metropolitan-district-council/leeds,Leeds City Council,31/03/2018,Children and Families,Social Care,Third Party Payments,Services Rendered By Voluntary Sector,505,20/03/2019,1803-00404,0.00,280.50 ,R,Adel Pre School,No
Http://opendatacommunities.org/id/metropolitan-district-council/leeds,Leeds City Council,31/03/2018,Children and Families,Social Care,Third Party Payments,Services Rendered By Other Organisations,511,15/03/2019,1803-00405,0.00,233.75 ,R,REDACTED PERSONAL DATA,No
Http://opendatacommunities.org/id/metropolitan-district-council/leeds,Leeds City Council,31/03/2018,Children and Families,Social Care,Third Party Payments,Services Rendered By Other Organisations,511,15/03/2019,1803-00406,0.00,155.83 ,R,REDACTED PERSONAL DATA,No
Http://opendatacommunities.org/id/metropolitan-district-council/leeds,Leeds City Council,31/03/2018,Children and Families,Social Care,Third Party Payments,Services Rendered By Other Organisations,511,15/03/2019,1803-00407,0.00,1309.00 ,R,REDACTED PERSONAL DATA,No
Http://opendatacommunities.org/id/metropolitan-district-council/leeds,Leeds City Council,31/03/2018,Adults and Health,Services For Older People - 65 And Over,Third Party Payments,Nursing Home,570,06/03/2019,1803-00408,0.00,1184.76 ,R,Aden House,No
Http://opendatacommunities.org/id/metropolitan-district-council/leeds,Leeds City Council,31/03/2018,Children and Families,Social Care,Supplies and Services,Conference Meetings,253,08/03/2019,1803-00409,0.00,260.00 ,R,Adhd Foundation Ltd,No
Http://opendatacommunities.org/id/metropolitan-district-council/leeds,Leeds City Council,31/03/2018,Resources and Housing,Leeds Building Services,Supplies and Services,Operational Materials,205,08/03/2019,1803-00410,0.00,48.88 ,R,Adi Global,No
Http://opendatacommunities.org/id/metropolitan-district-council/leeds,Leeds City Council,31/03/2018,Resources and Housing,Leeds Building Services,Supplies and Services,Operational Materials,205,08/03/2019,1803-00411,0.00,1070.88 ,R,Adi Global,No
Http://opendatacommunities.org/id/metropolitan-district-council/leeds,Leeds City Council,31/03/2018,Resources and Housing,Leeds Building Services,Supplies and Services,Operational Materials,205,08/03/2019,1803-00412,0.00,899.94 ,R,Adi Global,No
Http://opendatacommunities.org/id/metropolitan-district-council/leeds,Leeds City Council,31/03/2018,Resources and Housing,Leeds Building Services,Supplies and Services,Operational Materials,205,08/03/2019,1803-00413,0.00,14.45 ,R,Adi Global,No
Http://opendatacommunities.org/id/metropolitan-district-council/leeds,Leeds City Council,31/03/2018,Resources and Housing,Leeds Building Services,Supplies and Services,Operational Materials,205,08/03/2019,1803-00414,0.00,68.69 ,R,Adi Global,No
Http://opendatacommunities.org/id/metropolitan-district-council/leeds,Leeds City Council,31/03/2018,Resources and Housing,Leeds Building Services,Supplies and Services,Operational Materials,205,08/03/2019,1803-00415,0.00,17.32 ,R,Adi Global,No
Http://opendatacommunities.org/id/metropolitan-district-council/leeds,Leeds City Council,31/03/2018,Resources and Housing,Leeds Building Services,Supplies and Services,Operational Materials,205,08/03/2019,1803-00416,0.00,2526.80 ,R,Adi Global,No
Http://opendatacommunities.org/id/metropolitan-district-council/leeds,Leeds City Council,31/03/2018,Resources and Housing,Leeds Building Services,Supplies and Services,Operational Materials,205,12/03/2019,1803-00417,0.00,56.07 ,R,Adi Global,No
Http://opendatacommunities.org/id/metropolitan-district-council/leeds,Leeds City Council,31/03/2018,Resources and Housing,Leeds Building Services,Supplies and Services,Operational Materials,205,18/03/2019,1803-00418,0.00,22.60 ,R,Adi Global,No
Http://opendatacommunities.org/id/metropolitan-district-council/leeds,Leeds City Council,31/03/2018,Resources and Housing,Leeds Building Services,Supplies and Services,Operational Materials,205,19/03/2019,1803-00419,0.00,47.91 ,R,Adi Global,No
Http://opendatacommunities.org/id/metropolitan-district-council/leeds,Leeds City Council,31/03/2018,Resources and Housing,Leeds Building Services,Supplies and Services,Operational Materials,205,22/03/2019,1803-00420,0.00,174.30 ,R,Adi Global,No
Http://opendatacommunities.org/id/metropolitan-district-council/leeds,Leeds City Council,31/03/2018,Resources and Housing,Leeds Building Services,Supplies and Services,Operational Materials,205,26/03/2019,1803-00421,0.00,3466.81 ,R,Adi Global,No
Http://opendatacommunities.org/id/metropolitan-district-council/leeds,Leeds City Council,31/03/2018,Resources and Housing,Leeds Building Services,Supplies and Services,Operational Materials,205,29/03/2019,1803-00422,0.00,505.44 ,R,Adi Global,No
Http://opendatacommunities.org/id/metropolitan-district-council/leeds,Leeds City Council,31/03/2018,Resources and Housing,Leeds Building Services,Supplies and Services,Operational Materials,205,29/03/2019,1803-00423,0.00,35.21 ,R,Adi Global,No
Http://opendatacommunities.org/id/metropolitan-district-council/leeds,Leeds City Council,31/03/2018,Resources and Housing,Leeds Building Services,Supplies and Services,Operational Materials,205,29/03/2019,1803-00424,0.00,36.71 ,R,Adi Global,No
Http://opendatacommunities.org/id/metropolitan-district-council/leeds,Leeds City Council,31/03/2018,Resources and Housing,Leeds Building Services,Supplies and Services,Operational Materials,205,29/03/2019,1803-00425,0.00,21.61 ,R,Adi Global,No
Http://opendatacommunities.org/id/metropolitan-district-council/leeds,Leeds City Council,31/03/2018,Resources and Housing,Leeds Building Services,Supplies and Services,Operational Materials,205,29/03/2019,1803-00426,0.00,53.15 ,R,Adi Global,No
Http://opendatacommunities.org/id/metropolitan-district-council/leeds,Leeds City Council,31/03/2018,Resources and Housing,Leeds Building Services,Supplies and Services,Operational Materials,205,29/03/2019,1803-00427,0.00,1499.90 ,R,Adi Global,No
Http://opendatacommunities.org/id/metropolitan-district-council/leeds,Leeds City Council,31/03/2018,Resources and Housing,Leeds Building Services,Supplies and Services,Operational Materials,205,29/03/2019,1803-00428,0.00,51.13 ,R,Adi Global,No
Http://opendatacommunities.org/id/metropolitan-district-council/leeds,Leeds City Council,31/03/2018,Resources and Housing,Leeds Building Services,Supplies and Services,Operational Materials,205,29/03/2019,1803-00429,0.00,19.25 ,R,Adi Global,No
Http://opendatacommunities.org/id/metropolitan-district-council/leeds,Leeds City Council,31/03/2018,Resources and Housing,Leeds Building Services,Supplies and Services,Operational Materials,205,29/03/2019,1803-00430,0.00,98.40 ,R,Adi Global,No
Http://opendatacommunities.org/id/metropolitan-district-council/leeds,Leeds City Council,31/03/2018,Resources and Housing,Leeds Building Services,Supplies and Services,Operational Materials,205,29/03/2019,1803-00431,0.00,14.79 ,R,Adi Global,No
Http://opendatacommunities.org/id/metropolitan-district-council/leeds,Leeds City Council,31/03/2018,Resources and Housing,Leeds Building Services,Supplies and Services,Operational Materials,205,29/03/2019,1803-00432,0.00,274.32 ,R,Adi Global,No
Http://opendatacommunities.org/id/metropolitan-district-council/leeds,Leeds City Council,31/03/2018,Communities and Environment,Community Safety  ,Supplies and Services,Other Hired And Contracted Services,265,04/02/2019,1803-00433,0.00,14.94 ,R,Adi-Gardiner Ltd,Yes
Http://opendatacommunities.org/id/metropolitan-district-council/leeds,Leeds City Council,31/03/2018,Communities and Environment,Community Safety  ,Supplies and Services,Other Hired And Contracted Services,265,22/02/2019,1803-00434,0.00,260.52 ,R,Adi-Gardiner Ltd,Yes
Http://opendatacommunities.org/id/metropolitan-district-council/leeds,Leeds City Council,31/03/2018,Adults and Health,Services For Adults Under 65 Mental/Dis,Third Party Payments,Home Care,568,06/03/2019,1803-00435,0.00,320.79 ,R,Adjuvo,No
Http://opendatacommunities.org/id/metropolitan-district-council/leeds,Leeds City Council,31/03/2018,Adults and Health,Services For Older People - 65 And Over,Third Party Payments,Home Care,568,06/03/2019,1803-00436,0.00,10763.83 ,R,Adjuvo,No
Http://opendatacommunities.org/id/metropolitan-district-council/leeds,Leeds City Council,31/03/2018,Adults and Health,Services For Older People Under 65 P/Dis,Third Party Payments,Home Care,568,06/03/2019,1803-00437,0.00,7070.41 ,R,Adjuvo,No
Http://opendatacommunities.org/id/metropolitan-district-council/leeds,Leeds City Council,31/03/2018,Adults and Health,Services For Adults Under 65 Mental/Dis,Third Party Payments,Home Care,568,21/03/2019,1803-00438,0.00,459.51 ,R,Adjuvo,No
Http://opendatacommunities.org/id/metropolitan-district-council/leeds,Leeds City Council,31/03/2018,Adults and Health,Services For Older People - 65 And Over,Third Party Payments,Home Care,568,21/03/2019,1803-00439,0.00,13646.61 ,R,Adjuvo,No
Http://opendatacommunities.org/id/metropolitan-district-council/leeds,Leeds City Council,31/03/2018,Adults and Health,Services For Older People - 65 And Over,Third Party Payments,Home Care,568,21/03/2019,1803-00440,0.00,4772.00 ,R,Adjuvo,No
Http://opendatacommunities.org/id/metropolitan-district-council/leeds,Leeds City Council,31/03/2018,Adults and Health,Services For Older People Under 65 P/Dis,Third Party Payments,Home Care,568,21/03/2019,1803-00441,0.00,8839.10 ,R,Adjuvo,No
Http://opendatacommunities.org/id/metropolitan-district-council/leeds,Leeds City Council As Accountable Body,31/03/2018,Social Services Pooled Budgets,Jcs For People With Learning Disabilitie,Third Party Payments,Home Care,568,21/03/2019,1803-00442,0.00,256.00 ,R,Adjuvo,No
Http://opendatacommunities.org/id/metropolitan-district-council/leeds,Leeds City Council,31/03/2018,City Development,Libraries  Arts & Heritage  ,Supplies and Services,Computer Software & Equipment,214,02/02/2019,1803-00443,0.00,9.98 ,R,Adobe Photogphy Plan,Yes
Http://opendatacommunities.org/id/metropolitan-district-council/leeds,Leeds City Council,31/03/2018,Children and Families,Social Care  ,Transfer Payments,Leaving Care Grants,635,05/02/2019,1803-00444,0.00,99.34 ,R,Adobe Photogphy Plan,Yes
Http://opendatacommunities.org/id/metropolitan-district-council/leeds,Leeds City Council,31/03/2018,Children and Families,Social Care  ,Transfer Payments,Leaving Care Grants,635,06/02/2019,1803-00445,0.00,-119.21 ,R,Adobe Photogphy Plan,Yes
Http://opendatacommunities.org/id/metropolitan-district-council/leeds,Leeds City Council,31/03/2018,Children and Families,Social Care,Third Party Payments,Independent Fostering Agencies,509,07/03/2019,1803-00446,0.00,923.34 ,R,Adolescent And Childrens Trust,No
Http://opendatacommunities.org/id/metropolitan-district-council/leeds,Leeds City Council,31/03/2018,Children and Families,Social Care,Third Party Payments,Independent Fostering Agencies,509,07/03/2019,1803-00447,0.00,873.44 ,R,Adolescent And Childrens Trust,No
Http://opendatacommunities.org/id/metropolitan-district-council/leeds,Leeds City Council,31/03/2018,Strategic Landlord,Housing Management,Premises,Premises Security Services,162,07/03/2019,1803-00448,0.00,369.67 ,R,Adt Fire And Security Plc,No
Http://opendatacommunities.org/id/metropolitan-district-council/leeds,Leeds City Council,31/03/2018,Resources and Housing,Corporate Property Management,Premises,Maintenance Of Buildings,101,20/03/2019,1803-00449,0.00,165.28 ,R,Adt Fire And Security Plc,No
Http://opendatacommunities.org/id/metropolitan-district-council/leeds,Leeds City Council,31/03/2018,Resources and Housing,Facilities Management,Premises,Premises Security Services,162,22/03/2019,1803-00450,0.00,480.72 ,R,Adt Fire And Security Plc,No
Http://opendatacommunities.org/id/metropolitan-district-council/leeds,Leeds City Council,31/03/2018,City Development,Recreation,Supplies and Services,External Audit Fees,261,01/03/2019,1803-00451,0.00,135.00 ,R,Advance Stocks Ltd,No
Http://opendatacommunities.org/id/metropolitan-district-council/leeds,Leeds City Council,31/03/2018,City Development,Recreation,Supplies and Services,External Audit Fees,261,01/03/2019,1803-00452,0.00,85.00 ,R,Advance Stocks Ltd,No
Http://opendatacommunities.org/id/metropolitan-district-council/leeds,Leeds City Council,31/03/2018,City Development,Libraries  Arts & Heritage,Supplies and Services,External Audit Fees,261,19/03/2019,1803-00453,0.00,85.00 ,R,Advance Stocks Ltd,No
Http://opendatacommunities.org/id/metropolitan-district-council/leeds,Leeds City Council,31/03/2018,City Development,Libraries  Arts & Heritage,Supplies and Services,External Audit Fees,261,22/03/2019,1803-00454,0.00,90.00 ,R,Advance Stocks Ltd,No
Http://opendatacommunities.org/id/metropolitan-district-council/leeds,Leeds City Council,31/03/2018,Resources and Housing,Corporate Property Management,Premises,Plant and Machinery,102,15/03/2019,1803-00455,0.00,650.00 ,R,Advanced Diesel Engineering,No
Http://opendatacommunities.org/id/metropolitan-district-council/leeds,Leeds City Council,31/03/2018,Communities and Environment,Parks And Countryside  ,Supplies and Services,Operational Materials,205,18/02/2019,1803-00456,0.00,111.65 ,R,Advantis Credit - Moto,Yes
Http://opendatacommunities.org/id/metropolitan-district-council/leeds,Leeds City Council As Accountable Body,31/03/2018,Social Services Pooled Budgets,Jcs For People With Learning Disabilitie,Third Party Payments,Day Centre,564,05/03/2019,1803-00457,0.00,492.05 ,R,Advitam Ltd,No
Http://opendatacommunities.org/id/metropolitan-district-council/leeds,Leeds City Council As Accountable Body,31/03/2018,Social Services Pooled Budgets,Jcs For People With Learning Disabilitie,Third Party Payments,Residential,580,06/03/2019,1803-00458,0.00,17782.08 ,R,Advitam Ltd,No
Http://opendatacommunities.org/id/metropolitan-district-council/leeds,Leeds City Council,31/03/2018,Children and Families,Social Care,Third Party Payments,Placement Support,550,07/03/2019,1803-00459,0.00,1497.00 ,R,Advonet,No
Http://opendatacommunities.org/id/metropolitan-district-council/leeds,Leeds City Council,31/03/2018,Adults and Health,Services For Older People - 65 And Over,Third Party Payments,Payments To Voluntary Organisations,561,08/03/2019,1803-00460,0.00,103916.67 ,R,Advonet,No
Http://opendatacommunities.org/id/metropolitan-district-council/leeds,Leeds City Council,31/03/2018,Adults and Health,Social Services Support Services,Employees,Training & Development,70,22/03/2019,1803-00461,0.00,540.00 ,R,Advonet,No
Http://opendatacommunities.org/id/metropolitan-district-council/leeds,Leeds City Council,31/03/2018,Adults and Health,Services For Adults Under 65 Mental/Dis,Third Party Payments,Fees - Level 4,520,07/03/2019,1803-00462,0.00,261.56 ,R,Ae Bia Assessments Limited,No
Http://opendatacommunities.org/id/metropolitan-district-council/leeds,Leeds City Council,31/03/2018,City Development,Asset Management Services,Supplies and Services,Other Hired And Contracted Services,265,22/03/2019,1803-00463,0.00,15855.00 ,R,Aecom Limited,No
Http://opendatacommunities.org/id/metropolitan-district-council/leeds,Leeds City Council,31/03/2018,City Development,Highways,Capital,Other Costs,7,26/03/2019,1803-00464,0.00,31699.02 ,C,Aecom Limited,No
Http://opendatacommunities.org/id/metropolitan-district-council/leeds,Leeds City Council,31/03/2018,Adults and Health,Services For Adults Under 65 Mental/Dis,Third Party Payments,Home Care,568,29/03/2019,1803-00465,0.00,403.20 ,R,Aegis Care Solutions Ltd,No
Http://opendatacommunities.org/id/metropolitan-district-council/leeds,Leeds City Council,31/03/2018,Children and Families,Social Care  ,Premises,Maintenance Of Buildings,101,26/02/2019,1803-00466,0.00,168.90 ,R,Afe Serviceline,Yes
Http://opendatacommunities.org/id/metropolitan-district-council/leeds,Leeds City Council,31/03/2018,Adults and Health,Services For Older People Under 65 P/Dis,Third Party Payments,Home Care,568,01/03/2019,1803-00467,0.00,395.01 ,R,Affinity Trust,No
Http://opendatacommunities.org/id/metropolitan-district-council/leeds,Leeds City Council As Accountable Body,31/03/2018,Social Services Pooled Budgets,Jcs For People With Learning Disabilitie,Third Party Payments,Day Centre,564,04/03/2019,1803-00468,0.00,2031.48 ,R,Affinity Trust,No
Http://opendatacommunities.org/id/metropolitan-district-council/leeds,Leeds City Council As Accountable Body,31/03/2018,Social Services Pooled Budgets,Jcs For People With Learning Disabilitie,Third Party Payments,Home Care,568,04/03/2019,1803-00469,0.00,3.15 ,R,Affinity Trust,No
Http://opendatacommunities.org/id/metropolitan-district-council/leeds,Leeds City Council As Accountable Body,31/03/2018,Social Services Pooled Budgets,Jcs For People With Learning Disabilitie,Third Party Payments,Home Care,568,05/03/2019,1803-00470,0.00,3446.80 ,R,Affinity Trust,No
Http://opendatacommunities.org/id/metropolitan-district-council/leeds,Leeds City Council As Accountable Body,31/03/2018,Social Services Pooled Budgets,Jcs For People With Learning Disabilitie,Third Party Payments,Home Care,568,05/03/2019,1803-00471,0.00,607.24 ,R,Affinity Trust,No
Http://opendatacommunities.org/id/metropolitan-district-council/leeds,Leeds City Council As Accountable Body,31/03/2018,Social Services Pooled Budgets,Jcs For People With Learning Disabilitie,Third Party Payments,Home Care,568,05/03/2019,1803-00472,0.00,639.20 ,R,Affinity Trust,No
Http://opendatacommunities.org/id/metropolitan-district-council/leeds,Leeds City Council As Accountable Body,31/03/2018,Social Services Pooled Budgets,Jcs For People With Learning Disabilitie,Third Party Payments,Home Care,568,06/03/2019,1803-00473,0.00,415.48 ,R,Affinity Trust,No
Http://opendatacommunities.org/id/metropolitan-district-council/leeds,Leeds City Council,31/03/2018,Adults and Health,Services For Older People - 65 And Over,Third Party Payments,HCAIT Community Support,575,13/03/2019,1803-00474,0.00,615.23 ,R,Affinity Trust,No
Http://opendatacommunities.org/id/metropolitan-district-council/leeds,Leeds City Council,31/03/2018,Adults and Health,Services For Older People Under 65 P/Dis,Third Party Payments,Home Care,568,13/03/2019,1803-00475,0.00,958.80 ,R,Affinity Trust,No
Http://opendatacommunities.org/id/metropolitan-district-council/leeds,Leeds City Council As Accountable Body,31/03/2018,Social Services Pooled Budgets,Jcs For People With Learning Disabilitie,Third Party Payments,Home Care,568,13/03/2019,1803-00476,0.00,703.12 ,R,Affinity Trust,No
Http://opendatacommunities.org/id/metropolitan-district-council/leeds,Leeds City Council As Accountable Body,31/03/2018,Social Services Pooled Budgets,Jcs For People With Learning Disabilitie,Third Party Payments,Nursing Home - Physical Disabl,575,13/03/2019,1803-00477,0.00,127.84 ,R,Affinity Trust,No
Http://opendatacommunities.org/id/metropolitan-district-council/leeds,Leeds City Council As Accountable Body,31/03/2018,Social Services Pooled Budgets,Jcs For People With Learning Disabilitie,Third Party Payments,Home Care,568,20/03/2019,1803-00478,0.00,319.60 ,R,Affinity Trust,No
Http://opendatacommunities.org/id/metropolitan-district-council/leeds,Leeds City Council,31/03/2018,Adults and Health,Services For Older People - 65 And Over,Third Party Payments,Home Care,568,22/03/2019,1803-00479,0.00,495.38 ,R,Affinity Trust,No
Http://opendatacommunities.org/id/metropolitan-district-council/leeds,Leeds City Council,31/03/2018,Adults and Health,Services For Older People Under 65 P/Dis,Third Party Payments,Home Care,568,22/03/2019,1803-00480,0.00,526.68 ,R,Affinity Trust,No
Http://opendatacommunities.org/id/metropolitan-district-council/leeds,Leeds City Council As Accountable Body,31/03/2018,Social Services Pooled Budgets,Jcs For People With Learning Disabilitie,Third Party Payments,Day Centre,564,22/03/2019,1803-00481,0.00,2149.92 ,R,Affinity Trust,No
Http://opendatacommunities.org/id/metropolitan-district-council/leeds,Leeds City Council As Accountable Body,31/03/2018,Social Services Pooled Budgets,Jcs For People With Learning Disabilitie,Third Party Payments,Home Care,568,22/03/2019,1803-00482,0.00,1387.40 ,R,Affinity Trust,No
Http://opendatacommunities.org/id/metropolitan-district-council/leeds,Leeds City Council As Accountable Body,31/03/2018,Social Services Pooled Budgets,Jcs For People With Learning Disabilitie,Transfer Payments,Personal Budgets,627,27/03/2019,1803-00483,0.00,701.14 ,R,Affinity Trust,No
Http://opendatacommunities.org/id/metropolitan-district-council/leeds,Leeds City Council,31/03/2018,Adults and Health,Services For Older People Under 65 P/Dis,Third Party Payments,Home Care,568,29/03/2019,1803-00484,0.00,908.28 ,R,Affinity Trust,No
Http://opendatacommunities.org/id/metropolitan-district-council/leeds,Leeds City Council As Accountable Body,31/03/2018,Social Services Pooled Budgets,Jcs For People With Learning Disabilitie,Third Party Payments,Day Centre,564,29/03/2019,1803-00485,0.00,416.64 ,R,Affinity Trust,No
Http://opendatacommunities.org/id/metropolitan-district-council/leeds,Leeds City Council As Accountable Body,31/03/2018,Social Services Pooled Budgets,Jcs For People With Learning Disabilitie,Third Party Payments,Day Centre,564,29/03/2019,1803-00486,0.00,191.76 ,R,Affinity Trust,No
Http://opendatacommunities.org/id/metropolitan-district-council/leeds,Leeds City Council As Accountable Body,31/03/2018,Social Services Pooled Budgets,Jcs For People With Learning Disabilitie,Third Party Payments,Day Centre,564,29/03/2019,1803-00487,0.00,1440.00 ,R,Affinity Trust,No
Http://opendatacommunities.org/id/metropolitan-district-council/leeds,Leeds City Council As Accountable Body,31/03/2018,Social Services Pooled Budgets,Jcs For People With Learning Disabilitie,Third Party Payments,Day Centre,564,29/03/2019,1803-00488,0.00,1065.33 ,R,Affinity Trust,No
Http://opendatacommunities.org/id/metropolitan-district-council/leeds,Leeds City Council As Accountable Body,31/03/2018,Social Services Pooled Budgets,Jcs For People With Learning Disabilitie,Third Party Payments,Day Centre,564,29/03/2019,1803-00489,0.00,402.24 ,R,Affinity Trust,No
Http://opendatacommunities.org/id/metropolitan-district-council/leeds,Leeds City Council As Accountable Body,31/03/2018,Social Services Pooled Budgets,Jcs For People With Learning Disabilitie,Third Party Payments,Day Centre,564,29/03/2019,1803-00490,0.00,714.78 ,R,Affinity Trust,No
Http://opendatacommunities.org/id/metropolitan-district-council/leeds,Leeds City Council As Accountable Body,31/03/2018,Social Services Pooled Budgets,Jcs For People With Learning Disabilitie,Third Party Payments,Day Centre,564,29/03/2019,1803-00491,0.00,1337.31 ,R,Affinity Trust,No
Http://opendatacommunities.org/id/metropolitan-district-council/leeds,Leeds City Council As Accountable Body,31/03/2018,Social Services Pooled Budgets,Jcs For People With Learning Disabilitie,Third Party Payments,Day Centre,564,29/03/2019,1803-00492,0.00,2031.48 ,R,Affinity Trust,No
Http://opendatacommunities.org/id/metropolitan-district-council/leeds,Leeds City Council As Accountable Body,31/03/2018,Social Services Pooled Budgets,Jcs For People With Learning Disabilitie,Third Party Payments,Home Care,568,29/03/2019,1803-00493,0.00,1560.00 ,R,Affinity Trust,No
Http://opendatacommunities.org/id/metropolitan-district-council/leeds,Leeds City Council As Accountable Body,31/03/2018,Social Services Pooled Budgets,Jcs For People With Learning Disabilitie,Third Party Payments,Home Care,568,29/03/2019,1803-00494,0.00,675.99 ,R,Affinity Trust,No
Http://opendatacommunities.org/id/metropolitan-district-council/leeds,Leeds City Council As Accountable Body,31/03/2018,Social Services Pooled Budgets,Jcs For People With Learning Disabilitie,Third Party Payments,Home Care,568,29/03/2019,1803-00495,0.00,1800.00 ,R,Affinity Trust,No
Http://opendatacommunities.org/id/metropolitan-district-council/leeds,Leeds City Council As Accountable Body,31/03/2018,Social Services Pooled Budgets,Jcs For People With Learning Disabilitie,Third Party Payments,Home Care,568,29/03/2019,1803-00496,0.00,639.20 ,R,Affinity Trust,No
Http://opendatacommunities.org/id/metropolitan-district-council/leeds,Leeds City Council As Accountable Body,31/03/2018,Social Services Pooled Budgets,Jcs For People With Learning Disabilitie,Third Party Payments,Home Care,568,29/03/2019,1803-00497,0.00,95.88 ,R,Affinity Trust,No
Http://opendatacommunities.org/id/metropolitan-district-council/leeds,Leeds City Council As Accountable Body,31/03/2018,Social Services Pooled Budgets,Jcs For People With Learning Disabilitie,Third Party Payments,Home Care,568,29/03/2019,1803-00498,0.00,319.60 ,R,Affinity Trust,No
Http://opendatacommunities.org/id/metropolitan-district-council/leeds,Leeds City Council As Accountable Body,31/03/2018,Social Services Pooled Budgets,Jcs For People With Learning Disabilitie,Third Party Payments,Home Care,568,29/03/2019,1803-00499,0.00,319.60 ,R,Affinity Trust,No
Http://opendatacommunities.org/id/metropolitan-district-council/leeds,Leeds City Council As Accountable Body,31/03/2018,Social Services Pooled Budgets,Jcs For People With Learning Disabilitie,Third Party Payments,Home Care,568,29/03/2019,1803-00500,0.00,1158.55 ,R,Affinity Trust,No
Http://opendatacommunities.org/id/metropolitan-district-council/leeds,Leeds City Council As Accountable Body,31/03/2018,Social Services Pooled Budgets,Jcs For People With Learning Disabilitie,Third Party Payments,Home Care,568,29/03/2019,1803-00501,0.00,255.68 ,R,Affinity Trust,No
Http://opendatacommunities.org/id/metropolitan-district-council/leeds,Leeds City Council As Accountable Body,31/03/2018,Social Services Pooled Budgets,Jcs For People With Learning Disabilitie,Third Party Payments,Home Care,568,29/03/2019,1803-00502,0.00,639.20 ,R,Affinity Trust,No
Http://opendatacommunities.org/id/metropolitan-district-council/leeds,Leeds City Council As Accountable Body,31/03/2018,Social Services Pooled Budgets,Jcs For People With Learning Disabilitie,Third Party Payments,Home Care,568,29/03/2019,1803-00503,0.00,447.44 ,R,Affinity Trust,No
Http://opendatacommunities.org/id/metropolitan-district-council/leeds,Leeds City Council As Accountable Body,31/03/2018,Social Services Pooled Budgets,Jcs For People With Learning Disabilitie,Third Party Payments,Home Care,568,29/03/2019,1803-00504,0.00,799.00 ,R,Affinity Trust,No
Http://opendatacommunities.org/id/metropolitan-district-council/leeds,Leeds City Council As Accountable Body,31/03/2018,Social Services Pooled Budgets,Jcs For People With Learning Disabilitie,Third Party Payments,Home Care,568,29/03/2019,1803-00505,0.00,2752.80 ,R,Affinity Trust,No
Http://opendatacommunities.org/id/metropolitan-district-council/leeds,Leeds City Council As Accountable Body,31/03/2018,Social Services Pooled Budgets,Jcs For People With Learning Disabilitie,Third Party Payments,Home Care,568,29/03/2019,1803-00506,0.00,1971.30 ,R,Affinity Trust,No
Http://opendatacommunities.org/id/metropolitan-district-council/leeds,Leeds City Council As Accountable Body,31/03/2018,Social Services Pooled Budgets,Jcs For People With Learning Disabilitie,Third Party Payments,Home Care,568,29/03/2019,1803-00507,0.00,1080.00 ,R,Affinity Trust,No
Http://opendatacommunities.org/id/metropolitan-district-council/leeds,Leeds City Council As Accountable Body,31/03/2018,Social Services Pooled Budgets,Jcs For People With Learning Disabilitie,Third Party Payments,Home Care,568,29/03/2019,1803-00508,0.00,3446.80 ,R,Affinity Trust,No
Http://opendatacommunities.org/id/metropolitan-district-council/leeds,Leeds City Council As Accountable Body,31/03/2018,Social Services Pooled Budgets,Jcs For People With Learning Disabilitie,Third Party Payments,Home Care,568,29/03/2019,1803-00509,0.00,525.72 ,R,Affinity Trust,No
Http://opendatacommunities.org/id/metropolitan-district-council/leeds,Leeds City Council As Accountable Body,31/03/2018,Social Services Pooled Budgets,Jcs For People With Learning Disabilitie,Third Party Payments,Home Care,568,29/03/2019,1803-00510,0.00,804.48 ,R,Affinity Trust,No
Http://opendatacommunities.org/id/metropolitan-district-council/leeds,Leeds City Council As Accountable Body,31/03/2018,Social Services Pooled Budgets,Jcs For People With Learning Disabilitie,Third Party Payments,Home Care,568,29/03/2019,1803-00511,0.00,1785.33 ,R,Affinity Trust,No
Http://opendatacommunities.org/id/metropolitan-district-council/leeds,Leeds City Council As Accountable Body,31/03/2018,Social Services Pooled Budgets,Jcs For People With Learning Disabilitie,Third Party Payments,Home Care,568,29/03/2019,1803-00512,0.00,1005.60 ,R,Affinity Trust,No
Http://opendatacommunities.org/id/metropolitan-district-council/leeds,Leeds City Council As Accountable Body,31/03/2018,Social Services Pooled Budgets,Jcs For People With Learning Disabilitie,Third Party Payments,Home Care,568,29/03/2019,1803-00513,0.00,360.00 ,R,Affinity Trust,No
Http://opendatacommunities.org/id/metropolitan-district-council/leeds,Leeds City Council As Accountable Body,31/03/2018,Social Services Pooled Budgets,Jcs For People With Learning Disabilitie,Third Party Payments,Home Care,568,29/03/2019,1803-00514,0.00,1400.43 ,R,Affinity Trust,No
Http://opendatacommunities.org/id/metropolitan-district-council/leeds,Leeds City Council As Accountable Body,31/03/2018,Social Services Pooled Budgets,Jcs For People With Learning Disabilitie,Third Party Payments,Home Care,568,29/03/2019,1803-00515,0.00,934.83 ,R,Affinity Trust,No
Http://opendatacommunities.org/id/metropolitan-district-council/leeds,Leeds City Council As Accountable Body,31/03/2018,Social Services Pooled Budgets,Jcs For People With Learning Disabilitie,Third Party Payments,Home Care,568,29/03/2019,1803-00516,0.00,1110.61 ,R,Affinity Trust,No
Http://opendatacommunities.org/id/metropolitan-district-council/leeds,Leeds City Council As Accountable Body,31/03/2018,Social Services Pooled Budgets,Jcs For People With Learning Disabilitie,Third Party Payments,Home Care,568,29/03/2019,1803-00517,0.00,383.52 ,R,Affinity Trust,No
Http://opendatacommunities.org/id/metropolitan-district-council/leeds,Leeds City Council As Accountable Body,31/03/2018,Social Services Pooled Budgets,Jcs For People With Learning Disabilitie,Third Party Payments,Home Care,568,29/03/2019,1803-00518,0.00,1518.00 ,R,Affinity Trust,No
Http://opendatacommunities.org/id/metropolitan-district-council/leeds,Leeds City Council As Accountable Body,31/03/2018,Social Services Pooled Budgets,Jcs For People With Learning Disabilitie,Third Party Payments,Home Care,568,29/03/2019,1803-00519,0.00,1211.04 ,R,Affinity Trust,No
Http://opendatacommunities.org/id/metropolitan-district-council/leeds,Leeds City Council As Accountable Body,31/03/2018,Social Services Pooled Budgets,Jcs For People With Learning Disabilitie,Third Party Payments,Home Care,568,29/03/2019,1803-00520,0.00,639.20 ,R,Affinity Trust,No
Http://opendatacommunities.org/id/metropolitan-district-council/leeds,Leeds City Council As Accountable Body,31/03/2018,Social Services Pooled Budgets,Jcs For People With Learning Disabilitie,Third Party Payments,Home Care,568,29/03/2019,1803-00521,0.00,639.20 ,R,Affinity Trust,No
Http://opendatacommunities.org/id/metropolitan-district-council/leeds,Leeds City Council As Accountable Body,31/03/2018,Social Services Pooled Budgets,Jcs For People With Learning Disabilitie,Third Party Payments,Home Care,568,29/03/2019,1803-00522,0.00,306.00 ,R,Affinity Trust,No
Http://opendatacommunities.org/id/metropolitan-district-council/leeds,Leeds City Council As Accountable Body,31/03/2018,Social Services Pooled Budgets,Jcs For People With Learning Disabilitie,Third Party Payments,Home Care,568,29/03/2019,1803-00523,0.00,1086.64 ,R,Affinity Trust,No
Http://opendatacommunities.org/id/metropolitan-district-council/leeds,Leeds City Council As Accountable Body,31/03/2018,Social Services Pooled Budgets,Jcs For People With Learning Disabilitie,Third Party Payments,Home Care,568,29/03/2019,1803-00524,0.00,2540.82 ,R,Affinity Trust,No
Http://opendatacommunities.org/id/metropolitan-district-council/leeds,Leeds City Council As Accountable Body,31/03/2018,Social Services Pooled Budgets,Jcs For People With Learning Disabilitie,Third Party Payments,Home Care,568,29/03/2019,1803-00525,0.00,306.48 ,R,Affinity Trust,No
Http://opendatacommunities.org/id/metropolitan-district-council/leeds,Leeds City Council As Accountable Body,31/03/2018,Social Services Pooled Budgets,Jcs For People With Learning Disabilitie,Third Party Payments,Home Care,568,29/03/2019,1803-00526,0.00,941.92 ,R,Affinity Trust,No
Http://opendatacommunities.org/id/metropolitan-district-council/leeds,Leeds City Council As Accountable Body,31/03/2018,Social Services Pooled Budgets,Jcs For People With Learning Disabilitie,Transfer Payments,Personal Budgets,627,29/03/2019,1803-00527,0.00,677.86 ,R,Affinity Trust,No
Http://opendatacommunities.org/id/metropolitan-district-council/leeds,Leeds City Council As Accountable Body,31/03/2018,Social Services Pooled Budgets,Jcs For People With Learning Disabilitie,Third Party Payments,Sheltered Accommodation,569,06/03/2019,1803-00528,0.00,132461.44 ,R,Affinity Trust North Divisional Office,No
Http://opendatacommunities.org/id/metropolitan-district-council/leeds,Leeds City Council,31/03/2018,Communities and Environment,Parks And Countryside  ,Transport,External Hire -Occasional,304,25/02/2019,1803-00529,0.00,950.00 ,R,Afi Uplift,Yes
Http://opendatacommunities.org/id/metropolitan-district-council/leeds,Leeds City Council,31/03/2018,Communities and Environment,Parks And Countryside  ,Transport,External Hire -Occasional,304,25/02/2019,1803-00530,0.00,950.00 ,R,Afi Uplift,Yes
Http://opendatacommunities.org/id/metropolitan-district-council/leeds,Leeds City Council,31/03/2018,Communities and Environment,Parks And Countryside  ,Transport,External Hire -Occasional,304,25/02/2019,1803-00531,0.00,950.00 ,R,Afi Uplift,Yes
Http://opendatacommunities.org/id/metropolitan-district-council/leeds,Leeds City Council,31/03/2018,Communities and Environment,Parks And Countryside  ,Transport,External Hire -Occasional,304,25/02/2019,1803-00532,0.00,760.00 ,R,Afi Uplift,Yes
Http://opendatacommunities.org/id/metropolitan-district-council/leeds,Leeds City Council,31/03/2018,City Development,Employment & Skills,Supplies and Services,College Contracts,276,15/03/2019,1803-00533,0.00,7800.00 ,R,Age Uk Leeds,No
Http://opendatacommunities.org/id/metropolitan-district-council/leeds,Leeds City Council,31/03/2018,Insurance,Insurance,Supplies and Services,Insurance Claims,248,14/03/2019,1803-00534,0.00,1116.90 ,R,Ageas Insurance Limited,No
Http://opendatacommunities.org/id/metropolitan-district-council/leeds,Leeds City Council,31/03/2018,Insurance,Insurance,Supplies and Services,Insurance Claims,248,22/03/2019,1803-00535,0.00,2765.00 ,R,Ageas Insurance Limited,No
Http://opendatacommunities.org/id/metropolitan-district-council/leeds,Leeds City Council,31/03/2018,City Development,Highways,Capital,Construction,3,28/03/2019,1803-00536,0.00,247439.46 ,C,Aggregate Industries Uk Ltd,No
Http://opendatacommunities.org/id/metropolitan-district-council/leeds,Leeds City Council,31/03/2018,City Development,Economic Development,Supplies and Services,Grant Related Expenditure,290,22/03/2019,1803-00537,0.00,4500.00 ,R,Ahead Partnership Ltd,No
Http://opendatacommunities.org/id/metropolitan-district-council/leeds,Leeds City Council,31/03/2018,Children and Families,Social Care  ,Premises,Furniture And Fittings,195,07/02/2019,1803-00538,0.00,1115.33 ,R,Ahf Saville Rd War,Yes
Http://opendatacommunities.org/id/metropolitan-district-council/leeds,Leeds City Council,31/03/2018,Children and Families,Social Care  ,Premises,Furniture And Fittings,195,20/02/2019,1803-00539,0.00,469.00 ,R,Ahf Saville Rd War,Yes
Http://opendatacommunities.org/id/metropolitan-district-council/leeds,Leeds City Council As Accountable Body,31/03/2018,Social Services Pooled Budgets,Leeds Community Equip Store Pooled Budgt,Supplies and Services,Other Equipment,203,01/03/2019,1803-00540,0.00,1374.25 ,R,Aidapt Bathrooms Ltd,No
Http://opendatacommunities.org/id/metropolitan-district-council/leeds,Leeds City Council As Accountable Body,31/03/2018,Social Services Pooled Budgets,Leeds Community Equip Store Pooled Budgt,Supplies and Services,Other Equipment,203,01/03/2019,1803-00541,0.00,794.20 ,R,Aidapt Bathrooms Ltd,No
Http://opendatacommunities.org/id/metropolitan-district-council/leeds,Leeds City Council As Accountable Body,31/03/2018,Social Services Pooled Budgets,Leeds Community Equip Store Pooled Budgt,Supplies and Services,Other Equipment,203,01/03/2019,1803-00542,0.00,773.70 ,R,Aidapt Bathrooms Ltd,No
Http://opendatacommunities.org/id/metropolitan-district-council/leeds,Leeds City Council As Accountable Body,31/03/2018,Social Services Pooled Budgets,Leeds Community Equip Store Pooled Budgt,Supplies and Services,Other Equipment,203,08/03/2019,1803-00543,0.00,1025.60 ,R,Aidapt Bathrooms Ltd,No
Http://opendatacommunities.org/id/metropolitan-district-council/leeds,Leeds City Council As Accountable Body,31/03/2018,Social Services Pooled Budgets,Leeds Community Equip Store Pooled Budgt,Supplies and Services,Other Equipment,203,08/03/2019,1803-00544,0.00,302.00 ,R,Aidapt Bathrooms Ltd,No
Http://opendatacommunities.org/id/metropolitan-district-council/leeds,Leeds City Council,31/03/2018,Adults and Health,Services For Older People - 65 And Over,Premises,General Maintenance,104,29/03/2019,1803-00545,0.00,709.50 ,R,Aidapt Bathrooms Ltd,No
Http://opendatacommunities.org/id/metropolitan-district-council/leeds,Leeds City Council As Accountable Body,31/03/2018,Social Services Pooled Budgets,Leeds Community Equip Store Pooled Budgt,Supplies and Services,Other Equipment,203,29/03/2019,1803-00546,0.00,1674.30 ,R,Aidapt Bathrooms Ltd,No
Http://opendatacommunities.org/id/metropolitan-district-council/leeds,Leeds City Council,31/03/2018,City Development,Highways,Employees,Training & Development,70,26/03/2019,1803-00547,0.00,1800.00 ,R,Aimsun Ltd,No
Http://opendatacommunities.org/id/metropolitan-district-council/leeds,Leeds City Council,31/03/2018,Resources and Housing,Leeds Building Services,Supplies and Services,Operational Materials,205,01/03/2019,1803-00548,0.00,399.90 ,R,Air Conditioning Accessories,No
Http://opendatacommunities.org/id/metropolitan-district-council/leeds,Leeds City Council,31/03/2018,Resources and Housing,Leeds Building Services,Supplies and Services,Operational Materials,205,01/03/2019,1803-00549,0.00,80.00 ,R,Air Conditioning Accessories,No
Http://opendatacommunities.org/id/metropolitan-district-council/leeds,Leeds City Council,31/03/2018,Resources and Housing,Leeds Building Services,Supplies and Services,Operational Materials,205,01/03/2019,1803-00550,0.00,280.23 ,R,Air Conditioning Accessories,No
Http://opendatacommunities.org/id/metropolitan-district-council/leeds,Leeds City Council,31/03/2018,Resources and Housing,Leeds Building Services,Supplies and Services,Operational Materials,205,13/03/2019,1803-00551,0.00,40.08 ,R,Air Conditioning Accessories,No
Http://opendatacommunities.org/id/metropolitan-district-council/leeds,Leeds City Council,31/03/2018,Resources and Housing,Leeds Building Services,Supplies and Services,Operational Materials,205,13/03/2019,1803-00552,0.00,78.42 ,R,Air Conditioning Accessories,No
Http://opendatacommunities.org/id/metropolitan-district-council/leeds,Leeds City Council,31/03/2018,Resources and Housing,Leeds Building Services,Supplies and Services,Operational Materials,205,13/03/2019,1803-00553,0.00,80.00 ,R,Air Conditioning Accessories,No
Http://opendatacommunities.org/id/metropolitan-district-council/leeds,Leeds City Council,31/03/2018,Resources and Housing,Leeds Building Services,Supplies and Services,Operational Materials,205,13/03/2019,1803-00554,0.00,45.92 ,R,Air Conditioning Accessories,No
Http://opendatacommunities.org/id/metropolitan-district-council/leeds,Leeds City Council,31/03/2018,Resources and Housing,Leeds Building Services,Supplies and Services,Operational Materials,205,13/03/2019,1803-00555,0.00,817.10 ,R,Air Conditioning Accessories,No
Http://opendatacommunities.org/id/metropolitan-district-council/leeds,Leeds City Council,31/03/2018,Resources and Housing,Leeds Building Services,Supplies and Services,Operational Materials,205,13/03/2019,1803-00556,0.00,87.08 ,R,Air Conditioning Accessories,No
Http://opendatacommunities.org/id/metropolitan-district-council/leeds,Leeds City Council,31/03/2018,Resources and Housing,Leeds Building Services,Supplies and Services,Operational Materials,205,22/03/2019,1803-00557,0.00,842.51 ,R,Air Conditioning Accessories,No
Http://opendatacommunities.org/id/metropolitan-district-council/leeds,Leeds City Council,31/03/2018,Resources and Housing,Leeds Building Services,Supplies and Services,Operational Materials,205,28/03/2019,1803-00558,0.00,106.71 ,R,Air Conditioning Accessories,No
Http://opendatacommunities.org/id/metropolitan-district-council/leeds,Leeds City Council,31/03/2018,Resources and Housing,Leeds Building Services,Supplies and Services,Operational Materials,205,29/03/2019,1803-00559,0.00,120.46 ,R,Air Conditioning Accessories,No
Http://opendatacommunities.org/id/metropolitan-district-council/leeds,Leeds City Council,31/03/2018,Resources and Housing,Leeds Building Services,Supplies and Services,Operational Materials,205,29/03/2019,1803-00560,0.00,139.00 ,R,Air Conditioning Accessories,No
Http://opendatacommunities.org/id/metropolitan-district-council/leeds,Leeds City Council,31/03/2018,Resources and Housing,Leeds Building Services,Supplies and Services,Operational Materials,205,29/03/2019,1803-00561,0.00,236.87 ,R,Air Conditioning Accessories,No
Http://opendatacommunities.org/id/metropolitan-district-council/leeds,Leeds City Council,31/03/2018,Resources and Housing,Leeds Building Services,Supplies and Services,Operational Materials,205,29/03/2019,1803-00562,0.00,139.00 ,R,Air Conditioning Accessories,No
Http://opendatacommunities.org/id/metropolitan-district-council/leeds,Leeds City Council,31/03/2018,Resources and Housing,Commercial Services  ,Supplies and Services,Operational Materials,205,07/02/2019,1803-00563,0.00,198.57 ,R,Air Force Pneumati,Yes
Http://opendatacommunities.org/id/metropolitan-district-council/leeds,Leeds City Council,31/03/2018,Resources and Housing,Commercial Services  ,Supplies and Services,Operational Materials,205,20/02/2019,1803-00564,0.00,68.58 ,R,Air Force Pneumati,Yes
Http://opendatacommunities.org/id/metropolitan-district-council/leeds,Leeds City Council,31/03/2018,Resources and Housing,Commercial Services  ,Supplies and Services,Operational Materials,205,20/02/2019,1803-00565,0.00,97.00 ,R,Air Force Pneumati,Yes
Http://opendatacommunities.org/id/metropolitan-district-council/leeds,Leeds City Council,31/03/2018,Resources and Housing,Leeds Building Services,Supplies and Services,Operational Materials,205,12/03/2019,1803-00566,0.00,213.98 ,R,Air Liquide Uk,No
Http://opendatacommunities.org/id/metropolitan-district-council/leeds,Leeds City Council,31/03/2018,Communities and Environment,Environmental Health,Supplies and Services,Other Hired And Contracted Services,265,14/03/2019,1803-00567,0.00,78.88 ,R,Air Liquide Uk,No
Http://opendatacommunities.org/id/metropolitan-district-council/leeds,Leeds City Council,31/03/2018,Communities and Environment,Environmental Health,Supplies and Services,Other Hired And Contracted Services,265,14/03/2019,1803-00568,0.00,15.03 ,R,Air Liquide Uk,No
Http://opendatacommunities.org/id/metropolitan-district-council/leeds,Leeds City Council,31/03/2018,Communities and Environment,Environmental Health,Supplies and Services,Other Hired And Contracted Services,265,14/03/2019,1803-00569,0.00,9.86 ,R,Air Liquide Uk,No
Http://opendatacommunities.org/id/metropolitan-district-council/leeds,Leeds City Council,31/03/2018,Communities and Environment,Environmental Health,Supplies and Services,Other Hired And Contracted Services,265,14/03/2019,1803-00570,0.00,9.86 ,R,Air Liquide Uk,No
Http://opendatacommunities.org/id/metropolitan-district-council/leeds,Leeds City Council,31/03/2018,Communities and Environment,Environmental Health,Supplies and Services,Other Hired And Contracted Services,265,29/03/2019,1803-00571,0.00,78.88 ,R,Air Liquide Uk,No
Http://opendatacommunities.org/id/metropolitan-district-council/leeds,Leeds City Council,31/03/2018,Communities and Environment,Environmental Health,Supplies and Services,Other Hired And Contracted Services,265,29/03/2019,1803-00572,0.00,15.03 ,R,Air Liquide Uk,No
Http://opendatacommunities.org/id/metropolitan-district-council/leeds,Leeds City Council,31/03/2018,Communities and Environment,Environmental Health,Supplies and Services,Other Hired And Contracted Services,265,29/03/2019,1803-00573,0.00,9.86 ,R,Air Liquide Uk,No
Http://opendatacommunities.org/id/metropolitan-district-council/leeds,Leeds City Council,31/03/2018,Communities and Environment,Environmental Health,Supplies and Services,Other Hired And Contracted Services,265,29/03/2019,1803-00574,0.00,9.86 ,R,Air Liquide Uk,No
Http://opendatacommunities.org/id/metropolitan-district-council/leeds,Leeds City Council,31/03/2018,Communities and Environment,Parks and Countryside,Supplies and Services,Other Hired And Contracted Services,265,08/03/2019,1803-00575,0.00,200.00 ,R,Aire Valley Tree Services Ltd,No
Http://opendatacommunities.org/id/metropolitan-district-council/leeds,Leeds City Council,31/03/2018,Adults and Health,Services For Older People - 65 And Over,Third Party Payments,Residential Care Dementia,571,06/03/2019,1803-00576,0.00,55258.62 ,R,Aire View Residential Home,No
Http://opendatacommunities.org/id/metropolitan-district-council/leeds,Leeds City Council,31/03/2018,Adults and Health,Services For Older People - 65 And Over,Third Party Payments,Residential,580,06/03/2019,1803-00577,0.00,11922.40 ,R,Aire View Residential Home,No
Http://opendatacommunities.org/id/metropolitan-district-council/leeds,Leeds City Council As Accountable Body,31/03/2018,Social Services Pooled Budgets,Jcs For People With Learning Disabilitie,Third Party Payments,Nursing Home - V Depnt Elderly,571,06/03/2019,1803-00578,0.00,1014.63 ,R,Aire View Residential Home,No
Http://opendatacommunities.org/id/metropolitan-district-council/leeds,Leeds City Council,31/03/2018,Communities and Environment,Communities,Supplies and Services,'Well Being' Large Grants Projects,230,28/03/2019,1803-00579,0.00,1884.00 ,R,Aireborough Supported Activities Scheme,No
Http://opendatacommunities.org/id/metropolitan-district-council/leeds,Leeds City Council,31/03/2018,Adults and Health,Services For Older People - 65 And Over,Third Party Payments,Residential Care Dementia,571,06/03/2019,1803-00580,0.00,6605.16 ,R,Airedale Care Home,No
Http://opendatacommunities.org/id/metropolitan-district-council/leeds,Leeds City Council,31/03/2018,Adults and Health,Services For Older People - 65 And Over,Third Party Payments,Residential,580,06/03/2019,1803-00581,0.00,20994.97 ,R,Airedale Care Home,No
Http://opendatacommunities.org/id/metropolitan-district-council/leeds,Leeds City Council,31/03/2018,Resources and Housing,Commercial Services,Supplies and Services,Operational Furniture And Equipment,203,01/03/2019,1803-00582,0.00,1020.00 ,R,Airedale Catering Equipment Ltd,No
Http://opendatacommunities.org/id/metropolitan-district-council/leeds,Leeds City Council,31/03/2018,Resources and Housing,Leeds Building Services,Supplies and Services,Other Hired And Contracted Services,265,08/03/2019,1803-00583,0.00,4104.00 ,R,Airedale Catering Equipment Ltd,No
Http://opendatacommunities.org/id/metropolitan-district-council/leeds,Leeds City Council,31/03/2018,Children and Families,Social Care,Supplies and Services,Operational Furniture And Equipment,203,20/03/2019,1803-00584,0.00,1328.00 ,R,Airedale Catering Equipment Ltd,No
Http://opendatacommunities.org/id/metropolitan-district-council/leeds,Leeds City Council,31/03/2018,Resources and Housing,Leeds Building Services,Supplies and Services,Other Hired And Contracted Services,265,21/03/2019,1803-00585,0.00,2060.00 ,R,Airedale Catering Equipment Ltd,No
Http://opendatacommunities.org/id/metropolitan-district-council/leeds,Leeds City Council,31/03/2018,Resources and Housing,Commercial Services,Supplies and Services,Operational Furniture And Equipment,203,22/03/2019,1803-00586,0.00,1735.00 ,R,Airedale Catering Equipment Ltd,No
Http://opendatacommunities.org/id/metropolitan-district-council/leeds,Leeds City Council,31/03/2018,Resources and Housing,Commercial Services,Supplies and Services,Other Hired And Contracted Services,265,20/03/2019,1803-00587,0.00,225.00 ,R,Air-Weigh Europe Limited,No
Http://opendatacommunities.org/id/metropolitan-district-council/leeds,Leeds City Council,31/03/2018,Adults and Health,Services For Adults Under 65 Mental/Dis,Third Party Payments,Fees - Level 4,520,06/03/2019,1803-00588,0.00,175.00 ,R,Ait Mitra Limited,No
Http://opendatacommunities.org/id/metropolitan-district-council/leeds,Leeds City Council,31/03/2018,Adults and Health,Services For Adults Under 65 Mental/Dis,Third Party Payments,Fees - Level 4,520,08/03/2019,1803-00589,0.00,175.00 ,R,Ait Mitra Limited,No
Http://opendatacommunities.org/id/metropolitan-district-council/leeds,Leeds City Council,31/03/2018,Adults and Health,Services For Adults Under 65 Mental/Dis,Third Party Payments,Fees - Level 4,520,08/03/2019,1803-00590,0.00,175.00 ,R,Ait Mitra Limited,No
Http://opendatacommunities.org/id/metropolitan-district-council/leeds,Leeds City Council,31/03/2018,Adults and Health,Services For Adults Under 65 Mental/Dis,Third Party Payments,Fees - Level 4,520,08/03/2019,1803-00591,0.00,175.00 ,R,Ait Mitra Limited,No
Http://opendatacommunities.org/id/metropolitan-district-council/leeds,Leeds City Council,31/03/2018,Adults and Health,Services For Adults Under 65 Mental/Dis,Third Party Payments,Fees - Level 4,520,08/03/2019,1803-00592,0.00,175.00 ,R,Ait Mitra Limited,No
Http://opendatacommunities.org/id/metropolitan-district-council/leeds,Leeds City Council,31/03/2018,Adults and Health,Services For Adults Under 65 Mental/Dis,Third Party Payments,Fees - Level 4,520,08/03/2019,1803-00593,0.00,175.00 ,R,Ait Mitra Limited,No
Http://opendatacommunities.org/id/metropolitan-district-council/leeds,Leeds City Council,31/03/2018,Adults and Health,Services For Adults Under 65 Mental/Dis,Third Party Payments,Fees - Level 4,520,14/03/2019,1803-00594,0.00,175.00 ,R,Ait Mitra Limited,No
Http://opendatacommunities.org/id/metropolitan-district-council/leeds,Leeds City Council,31/03/2018,Adults and Health,Services For Adults Under 65 Mental/Dis,Third Party Payments,Fees - Level 4,520,22/03/2019,1803-00595,0.00,175.00 ,R,Ait Mitra Limited,No
Http://opendatacommunities.org/id/metropolitan-district-council/leeds,Leeds City Council,31/03/2018,Adults and Health,Services For Adults Under 65 Mental/Dis,Third Party Payments,Fees - Level 4,520,22/03/2019,1803-00596,0.00,175.00 ,R,Ait Mitra Limited,No
Http://opendatacommunities.org/id/metropolitan-district-council/leeds,Leeds City Council,31/03/2018,Adults and Health,Services For Adults Under 65 Mental/Dis,Third Party Payments,Fees - Level 4,520,22/03/2019,1803-00597,0.00,175.00 ,R,Ait Mitra Limited,No
Http://opendatacommunities.org/id/metropolitan-district-council/leeds,Leeds City Council As Accountable Body,31/03/2018,Social Services Pooled Budgets,Jcs For People With Learning Disabilitie,Third Party Payments,Residential,580,06/03/2019,1803-00598,0.00,6173.24 ,R,Aitch Care Homes,No
Http://opendatacommunities.org/id/metropolitan-district-council/leeds,Leeds City Council,31/03/2018,Communities and Environment,Parks and Countryside,Supplies and Services,Operational Materials,205,07/03/2019,1803-00599,0.00,336.35 ,R,Aitkens Sportsturf Ltd,No
Http://opendatacommunities.org/id/metropolitan-district-council/leeds,Leeds City Council,31/03/2018,Adults and Health,Services For Older People - 65 And Over,Third Party Payments,Home Care,568,06/03/2019,1803-00600,0.00,11592.92 ,R,Aj Community Care Ltd,No
Http://opendatacommunities.org/id/metropolitan-district-council/leeds,Leeds City Council,31/03/2018,Adults and Health,Services For Older People Under 65 P/Dis,Third Party Payments,Home Care,568,06/03/2019,1803-00601,0.00,5343.90 ,R,Aj Community Care Ltd,No
Http://opendatacommunities.org/id/metropolitan-district-council/leeds,Leeds City Council,31/03/2018,Adults and Health,Services For Older People - 65 And Over,Third Party Payments,Home Care,568,13/03/2019,1803-00602,0.00,923.47 ,R,Aj Community Care Ltd,No
Http://opendatacommunities.org/id/metropolitan-district-council/leeds,Leeds City Council,31/03/2018,Resources and Housing,Leeds Building Services,Supplies and Services,Operational Furniture And Equipment,203,04/03/2019,1803-00603,0.00,994.00 ,R,Ajm Fixings & Power Tools Ltd,No
Http://opendatacommunities.org/id/metropolitan-district-council/leeds,Leeds City Council,31/03/2018,Resources and Housing,Leeds Building Services,Supplies and Services,Operational Furniture And Equipment,203,04/03/2019,1803-00604,0.00,225.70 ,R,Ajm Fixings & Power Tools Ltd,No
Http://opendatacommunities.org/id/metropolitan-district-council/leeds,Leeds City Council,31/03/2018,Resources and Housing,Leeds Building Services,Supplies and Services,Operational Furniture And Equipment,203,04/03/2019,1803-00605,0.00,234.00 ,R,Ajm Fixings & Power Tools Ltd,No
Http://opendatacommunities.org/id/metropolitan-district-council/leeds,Leeds City Council,31/03/2018,Resources and Housing,Leeds Building Services,Supplies and Services,Operational Furniture And Equipment,203,04/03/2019,1803-00606,0.00,2444.00 ,R,Ajm Fixings & Power Tools Ltd,No
Http://opendatacommunities.org/id/metropolitan-district-council/leeds,Leeds City Council,31/03/2018,Resources and Housing,Leeds Building Services,Supplies and Services,Operational Furniture And Equipment,203,04/03/2019,1803-00607,0.00,2099.00 ,R,Ajm Fixings & Power Tools Ltd,No
Http://opendatacommunities.org/id/metropolitan-district-council/leeds,Leeds City Council,31/03/2018,Resources and Housing,Leeds Building Services,Supplies and Services,Operational Furniture And Equipment,203,04/03/2019,1803-00608,0.00,72.50 ,R,Ajm Fixings & Power Tools Ltd,No
Http://opendatacommunities.org/id/metropolitan-district-council/leeds,Leeds City Council,31/03/2018,Resources and Housing,Leeds Building Services,Supplies and Services,Stores - Central And Other Depots,5,08/03/2019,1803-00609,0.00,832.12 ,R,Ajm Fixings & Power Tools Ltd,No
Http://opendatacommunities.org/id/metropolitan-district-council/leeds,Leeds City Council,31/03/2018,Resources and Housing,Leeds Building Services,Supplies and Services,Stores - Central And Other Depots,5,08/03/2019,1803-00610,0.00,154.00 ,R,Ajm Fixings & Power Tools Ltd,No
Http://opendatacommunities.org/id/metropolitan-district-council/leeds,Leeds City Council,31/03/2018,Resources and Housing,Leeds Building Services,Supplies and Services,Operational Materials,205,08/03/2019,1803-00611,0.00,713.25 ,R,Ajm Fixings & Power Tools Ltd,No
Http://opendatacommunities.org/id/metropolitan-district-council/leeds,Leeds City Council,31/03/2018,Resources and Housing,Leeds Building Services,Supplies and Services,Operational Furniture And Equipment,203,15/03/2019,1803-00612,0.00,288.00 ,R,Ajm Fixings & Power Tools Ltd,No
Http://opendatacommunities.org/id/metropolitan-district-council/leeds,Leeds City Council,31/03/2018,Resources and Housing,Leeds Building Services,Supplies and Services,Operational Furniture And Equipment,203,18/03/2019,1803-00613,0.00,495.33 ,R,Ajm Fixings & Power Tools Ltd,No
Http://opendatacommunities.org/id/metropolitan-district-council/leeds,Leeds City Council,31/03/2018,Resources and Housing,Leeds Building Services,Supplies and Services,Operational Furniture And Equipment,203,18/03/2019,1803-00614,0.00,194.47 ,R,Ajm Fixings & Power Tools Ltd,No
Http://opendatacommunities.org/id/metropolitan-district-council/leeds,Leeds City Council,31/03/2018,Resources and Housing,Leeds Building Services,Supplies and Services,Operational Furniture And Equipment,203,18/03/2019,1803-00615,0.00,708.36 ,R,Ajm Fixings & Power Tools Ltd,No
Http://opendatacommunities.org/id/metropolitan-district-council/leeds,Leeds City Council,31/03/2018,Resources and Housing,Leeds Building Services,Supplies and Services,Operational Furniture And Equipment,203,18/03/2019,1803-00616,0.00,5364.00 ,R,Ajm Fixings & Power Tools Ltd,No
Http://opendatacommunities.org/id/metropolitan-district-council/leeds,Leeds City Council,31/03/2018,Resources and Housing,Leeds Building Services,Supplies and Services,Operational Materials,205,18/03/2019,1803-00617,0.00,122.40 ,R,Ajm Fixings & Power Tools Ltd,No
Http://opendatacommunities.org/id/metropolitan-district-council/leeds,Leeds City Council,31/03/2018,Resources and Housing,Leeds Building Services,Supplies and Services,Stores - Central And Other Depots,5,19/03/2019,1803-00618,0.00,1869.32 ,R,Ajm Fixings & Power Tools Ltd,No
Http://opendatacommunities.org/id/metropolitan-district-council/leeds,Leeds City Council,31/03/2018,Resources and Housing,Leeds Building Services,Supplies and Services,Operational Furniture And Equipment,203,19/03/2019,1803-00619,0.00,44.90 ,R,Ajm Fixings & Power Tools Ltd,No
Http://opendatacommunities.org/id/metropolitan-district-council/leeds,Leeds City Council,31/03/2018,Resources and Housing,Leeds Building Services,Supplies and Services,Operational Furniture And Equipment,203,22/03/2019,1803-00620,0.00,143.00 ,R,Ajm Fixings & Power Tools Ltd,No
Http://opendatacommunities.org/id/metropolitan-district-council/leeds,Leeds City Council,31/03/2018,Resources and Housing,Leeds Building Services,Supplies and Services,Stores - Central And Other Depots,5,26/03/2019,1803-00621,0.00,427.00 ,R,Ajm Fixings & Power Tools Ltd,No
Http://opendatacommunities.org/id/metropolitan-district-council/leeds,Leeds City Council,31/03/2018,Resources and Housing,Leeds Building Services,Supplies and Services,Stores - Central And Other Depots,5,26/03/2019,1803-00622,0.00,497.40 ,R,Ajm Fixings & Power Tools Ltd,No
Http://opendatacommunities.org/id/metropolitan-district-council/leeds,Leeds City Council,31/03/2018,Resources and Housing,Leeds Building Services,Supplies and Services,Operational Materials,205,26/03/2019,1803-00623,0.00,1240.85 ,R,Ajm Fixings & Power Tools Ltd,No
Http://opendatacommunities.org/id/metropolitan-district-council/leeds,Leeds City Council,31/03/2018,Resources and Housing,Commercial Services,Premises,Plant and Machinery,102,22/03/2019,1803-00624,0.00,108.90 ,R,Akua Uk Ltd,No
Http://opendatacommunities.org/id/metropolitan-district-council/leeds,Leeds City Council,31/03/2018,Resources and Housing,Commercial Services,Premises,Plant and Machinery,102,22/03/2019,1803-00625,0.00,175.80 ,R,Akua Uk Ltd,No
Http://opendatacommunities.org/id/metropolitan-district-council/leeds,Leeds City Council,31/03/2018,Resources and Housing,Commercial Services,Premises,Plant and Machinery,102,22/03/2019,1803-00626,0.00,419.74 ,R,Akua Uk Ltd,No
Http://opendatacommunities.org/id/metropolitan-district-council/leeds,Leeds City Council,31/03/2018,Resources and Housing,Commercial Services,Premises,Plant and Machinery,102,22/03/2019,1803-00627,0.00,115.50 ,R,Akua Uk Ltd,No
Http://opendatacommunities.org/id/metropolitan-district-council/leeds,Leeds City Council,31/03/2018,Resources and Housing,Commercial Services,Premises,Plant and Machinery,102,22/03/2019,1803-00628,0.00,332.40 ,R,Akua Uk Ltd,No
Http://opendatacommunities.org/id/metropolitan-district-council/leeds,Leeds City Council,31/03/2018,Resources and Housing,Commercial Services,Premises,Plant and Machinery,102,25/03/2019,1803-00629,0.00,70.00 ,R,Akua Uk Ltd,No
Http://opendatacommunities.org/id/metropolitan-district-council/leeds,Leeds City Council,31/03/2018,Resources and Housing,Commercial Services,Premises,Plant and Machinery,102,25/03/2019,1803-00630,0.00,394.10 ,R,Akua Uk Ltd,No
Http://opendatacommunities.org/id/metropolitan-district-council/leeds,Leeds City Council,31/03/2018,Resources and Housing,Commercial Services,Premises,Plant and Machinery,102,25/03/2019,1803-00631,0.00,87.50 ,R,Akua Uk Ltd,No
Http://opendatacommunities.org/id/metropolitan-district-council/leeds,Leeds City Council,31/03/2018,Resources and Housing,Commercial Services,Premises,Plant and Machinery,102,26/03/2019,1803-00632,0.00,372.40 ,R,Akua Uk Ltd,No
Http://opendatacommunities.org/id/metropolitan-district-council/leeds,Leeds City Council,31/03/2018,Resources and Housing,Commercial Services,Premises,Plant and Machinery,102,26/03/2019,1803-00633,0.00,181.25 ,R,Akua Uk Ltd,No
Http://opendatacommunities.org/id/metropolitan-district-council/leeds,Leeds City Council,31/03/2018,Resources and Housing,Leeds Building Services,Supplies and Services,Operational Materials,205,04/03/2019,1803-00634,0.00,56.31 ,R,Akw Medicare Ltd,No
Http://opendatacommunities.org/id/metropolitan-district-council/leeds,Leeds City Council,31/03/2018,Resources and Housing,Leeds Building Services,Supplies and Services,Operational Materials,205,12/03/2019,1803-00635,0.00,56.31 ,R,Akw Medicare Ltd,No
Http://opendatacommunities.org/id/metropolitan-district-council/leeds,Leeds City Council,31/03/2018,Resources and Housing,Leeds Building Services,Supplies and Services,Operational Materials,205,18/03/2019,1803-00636,0.00,56.31 ,R,Akw Medicare Ltd,No
Http://opendatacommunities.org/id/metropolitan-district-council/leeds,Leeds City Council,31/03/2018,City Development,Libraries  Arts & Heritage,Supplies and Services,Other Hired And Contracted Services,265,08/03/2019,1803-00637,0.00,116.29 ,R,Alaa Enterprises,No
Http://opendatacommunities.org/id/metropolitan-district-council/leeds,Leeds City Council As Accountable Body,31/03/2018,Social Services Pooled Budgets,Jcs For People With Learning Disabilitie,Transfer Payments,Direct Payments,626,12/03/2019,1803-00638,0.00,3144.71 ,R,REDACTED PERSONAL DATA,No
Http://opendatacommunities.org/id/metropolitan-district-council/leeds,Leeds City Council,31/03/2018,City Development,Libraries  Arts & Heritage,Supplies and Services,Other Hired And Contracted Services,265,26/03/2019,1803-00639,0.00,200.00 ,R,Alan Horsey,No
Http://opendatacommunities.org/id/metropolitan-district-council/leeds,Leeds City Council,31/03/2018,City Development,Planning & Sustainable Development,Income,Building Regulation Fees,929,28/03/2019,1803-00640,0.00,233.33 ,R,Alan Johnson Builders,No
Http://opendatacommunities.org/id/metropolitan-district-council/leeds,Leeds City Council,31/03/2018,Children and Families,Social Care,Support Services,Legal Disbursements,411,01/03/2019,1803-00641,0.00,202.50 ,R,Alan Phipps,No
Http://opendatacommunities.org/id/metropolitan-district-council/leeds,Leeds City Council,31/03/2018,Adults and Health,Public Health,Third Party Payments,Public Health Commissioned Services,526,15/03/2019,1803-00642,0.00,20000.00 ,R,Alan White,No
Http://opendatacommunities.org/id/metropolitan-district-council/leeds,Leeds City Council,31/03/2018,Children and Families,Social Care,Third Party Payments,Services Rendered By Other Organisations,511,15/03/2019,1803-00643,0.00,350.62 ,R,REDACTED PERSONAL DATA,No
Http://opendatacommunities.org/id/metropolitan-district-council/leeds,Leeds City Council,31/03/2018,Adults and Health,Services For Older People - 65 And Over,Third Party Payments,Residential Care Dementia,571,06/03/2019,1803-00644,0.00,1088.80 ,R,Albemarle,No
Http://opendatacommunities.org/id/metropolitan-district-council/leeds,Leeds City Council,31/03/2018,Communities and Environment,Communities,Supplies and Services,Computer Software & Equipment,214,26/03/2019,1803-00645,0.00,1075.00 ,R,Alcium Software Ltd,No
Http://opendatacommunities.org/id/metropolitan-district-council/leeds,Leeds City Council,31/03/2018,Adults and Health,Services For Older People - 65 And Over  ,Supplies and Services,General Amenity For Clients/Residents,285,23/02/2019,1803-00646,0.00,24.56 ,R,Aldi 103 779,Yes
Http://opendatacommunities.org/id/metropolitan-district-council/leeds,Leeds City Council,31/03/2018,Children and Families,Social Care  ,Premises,Cleaning Maintenance & Toiletries,127,04/02/2019,1803-00647,0.00,5.28 ,R,Aldi 40 779,Yes
Http://opendatacommunities.org/id/metropolitan-district-council/leeds,Leeds City Council,31/03/2018,Children and Families,Social Care  ,Supplies and Services,Food & Drink,231,04/02/2019,1803-00648,0.00,66.36 ,R,Aldi 40 779,Yes
Http://opendatacommunities.org/id/metropolitan-district-council/leeds,Leeds City Council,31/03/2018,Communities and Environment,Customer Access  ,Supplies and Services,Office Furniture & Equipment,201,06/02/2019,1803-00649,0.00,9.74 ,R,Aldi 40 779,Yes
Http://opendatacommunities.org/id/metropolitan-district-council/leeds,Leeds City Council,31/03/2018,Children and Families,Social Care  ,Supplies and Services,Food & Drink,231,18/02/2019,1803-00650,0.00,1.45 ,R,Aldi 40 779,Yes
Http://opendatacommunities.org/id/metropolitan-district-council/leeds,Leeds City Council,31/03/2018,Communities and Environment,Customer Access  ,Supplies and Services,Office Furniture & Equipment,201,22/02/2019,1803-00651,0.00,19.28 ,R,Aldi 40 779,Yes
Http://opendatacommunities.org/id/metropolitan-district-council/leeds,Leeds City Council,31/03/2018,Children and Families,Social Care  ,Third Party Payments,Placement Support,550,15/02/2019,1803-00652,0.00,25.30 ,R,Aldi 49 779,Yes
Http://opendatacommunities.org/id/metropolitan-district-council/leeds,Leeds City Council,31/03/2018,Children and Families,Social Care  ,Supplies and Services,Food & Drink,231,25/02/2019,1803-00653,0.00,15.31 ,R,Aldi 49 779,Yes
Http://opendatacommunities.org/id/metropolitan-district-council/leeds,Leeds City Council,31/03/2018,Children and Families,Social Care  ,Transfer Payments,Leaving Care Allowances,634,20/02/2019,1803-00654,0.00,6.64 ,R,Aldi 71 779,Yes
Http://opendatacommunities.org/id/metropolitan-district-council/leeds,Leeds City Council,31/03/2018,Communities and Environment,Customer Access  ,Supplies and Services,Office Furniture & Equipment,201,24/02/2019,1803-00655,0.00,2.37 ,R,Aldi 82 779,Yes
Http://opendatacommunities.org/id/metropolitan-district-council/leeds,Leeds City Council,31/03/2018,Children and Families,Social Care  ,Supplies and Services,Food & Drink,231,18/02/2019,1803-00656,0.00,15.95 ,R,Aldi 85 779,Yes
Http://opendatacommunities.org/id/metropolitan-district-council/leeds,Leeds City Council,31/03/2018,Children and Families,Social Care  ,Supplies and Services,Teaching Materials,202,25/02/2019,1803-00657,0.00,7.20 ,R,Aldi 85 779,Yes
Http://opendatacommunities.org/id/metropolitan-district-council/leeds,Leeds City Council,31/03/2018,Communities and Environment,Waste Management  ,Supplies and Services,Operational Furniture And Equipment,203,31/01/2019,1803-00658,0.00,8.33 ,R,Aldi 89 779,Yes
Http://opendatacommunities.org/id/metropolitan-district-council/leeds,Leeds City Council,31/03/2018,Children and Families,Social Care  ,Supplies and Services,Teaching Materials,202,26/02/2019,1803-00659,0.00,50.28 ,R,Aldi Stores,Yes
Http://opendatacommunities.org/id/metropolitan-district-council/leeds,Leeds City Council,31/03/2018,Communities and Environment,Customer Access,Supplies and Services,Other Hired And Contracted Services,265,07/03/2019,1803-00660,0.00,411.00 ,R,Alena Zueva,No
Http://opendatacommunities.org/id/metropolitan-district-council/leeds,Leeds City Council,31/03/2018,Children and Families,Social Care,Support Services,Legal Disbursements,411,29/03/2019,1803-00661,0.00,349.00 ,R,Alere Toxicology Plc,No
Http://opendatacommunities.org/id/metropolitan-district-council/leeds,Leeds City Council,31/03/2018,Resources and Housing,Commercial Services,Supplies and Services,Other Hired And Contracted Services,265,06/03/2019,1803-00662,0.00,330.00 ,R,Alex Wagg,No
Http://opendatacommunities.org/id/metropolitan-district-council/leeds,Leeds City Council,31/03/2018,Resources and Housing,Commercial Services,Supplies and Services,Other Hired And Contracted Services,265,06/03/2019,1803-00663,0.00,60.00 ,R,Alex Wagg,No
Http://opendatacommunities.org/id/metropolitan-district-council/leeds,Leeds City Council,31/03/2018,Resources and Housing,Commercial Services,Supplies and Services,Other Hired And Contracted Services,265,08/03/2019,1803-00664,0.00,200.00 ,R,Alex Wagg,No
Http://opendatacommunities.org/id/metropolitan-district-council/leeds,Leeds City Council,31/03/2018,Resources and Housing,Commercial Services,Supplies and Services,Other Hired And Contracted Services,265,08/03/2019,1803-00665,0.00,100.00 ,R,Alex Wagg,No
Http://opendatacommunities.org/id/metropolitan-district-council/leeds,Leeds City Council,31/03/2018,Resources and Housing,Commercial Services,Supplies and Services,Other Hired And Contracted Services,265,08/03/2019,1803-00666,0.00,60.00 ,R,Alex Wagg,No
Http://opendatacommunities.org/id/metropolitan-district-council/leeds,Leeds City Council,31/03/2018,Resources and Housing,Commercial Services,Transport,Vehicle Spares,345,08/03/2019,1803-00667,0.00,380.00 ,R,Alex Wagg,No
Http://opendatacommunities.org/id/metropolitan-district-council/leeds,Leeds City Council,31/03/2018,Resources and Housing,Commercial Services,Supplies and Services,Other Hired And Contracted Services,265,13/03/2019,1803-00668,0.00,330.00 ,R,Alex Wagg,No
Http://opendatacommunities.org/id/metropolitan-district-council/leeds,Leeds City Council,31/03/2018,Resources and Housing,Commercial Services,Transport,Vehicle Spares,345,13/03/2019,1803-00669,0.00,210.00 ,R,Alex Wagg,No
Http://opendatacommunities.org/id/metropolitan-district-council/leeds,Leeds City Council,31/03/2018,Resources and Housing,Commercial Services,Transport,Vehicle Spares,345,15/03/2019,1803-00670,0.00,380.00 ,R,Alex Wagg,No
Http://opendatacommunities.org/id/metropolitan-district-council/leeds,Leeds City Council,31/03/2018,Resources and Housing,Commercial Services,Transport,Vehicle Spares,345,22/03/2019,1803-00671,0.00,380.00 ,R,Alex Wagg,No
Http://opendatacommunities.org/id/metropolitan-district-council/leeds,Leeds City Council,31/03/2018,Resources and Housing,Commercial Services,Supplies and Services,Other Hired And Contracted Services,265,29/03/2019,1803-00672,0.00,610.00 ,R,Alex Wagg,No
Http://opendatacommunities.org/id/metropolitan-district-council/leeds,Leeds City Council,31/03/2018,Resources and Housing,Commercial Services,Supplies and Services,Other Hired And Contracted Services,265,29/03/2019,1803-00673,0.00,240.00 ,R,Alex Wagg,No
Http://opendatacommunities.org/id/metropolitan-district-council/leeds,Leeds City Council,31/03/2018,Adults and Health,Services For Older People - 65 And Over,Third Party Payments,Residential Care Dementia,571,06/03/2019,1803-00674,0.00,22094.58 ,R,Alexander Residential Home,No
Http://opendatacommunities.org/id/metropolitan-district-council/leeds,Leeds City Council,31/03/2018,Adults and Health,Services For Older People - 65 And Over,Third Party Payments,Residential,580,06/03/2019,1803-00675,0.00,18588.39 ,R,Alexander Residential Home,No
Http://opendatacommunities.org/id/metropolitan-district-council/leeds,Leeds City Council,31/03/2018,Communities and Environment,Customer Access,Supplies and Services,Other Hired And Contracted Services,265,07/03/2019,1803-00676,0.00,237.00 ,R,Alexandra Costenco,No
Http://opendatacommunities.org/id/metropolitan-district-council/leeds,Leeds City Council,31/03/2018,Adults and Health,Services For Older People - 65 And Over,Third Party Payments,Residential,580,06/03/2019,1803-00677,0.00,8284.32 ,R,Alexandra Court,No
Http://opendatacommunities.org/id/metropolitan-district-council/leeds,Leeds City Council,31/03/2018,Communities and Environment,Car Parking Services,Income,Penalties  Fines & Car Parking Charges,934,21/03/2019,1803-00678,0.00,2.00 ,R,REDACTED PERSONAL DATA,No
Http://opendatacommunities.org/id/metropolitan-district-council/leeds,Leeds City Council,31/03/2018,Adults and Health,Services For Older People - 65 And Over,Supplies and Services,Operational Furniture And Equipment,203,01/03/2019,1803-00679,0.00,2780.00 ,R,Alfred Bagnall & Sons (Leeds) Ltd,No
Http://opendatacommunities.org/id/metropolitan-district-council/leeds,Leeds City Council,31/03/2018,City Development,Libraries  Arts & Heritage,Supplies and Services,Bought In Professional Services,277,01/03/2019,1803-00680,0.00,960.00 ,R,Alfred Bagnall & Sons (Leeds) Ltd,No
Http://opendatacommunities.org/id/metropolitan-district-council/leeds,Leeds City Council,31/03/2018,Resources and Housing,Corporate Property Management,Capital,Construction,3,01/03/2019,1803-00681,0.00,3300.00 ,C,Alfred Bagnall & Sons (Leeds) Ltd,No
Http://opendatacommunities.org/id/metropolitan-district-council/leeds,Leeds City Council,31/03/2018,Resources and Housing,Leeds Building Services,Supplies and Services,Other Hired And Contracted Services,265,01/03/2019,1803-00682,0.00,600.00 ,R,Alfred Bagnall & Sons (Leeds) Ltd,No
Http://opendatacommunities.org/id/metropolitan-district-council/leeds,Leeds City Council,31/03/2018,Resources and Housing,Leeds Building Services,Supplies and Services,Other Hired And Contracted Services,265,01/03/2019,1803-00683,0.00,240.00 ,R,Alfred Bagnall & Sons (Leeds) Ltd,No
Http://opendatacommunities.org/id/metropolitan-district-council/leeds,Leeds City Council,31/03/2018,Resources and Housing,Leeds Building Services,Supplies and Services,Other Hired And Contracted Services,265,01/03/2019,1803-00684,0.00,800.00 ,R,Alfred Bagnall & Sons (Leeds) Ltd,No
Http://opendatacommunities.org/id/metropolitan-district-council/leeds,Leeds City Council,31/03/2018,Resources and Housing,Leeds Building Services,Supplies and Services,Other Hired And Contracted Services,265,01/03/2019,1803-00685,0.00,400.00 ,R,Alfred Bagnall & Sons (Leeds) Ltd,No
Http://opendatacommunities.org/id/metropolitan-district-council/leeds,Leeds City Council,31/03/2018,Resources and Housing,Leeds Building Services,Supplies and Services,Other Hired And Contracted Services,265,01/03/2019,1803-00686,0.00,440.00 ,R,Alfred Bagnall & Sons (Leeds) Ltd,No
Http://opendatacommunities.org/id/metropolitan-district-council/leeds,Leeds City Council,31/03/2018,Resources and Housing,Leeds Building Services,Supplies and Services,Other Hired And Contracted Services,265,01/03/2019,1803-00687,0.00,240.00 ,R,Alfred Bagnall & Sons (Leeds) Ltd,No
Http://opendatacommunities.org/id/metropolitan-district-council/leeds,Leeds City Council,31/03/2018,Resources and Housing,Leeds Building Services,Supplies and Services,Other Hired And Contracted Services,265,01/03/2019,1803-00688,0.00,420.00 ,R,Alfred Bagnall & Sons (Leeds) Ltd,No
Http://opendatacommunities.org/id/metropolitan-district-council/leeds,Leeds City Council,31/03/2018,Resources and Housing,Leeds Building Services,Supplies and Services,Other Hired And Contracted Services,265,01/03/2019,1803-00689,0.00,600.00 ,R,Alfred Bagnall & Sons (Leeds) Ltd,No
Http://opendatacommunities.org/id/metropolitan-district-council/leeds,Leeds City Council,31/03/2018,Resources and Housing,Leeds Building Services,Supplies and Services,Other Hired And Contracted Services,265,01/03/2019,1803-00690,0.00,800.00 ,R,Alfred Bagnall & Sons (Leeds) Ltd,No
Http://opendatacommunities.org/id/metropolitan-district-council/leeds,Leeds City Council,31/03/2018,Resources and Housing,Leeds Building Services,Supplies and Services,Other Hired And Contracted Services,265,01/03/2019,1803-00691,0.00,600.00 ,R,Alfred Bagnall & Sons (Leeds) Ltd,No
Http://opendatacommunities.org/id/metropolitan-district-council/leeds,Leeds City Council,31/03/2018,Resources and Housing,Leeds Building Services,Supplies and Services,Other Hired And Contracted Services,265,01/03/2019,1803-00692,0.00,800.00 ,R,Alfred Bagnall & Sons (Leeds) Ltd,No
Http://opendatacommunities.org/id/metropolitan-district-council/leeds,Leeds City Council,31/03/2018,Resources and Housing,Leeds Building Services,Supplies and Services,Other Hired And Contracted Services,265,01/03/2019,1803-00693,0.00,78.13 ,R,Alfred Bagnall & Sons (Leeds) Ltd,No
Http://opendatacommunities.org/id/metropolitan-district-council/leeds,Leeds City Council,31/03/2018,Resources and Housing,Leeds Building Services,Supplies and Services,Other Hired And Contracted Services,265,01/03/2019,1803-00694,0.00,557.07 ,R,Alfred Bagnall & Sons (Leeds) Ltd,No
Http://opendatacommunities.org/id/metropolitan-district-council/leeds,Leeds City Council,31/03/2018,Resources and Housing,Leeds Building Services,Supplies and Services,Other Hired And Contracted Services,265,01/03/2019,1803-00695,0.00,620.00 ,R,Alfred Bagnall & Sons (Leeds) Ltd,No
Http://opendatacommunities.org/id/metropolitan-district-council/leeds,Leeds City Council,31/03/2018,Resources and Housing,Leeds Building Services,Supplies and Services,Other Hired And Contracted Services,265,01/03/2019,1803-00696,0.00,879.00 ,R,Alfred Bagnall & Sons (Leeds) Ltd,No
Http://opendatacommunities.org/id/metropolitan-district-council/leeds,Leeds City Council,31/03/2018,Resources and Housing,Leeds Building Services,Supplies and Services,Other Hired And Contracted Services,265,01/03/2019,1803-00697,0.00,9500.00 ,R,Alfred Bagnall & Sons (Leeds) Ltd,No
Http://opendatacommunities.org/id/metropolitan-district-council/leeds,Leeds City Council,31/03/2018,Resources and Housing,Leeds Building Services,Supplies and Services,Other Hired And Contracted Services,265,01/03/2019,1803-00698,0.00,20500.00 ,R,Alfred Bagnall & Sons (Leeds) Ltd,No
Http://opendatacommunities.org/id/metropolitan-district-council/leeds,Leeds City Council,31/03/2018,Resources and Housing,Leeds Building Services,Supplies and Services,Other Hired And Contracted Services,265,01/03/2019,1803-00699,0.00,600.00 ,R,Alfred Bagnall & Sons (Leeds) Ltd,No
Http://opendatacommunities.org/id/metropolitan-district-council/leeds,Leeds City Council,31/03/2018,Resources and Housing,Leeds Building Services,Supplies and Services,Other Hired And Contracted Services,265,01/03/2019,1803-00700,0.00,800.00 ,R,Alfred Bagnall & Sons (Leeds) Ltd,No
Http://opendatacommunities.org/id/metropolitan-district-council/leeds,Leeds City Council,31/03/2018,Resources and Housing,Leeds Building Services,Supplies and Services,Other Hired And Contracted Services,265,06/03/2019,1803-00701,0.00,140.00 ,R,Alfred Bagnall & Sons (Leeds) Ltd,No
Http://opendatacommunities.org/id/metropolitan-district-council/leeds,Leeds City Council,31/03/2018,Resources and Housing,Leeds Building Services,Supplies and Services,Other Hired And Contracted Services,265,06/03/2019,1803-00702,0.00,800.00 ,R,Alfred Bagnall & Sons (Leeds) Ltd,No
Http://opendatacommunities.org/id/metropolitan-district-council/leeds,Leeds City Council,31/03/2018,Resources and Housing,Leeds Building Services,Supplies and Services,Other Hired And Contracted Services,265,07/03/2019,1803-00703,0.00,1495.00 ,R,Alfred Bagnall & Sons (Leeds) Ltd,No
Http://opendatacommunities.org/id/metropolitan-district-council/leeds,Leeds City Council,31/03/2018,Resources and Housing,Leeds Building Services,Supplies and Services,Other Hired And Contracted Services,265,07/03/2019,1803-00704,0.00,1600.00 ,R,Alfred Bagnall & Sons (Leeds) Ltd,No
Http://opendatacommunities.org/id/metropolitan-district-council/leeds,Leeds City Council,31/03/2018,Resources and Housing,Leeds Building Services,Supplies and Services,Other Hired And Contracted Services,265,07/03/2019,1803-00705,0.00,1400.00 ,R,Alfred Bagnall & Sons (Leeds) Ltd,No
Http://opendatacommunities.org/id/metropolitan-district-council/leeds,Leeds City Council,31/03/2018,Resources and Housing,Leeds Building Services,Supplies and Services,Other Hired And Contracted Services,265,07/03/2019,1803-00706,0.00,1400.00 ,R,Alfred Bagnall & Sons (Leeds) Ltd,No
Http://opendatacommunities.org/id/metropolitan-district-council/leeds,Leeds City Council,31/03/2018,Resources and Housing,Leeds Building Services,Supplies and Services,Other Hired And Contracted Services,265,07/03/2019,1803-00707,0.00,19350.00 ,R,Alfred Bagnall & Sons (Leeds) Ltd,No
Http://opendatacommunities.org/id/metropolitan-district-council/leeds,Leeds City Council,31/03/2018,Resources and Housing,Leeds Building Services,Supplies and Services,Other Hired And Contracted Services,265,07/03/2019,1803-00708,0.00,1486.00 ,R,Alfred Bagnall & Sons (Leeds) Ltd,No
Http://opendatacommunities.org/id/metropolitan-district-council/leeds,Leeds City Council,31/03/2018,Resources and Housing,Leeds Building Services,Supplies and Services,Other Hired And Contracted Services,265,07/03/2019,1803-00709,0.00,400.00 ,R,Alfred Bagnall & Sons (Leeds) Ltd,No
Http://opendatacommunities.org/id/metropolitan-district-council/leeds,Leeds City Council,31/03/2018,Resources and Housing,Leeds Building Services,Supplies and Services,Other Hired And Contracted Services,265,12/03/2019,1803-00710,0.00,2325.00 ,R,Alfred Bagnall & Sons (Leeds) Ltd,No
Http://opendatacommunities.org/id/metropolitan-district-council/leeds,Leeds City Council,31/03/2018,Resources and Housing,Leeds Building Services,Supplies and Services,Other Hired And Contracted Services,265,12/03/2019,1803-00711,0.00,2327.00 ,R,Alfred Bagnall & Sons (Leeds) Ltd,No
Http://opendatacommunities.org/id/metropolitan-district-council/leeds,Leeds City Council,31/03/2018,Resources and Housing,Leeds Building Services,Supplies and Services,Other Hired And Contracted Services,265,14/03/2019,1803-00712,0.00,491.67 ,R,Alfred Bagnall & Sons (Leeds) Ltd,No
Http://opendatacommunities.org/id/metropolitan-district-council/leeds,Leeds City Council,31/03/2018,Resources and Housing,Leeds Building Services,Supplies and Services,Other Hired And Contracted Services,265,14/03/2019,1803-00713,0.00,800.00 ,R,Alfred Bagnall & Sons (Leeds) Ltd,No
Http://opendatacommunities.org/id/metropolitan-district-council/leeds,Leeds City Council,31/03/2018,Resources and Housing,Leeds Building Services,Supplies and Services,Other Hired And Contracted Services,265,14/03/2019,1803-00714,0.00,590.00 ,R,Alfred Bagnall & Sons (Leeds) Ltd,No
Http://opendatacommunities.org/id/metropolitan-district-council/leeds,Leeds City Council,31/03/2018,Resources and Housing,Leeds Building Services,Supplies and Services,Other Hired And Contracted Services,265,14/03/2019,1803-00715,0.00,800.00 ,R,Alfred Bagnall & Sons (Leeds) Ltd,No
Http://opendatacommunities.org/id/metropolitan-district-council/leeds,Leeds City Council,31/03/2018,Resources and Housing,Leeds Building Services,Supplies and Services,Other Hired And Contracted Services,265,14/03/2019,1803-00716,0.00,340.00 ,R,Alfred Bagnall & Sons (Leeds) Ltd,No
Http://opendatacommunities.org/id/metropolitan-district-council/leeds,Leeds City Council,31/03/2018,Resources and Housing,Leeds Building Services,Supplies and Services,Other Hired And Contracted Services,265,14/03/2019,1803-00717,0.00,800.00 ,R,Alfred Bagnall & Sons (Leeds) Ltd,No
Http://opendatacommunities.org/id/metropolitan-district-council/leeds,Leeds City Council,31/03/2018,Resources and Housing,Leeds Building Services,Supplies and Services,Other Hired And Contracted Services,265,14/03/2019,1803-00718,0.00,3478.00 ,R,Alfred Bagnall & Sons (Leeds) Ltd,No
Http://opendatacommunities.org/id/metropolitan-district-council/leeds,Leeds City Council,31/03/2018,Resources and Housing,Leeds Building Services,Supplies and Services,Other Hired And Contracted Services,265,14/03/2019,1803-00719,0.00,9920.00 ,R,Alfred Bagnall & Sons (Leeds) Ltd,No
Http://opendatacommunities.org/id/metropolitan-district-council/leeds,Leeds City Council,31/03/2018,Resources and Housing,Leeds Building Services,Supplies and Services,Other Hired And Contracted Services,265,14/03/2019,1803-00720,0.00,700.00 ,R,Alfred Bagnall & Sons (Leeds) Ltd,No
Http://opendatacommunities.org/id/metropolitan-district-council/leeds,Leeds City Council,31/03/2018,Resources and Housing,Leeds Building Services,Supplies and Services,Other Hired And Contracted Services,265,20/03/2019,1803-00721,0.00,2500.00 ,R,Alfred Bagnall & Sons (Leeds) Ltd,No
Http://opendatacommunities.org/id/metropolitan-district-council/leeds,Leeds City Council,31/03/2018,City Development,Culture and Sport,Capital,Construction,3,29/03/2019,1803-00722,0.00,4430.00 ,C,Alfred Bagnall & Sons (Leeds) Ltd,No
Http://opendatacommunities.org/id/metropolitan-district-council/leeds,Leeds City Council,31/03/2018,City Development,Libraries  Arts & Heritage,Supplies and Services,Other Hired And Contracted Services,265,29/03/2019,1803-00723,0.00,440.00 ,R,Alfred Bagnall & Sons (Leeds) Ltd,No
Http://opendatacommunities.org/id/metropolitan-district-council/leeds,Leeds City Council,31/03/2018,Resources and Housing,Leeds Building Services,Supplies and Services,Other Hired And Contracted Services,265,29/03/2019,1803-00724,0.00,720.00 ,R,Alfred Bagnall & Sons (Leeds) Ltd,No
Http://opendatacommunities.org/id/metropolitan-district-council/leeds,Leeds City Council,31/03/2018,Resources and Housing,Leeds Building Services,Supplies and Services,Other Hired And Contracted Services,265,29/03/2019,1803-00725,0.00,600.00 ,R,Alfred Bagnall & Sons (Leeds) Ltd,No
Http://opendatacommunities.org/id/metropolitan-district-council/leeds,Leeds City Council,31/03/2018,Resources and Housing,Leeds Building Services,Supplies and Services,Other Hired And Contracted Services,265,29/03/2019,1803-00726,0.00,600.00 ,R,Alfred Bagnall & Sons (Leeds) Ltd,No
Http://opendatacommunities.org/id/metropolitan-district-council/leeds,Leeds City Council,31/03/2018,Resources and Housing,Leeds Building Services,Supplies and Services,Other Hired And Contracted Services,265,29/03/2019,1803-00727,0.00,868.00 ,R,Alfred Bagnall & Sons (Leeds) Ltd,No
Http://opendatacommunities.org/id/metropolitan-district-council/leeds,Leeds City Council,31/03/2018,Resources and Housing,Leeds Building Services,Supplies and Services,Other Hired And Contracted Services,265,29/03/2019,1803-00728,0.00,350.00 ,R,Alfred Bagnall & Sons (Leeds) Ltd,No
Http://opendatacommunities.org/id/metropolitan-district-council/leeds,Leeds City Council,31/03/2018,Resources and Housing,Leeds Building Services,Supplies and Services,Other Hired And Contracted Services,265,29/03/2019,1803-00729,0.00,450.00 ,R,Alfred Bagnall & Sons (Leeds) Ltd,No
Http://opendatacommunities.org/id/metropolitan-district-council/leeds,Leeds City Council,31/03/2018,Resources and Housing,Leeds Building Services,Supplies and Services,Other Hired And Contracted Services,265,29/03/2019,1803-00730,0.00,750.00 ,R,Alfred Bagnall & Sons (Leeds) Ltd,No
Http://opendatacommunities.org/id/metropolitan-district-council/leeds,Leeds City Council,31/03/2018,Resources and Housing,Leeds Building Services,Supplies and Services,Other Hired And Contracted Services,265,29/03/2019,1803-00731,0.00,520.00 ,R,Alfred Bagnall & Sons (Leeds) Ltd,No
Http://opendatacommunities.org/id/metropolitan-district-council/leeds,Leeds City Council,31/03/2018,Resources and Housing,Leeds Building Services,Supplies and Services,Other Hired And Contracted Services,265,29/03/2019,1803-00732,0.00,400.00 ,R,Alfred Bagnall & Sons (Leeds) Ltd,No
Http://opendatacommunities.org/id/metropolitan-district-council/leeds,Leeds City Council,31/03/2018,Resources and Housing,Leeds Building Services,Supplies and Services,Other Hired And Contracted Services,265,29/03/2019,1803-00733,0.00,400.00 ,R,Alfred Bagnall & Sons (Leeds) Ltd,No
Http://opendatacommunities.org/id/metropolitan-district-council/leeds,Leeds City Council,31/03/2018,Resources and Housing,Leeds Building Services,Supplies and Services,Other Hired And Contracted Services,265,29/03/2019,1803-00734,0.00,800.00 ,R,Alfred Bagnall & Sons (Leeds) Ltd,No
Http://opendatacommunities.org/id/metropolitan-district-council/leeds,Leeds City Council,31/03/2018,Resources and Housing,Leeds Building Services,Supplies and Services,Other Hired And Contracted Services,265,29/03/2019,1803-00735,0.00,600.00 ,R,Alfred Bagnall & Sons (Leeds) Ltd,No
Http://opendatacommunities.org/id/metropolitan-district-council/leeds,Leeds City Council,31/03/2018,Resources and Housing,Leeds Building Services,Supplies and Services,Other Hired And Contracted Services,265,29/03/2019,1803-00736,0.00,400.00 ,R,Alfred Bagnall & Sons (Leeds) Ltd,No
Http://opendatacommunities.org/id/metropolitan-district-council/leeds,Leeds City Council,31/03/2018,Resources and Housing,Leeds Building Services,Supplies and Services,Other Hired And Contracted Services,265,29/03/2019,1803-00737,0.00,720.00 ,R,Alfred Bagnall & Sons (Leeds) Ltd,No
Http://opendatacommunities.org/id/metropolitan-district-council/leeds,Leeds City Council,31/03/2018,Communities and Environment,Customer Access,Supplies and Services,Other Hired And Contracted Services,265,07/03/2019,1803-00738,0.00,220.50 ,R,Ali Pourakaberian,No
Http://opendatacommunities.org/id/metropolitan-district-council/leeds,Leeds City Council,31/03/2018,City Development,Libraries  Arts & Heritage,Supplies and Services,Bought In Professional Services,277,15/03/2019,1803-00739,0.00,2039.10 ,R,REDACTED PERSONAL DATA,No
Http://opendatacommunities.org/id/metropolitan-district-council/leeds,Leeds City Council,31/03/2018,Children and Families,Social Care,Third Party Payments,Services Rendered By Other Organisations,511,15/03/2019,1803-00740,0.00,233.75 ,R,REDACTED PERSONAL DATA,No
Http://opendatacommunities.org/id/metropolitan-district-council/leeds,Leeds City Council,31/03/2018,Children and Families,Social Care,Third Party Payments,Services Rendered By Other Organisations,511,15/03/2019,1803-00741,0.00,233.75 ,R,REDACTED PERSONAL DATA,No
Http://opendatacommunities.org/id/metropolitan-district-council/leeds,Leeds City Council,31/03/2018,Communities and Environment,Communities,Supplies and Services,Other Hired And Contracted Services,265,05/03/2019,1803-00742,0.00,30.38 ,R,REDACTED PERSONAL DATA,No
Http://opendatacommunities.org/id/metropolitan-district-council/leeds,Leeds City Council,31/03/2018,Communities and Environment,Car Parking Services,Income,Penalties  Fines & Car Parking Charges,934,21/03/2019,1803-00743,0.00,83.00 ,R,REDACTED PERSONAL DATA,No
Http://opendatacommunities.org/id/metropolitan-district-council/leeds,Leeds City Council,31/03/2018,Children and Families,Social Care,Transfer Payments,Leaving Care Allowances,634,29/03/2019,1803-00744,0.00,125.00 ,R,All Abode,No
Http://opendatacommunities.org/id/metropolitan-district-council/leeds,Leeds City Council,31/03/2018,Resources and Housing,Leeds Building Services,Supplies and Services,Other Hired And Contracted Services,265,13/03/2019,1803-00745,0.00,195.00 ,R,All Clear Solutions Ltd,No
Http://opendatacommunities.org/id/metropolitan-district-council/leeds,Leeds City Council,31/03/2018,Resources and Housing,Leeds Building Services,Supplies and Services,Other Hired And Contracted Services,265,21/03/2019,1803-00746,0.00,195.00 ,R,All Clear Solutions Ltd,No
Http://opendatacommunities.org/id/metropolitan-district-council/leeds,Leeds City Council,31/03/2018,Resources and Housing,Leeds Building Services,Supplies and Services,Other Hired And Contracted Services,265,21/03/2019,1803-00747,0.00,195.00 ,R,All Clear Solutions Ltd,No
Http://opendatacommunities.org/id/metropolitan-district-council/leeds,Leeds City Council,31/03/2018,Resources and Housing,Leeds Building Services,Supplies and Services,Other Hired And Contracted Services,265,21/03/2019,1803-00748,0.00,195.00 ,R,All Clear Solutions Ltd,No
Http://opendatacommunities.org/id/metropolitan-district-council/leeds,Leeds City Council,31/03/2018,Resources and Housing,Leeds Building Services,Supplies and Services,Other Hired And Contracted Services,265,29/03/2019,1803-00749,0.00,195.00 ,R,All Clear Solutions Ltd,No
Http://opendatacommunities.org/id/metropolitan-district-council/leeds,Leeds City Council,31/03/2018,Children and Families,Learning,Supplies and Services,Other Hired And Contracted Services,265,06/03/2019,1803-00750,0.00,120.00 ,R,All Hallows,No
Http://opendatacommunities.org/id/metropolitan-district-council/leeds,Leeds City Council,31/03/2018,Children and Families,Learning,Supplies and Services,Other Hired And Contracted Services,265,06/03/2019,1803-00751,0.00,424.00 ,R,All Hallows,No
Http://opendatacommunities.org/id/metropolitan-district-council/leeds,Leeds City Council,31/03/2018,Children and Families,Social Care,Third Party Payments,Services Rendered By Other Organisations,511,15/03/2019,1803-00752,0.00,24917.75 ,R,All Stars Childcare,No
Http://opendatacommunities.org/id/metropolitan-district-council/leeds,Leeds City Council,31/03/2018,Children and Families,Social Care,Third Party Payments,Services Rendered By Other Organisations,511,15/03/2019,1803-00753,0.00,87.45 ,R,All Stars Childcare,No
Http://opendatacommunities.org/id/metropolitan-district-council/leeds,Leeds City Council,31/03/2018,Children and Families,Social Care,Third Party Payments,Services Rendered By Other Organisations,511,20/03/2019,1803-00754,0.00,2103.75 ,R,All Stars Childcare,No
Http://opendatacommunities.org/id/metropolitan-district-council/leeds,Leeds City Council,31/03/2018,Children and Families,Social Care,Third Party Payments,Services Rendered By Voluntary Sector,505,29/03/2019,1803-00755,0.00,1042.14 ,R,All Stars Childcare,No
Http://opendatacommunities.org/id/metropolitan-district-council/leeds,Leeds City Council,31/03/2018,Children and Families,Learning,Supplies and Services,Bought In Professional Services,277,21/03/2019,1803-00756,0.00,1500.00 ,R,Allen Moss Ltd,No
Http://opendatacommunities.org/id/metropolitan-district-council/leeds,Leeds City Council As Accountable Body,31/03/2018,Social Services Pooled Budgets,Jcs For People With Learning Disabilitie,Third Party Payments,Sheltered Accommodation,569,06/03/2019,1803-00757,0.00,8510.24 ,R,Allerton Avenue,No
Http://opendatacommunities.org/id/metropolitan-district-council/leeds,Leeds City Council,31/03/2018,Strategic Accounts,Miscellaneous,Supplies and Services,Non-Recurring Grants,227,18/03/2019,1803-00758,0.00,234.84 ,R,Allerton Bywater Community Partnership,No
Http://opendatacommunities.org/id/metropolitan-district-council/leeds,Leeds City Council,31/03/2018,Strategic Accounts,Miscellaneous,Supplies and Services,Non-Recurring Grants,227,22/03/2019,1803-00759,0.00,500.00 ,R,Allerton Bywater Cricket Club,No
